Organisation Code,Organisation Label,Effective Date,Organisational Unit,Service Division Label,Category Internal Name,Purpose,Detailed Expenditure Code,Payment Date,Transaction Number,Irrecoverable VAT Amount,Amount,Capital Or Revenue,Benificiary Name,Procurement Card
Http://opendatacommunities.org/id/metropolitan-district-council/leeds,Leeds City Council,30/11/2018,Resources and Housing,Leeds Building Services,Supplies and Services,Operational Materials,205,09/11/2018,1811-00001,0.00,99.06,R,A Andrews & Sons (Marbles & Tiles),NO
Http://opendatacommunities.org/id/metropolitan-district-council/leeds,Leeds City Council,30/11/2018,Resources and Housing,Leeds Building Services,Supplies and Services,Operational Materials,205,21/11/2018,1811-00002,0.00,85.56,R,A Andrews & Sons (Marbles & Tiles),NO
Http://opendatacommunities.org/id/metropolitan-district-council/leeds,Leeds City Council,30/11/2018,Resources and Housing,Leeds Building Services,Supplies and Services,Operational Materials,205,21/11/2018,1811-00003,0.00,15.23,R,A Andrews & Sons (Marbles & Tiles),NO
Http://opendatacommunities.org/id/metropolitan-district-council/leeds,Leeds City Council,30/11/2018,Children and Families,Social Care,Third Party Payments,Allowances,546,29/11/2018,1811-00004,0.00,342.16,R,REDACTED PERSONAL DATA,NO
Http://opendatacommunities.org/id/metropolitan-district-council/leeds,Leeds City Council,30/11/2018,Resources and Housing,Leeds Building Services,Supplies and Services,Other Hired And Contracted Services,265,22/11/2018,1811-00005,0.00,18643.00,R,A Buckler (Haulage) Ltd,NO
Http://opendatacommunities.org/id/metropolitan-district-council/leeds,Leeds City Council,30/11/2018,Children and Families,Social Care,Third Party Payments,Services Rendered By Other Organisations,511,16/11/2018,1811-00006,0.00,119.00,R,REDACTED PERSONAL DATA,NO
Http://opendatacommunities.org/id/metropolitan-district-council/leeds,Leeds City Council,30/11/2018,Children and Families,Social Care,Third Party Payments,Services Rendered By Other Organisations,511,02/11/2018,1811-00007,0.00,59.33,R,REDACTED PERSONAL DATA,NO
Http://opendatacommunities.org/id/metropolitan-district-council/leeds,Leeds City Council,30/11/2018,Children and Families,Social Care,Third Party Payments,Services Rendered By Other Organisations,511,16/11/2018,1811-00008,0.00,446.25,R,REDACTED PERSONAL DATA,NO
Http://opendatacommunities.org/id/metropolitan-district-council/leeds,Leeds City Council,30/11/2018,Resources and Housing,HRA Housing Leeds,Capital,Construction,3,13/11/2018,1811-00009,0.00,342449.81,C,A Connolly Limited,NO
Http://opendatacommunities.org/id/metropolitan-district-council/leeds,Leeds City Council,30/11/2018,City Development,Libraries  Arts & Heritage,Supplies and Services,Other Hired And Contracted Services,265,20/11/2018,1811-00010,0.00,1000.00,R,A D Todd,NO
Http://opendatacommunities.org/id/metropolitan-district-council/leeds,Leeds City Council,30/11/2018,Children and Families,Social Care,Third Party Payments,Services Rendered By Voluntary Sector,505,02/11/2018,1811-00011,0.00,320.33,R,REDACTED PERSONAL DATA,NO
Http://opendatacommunities.org/id/metropolitan-district-council/leeds,Leeds City Council,30/11/2018,Children and Families,Social Care,Third Party Payments,Services Rendered By Voluntary Sector,505,16/11/2018,1811-00012,0.00,3748.50,R,REDACTED PERSONAL DATA,NO
Http://opendatacommunities.org/id/metropolitan-district-council/leeds,Leeds City Council,30/11/2018,Children and Families,Social Care,Third Party Payments,Services Rendered By Voluntary Sector,505,21/11/2018,1811-00013,0.00,2142.00,R,REDACTED PERSONAL DATA,NO
Http://opendatacommunities.org/id/metropolitan-district-council/leeds,Leeds City Council,30/11/2018,City Development,Highways,Supplies and Services,Other Hired And Contracted Services,265,01/11/2018,1811-00014,0.00,145962.16,R,A E Yates Ltd,NO
Http://opendatacommunities.org/id/metropolitan-district-council/leeds,Leeds City Council,30/11/2018,City Development,Highways,Capital,Construction,3,29/11/2018,1811-00015,0.00,144544.66,C,A E Yates Ltd,NO
Http://opendatacommunities.org/id/metropolitan-district-council/leeds,Leeds City Council,30/11/2018,Children and Families,Social Care,Third Party Payments,Services Rendered By Other Organisations,511,16/11/2018,1811-00016,0.00,1011.50,R,REDACTED PERSONAL DATA,NO
Http://opendatacommunities.org/id/metropolitan-district-council/leeds,Leeds City Council,30/11/2018,Children and Families,Social Care,Third Party Payments,Services Rendered By Other Organisations,511,16/11/2018,1811-00017,0.00,520.63,R,REDACTED PERSONAL DATA,NO
Http://opendatacommunities.org/id/metropolitan-district-council/leeds,Leeds City Council,30/11/2018,Children and Families,Social Care,Third Party Payments,Services Rendered By Other Organisations,511,16/11/2018,1811-00018,0.00,223.13,R,REDACTED PERSONAL DATA,NO
Http://opendatacommunities.org/id/metropolitan-district-council/leeds,Leeds City Council,30/11/2018,Children and Families,Social Care,Third Party Payments,Services Rendered By Other Organisations,511,16/11/2018,1811-00019,0.00,223.13,R,REDACTED PERSONAL DATA,NO
Http://opendatacommunities.org/id/metropolitan-district-council/leeds,Leeds City Council,30/11/2018,Children and Families,Social Care,Third Party Payments,Services Rendered By Other Organisations,511,16/11/2018,1811-00020,0.00,446.25,R,REDACTED PERSONAL DATA,NO
Http://opendatacommunities.org/id/metropolitan-district-council/leeds,Leeds City Council,30/11/2018,Resources and Housing,Leeds Building Services,Supplies and Services,Operational Materials,205,02/11/2018,1811-00021,0.00,808.03,R,A J H  Pump Supply & Repair Ltd,NO
Http://opendatacommunities.org/id/metropolitan-district-council/leeds,Leeds City Council,30/11/2018,Resources and Housing,Leeds Building Services,Supplies and Services,Operational Furniture And Equipment,203,02/11/2018,1811-00022,0.00,135.00,R,A J H  Pump Supply & Repair Ltd,NO
Http://opendatacommunities.org/id/metropolitan-district-council/leeds,Leeds City Council,30/11/2018,Resources and Housing,Leeds Building Services,Supplies and Services,Operational Materials,205,02/11/2018,1811-00023,0.00,46.97,R,A J H  Pump Supply & Repair Ltd,NO
Http://opendatacommunities.org/id/metropolitan-district-council/leeds,Leeds City Council,30/11/2018,Resources and Housing,Leeds Building Services,Supplies and Services,Operational Materials,205,08/11/2018,1811-00024,0.00,-380.42,R,A J H  Pump Supply & Repair Ltd,NO
Http://opendatacommunities.org/id/metropolitan-district-council/leeds,Leeds City Council,30/11/2018,Resources and Housing,Leeds Building Services,Supplies and Services,Operational Materials,205,08/11/2018,1811-00025,0.00,590.00,R,A J H  Pump Supply & Repair Ltd,NO
Http://opendatacommunities.org/id/metropolitan-district-council/leeds,Leeds City Council,30/11/2018,Resources and Housing,Leeds Building Services,Supplies and Services,Operational Materials,205,08/11/2018,1811-00026,0.00,380.42,R,A J H  Pump Supply & Repair Ltd,NO
Http://opendatacommunities.org/id/metropolitan-district-council/leeds,Leeds City Council,30/11/2018,Resources and Housing,Leeds Building Services,Supplies and Services,Operational Materials,205,08/11/2018,1811-00027,0.00,17.50,R,A J H  Pump Supply & Repair Ltd,NO
Http://opendatacommunities.org/id/metropolitan-district-council/leeds,Leeds City Council,30/11/2018,Resources and Housing,Leeds Building Services,Supplies and Services,Operational Materials,205,08/11/2018,1811-00028,0.00,65.23,R,A J H  Pump Supply & Repair Ltd,NO
Http://opendatacommunities.org/id/metropolitan-district-council/leeds,Leeds City Council,30/11/2018,Resources and Housing,Leeds Building Services,Supplies and Services,Operational Materials,205,08/11/2018,1811-00029,0.00,27.93,R,A J H  Pump Supply & Repair Ltd,NO
Http://opendatacommunities.org/id/metropolitan-district-council/leeds,Leeds City Council,30/11/2018,Resources and Housing,Leeds Building Services,Supplies and Services,Operational Materials,205,08/11/2018,1811-00030,0.00,133.00,R,A J H  Pump Supply & Repair Ltd,NO
Http://opendatacommunities.org/id/metropolitan-district-council/leeds,Leeds City Council,30/11/2018,Resources and Housing,Leeds Building Services,Supplies and Services,Operational Materials,205,08/11/2018,1811-00031,0.00,139.00,R,A J H  Pump Supply & Repair Ltd,NO
Http://opendatacommunities.org/id/metropolitan-district-council/leeds,Leeds City Council,30/11/2018,Resources and Housing,Leeds Building Services,Supplies and Services,Operational Materials,205,08/11/2018,1811-00032,0.00,120.00,R,A J H  Pump Supply & Repair Ltd,NO
Http://opendatacommunities.org/id/metropolitan-district-council/leeds,Leeds City Council,30/11/2018,Resources and Housing,Leeds Building Services,Supplies and Services,Operational Materials,205,08/11/2018,1811-00033,0.00,34.40,R,A J H  Pump Supply & Repair Ltd,NO
Http://opendatacommunities.org/id/metropolitan-district-council/leeds,Leeds City Council,30/11/2018,Resources and Housing,Leeds Building Services,Supplies and Services,Operational Materials,205,08/11/2018,1811-00034,0.00,90.23,R,A J H  Pump Supply & Repair Ltd,NO
Http://opendatacommunities.org/id/metropolitan-district-council/leeds,Leeds City Council,30/11/2018,Resources and Housing,Leeds Building Services,Supplies and Services,Operational Materials,205,08/11/2018,1811-00035,0.00,3398.00,R,A J H  Pump Supply & Repair Ltd,NO
Http://opendatacommunities.org/id/metropolitan-district-council/leeds,Leeds City Council,30/11/2018,Resources and Housing,Leeds Building Services,Supplies and Services,Operational Materials,205,09/11/2018,1811-00036,0.00,339.00,R,A J H  Pump Supply & Repair Ltd,NO
Http://opendatacommunities.org/id/metropolitan-district-council/leeds,Leeds City Council,30/11/2018,Resources and Housing,Leeds Building Services,Supplies and Services,Operational Materials,205,09/11/2018,1811-00037,0.00,750.00,R,A J H  Pump Supply & Repair Ltd,NO
Http://opendatacommunities.org/id/metropolitan-district-council/leeds,Leeds City Council,30/11/2018,Resources and Housing,Leeds Building Services,Supplies and Services,Operational Materials,205,09/11/2018,1811-00038,0.00,4.46,R,A J H  Pump Supply & Repair Ltd,NO
Http://opendatacommunities.org/id/metropolitan-district-council/leeds,Leeds City Council,30/11/2018,Resources and Housing,Leeds Building Services,Supplies and Services,Operational Materials,205,09/11/2018,1811-00039,0.00,37.50,R,A J H  Pump Supply & Repair Ltd,NO
Http://opendatacommunities.org/id/metropolitan-district-council/leeds,Leeds City Council,30/11/2018,Resources and Housing,Leeds Building Services,Supplies and Services,Operational Materials,205,09/11/2018,1811-00040,0.00,167.56,R,A J H  Pump Supply & Repair Ltd,NO
Http://opendatacommunities.org/id/metropolitan-district-council/leeds,Leeds City Council,30/11/2018,Resources and Housing,Leeds Building Services,Supplies and Services,Operational Materials,205,09/11/2018,1811-00041,0.00,115.00,R,A J H  Pump Supply & Repair Ltd,NO
Http://opendatacommunities.org/id/metropolitan-district-council/leeds,Leeds City Council,30/11/2018,Resources and Housing,Leeds Building Services,Supplies and Services,Operational Materials,205,09/11/2018,1811-00042,0.00,413.95,R,A J H  Pump Supply & Repair Ltd,NO
Http://opendatacommunities.org/id/metropolitan-district-council/leeds,Leeds City Council,30/11/2018,Resources and Housing,Leeds Building Services,Supplies and Services,Operational Materials,205,09/11/2018,1811-00043,0.00,157.95,R,A J H  Pump Supply & Repair Ltd,NO
Http://opendatacommunities.org/id/metropolitan-district-council/leeds,Leeds City Council,30/11/2018,Resources and Housing,Leeds Building Services,Supplies and Services,Operational Materials,205,09/11/2018,1811-00044,0.00,113.90,R,A J H  Pump Supply & Repair Ltd,NO
Http://opendatacommunities.org/id/metropolitan-district-council/leeds,Leeds City Council,30/11/2018,Resources and Housing,Leeds Building Services,Supplies and Services,Operational Materials,205,09/11/2018,1811-00045,0.00,52.19,R,A J H  Pump Supply & Repair Ltd,NO
Http://opendatacommunities.org/id/metropolitan-district-council/leeds,Leeds City Council,30/11/2018,Resources and Housing,Leeds Building Services,Supplies and Services,Operational Materials,205,09/11/2018,1811-00046,0.00,579.99,R,A J H  Pump Supply & Repair Ltd,NO
Http://opendatacommunities.org/id/metropolitan-district-council/leeds,Leeds City Council,30/11/2018,Resources and Housing,Leeds Building Services,Supplies and Services,Operational Materials,205,09/11/2018,1811-00047,0.00,148.00,R,A J H  Pump Supply & Repair Ltd,NO
Http://opendatacommunities.org/id/metropolitan-district-council/leeds,Leeds City Council,30/11/2018,Resources and Housing,Leeds Building Services,Supplies and Services,Operational Materials,205,09/11/2018,1811-00048,0.00,66.00,R,A J H  Pump Supply & Repair Ltd,NO
Http://opendatacommunities.org/id/metropolitan-district-council/leeds,Leeds City Council,30/11/2018,Resources and Housing,Leeds Building Services,Supplies and Services,Operational Materials,205,09/11/2018,1811-00049,0.00,6.75,R,A J H  Pump Supply & Repair Ltd,NO
Http://opendatacommunities.org/id/metropolitan-district-council/leeds,Leeds City Council,30/11/2018,Resources and Housing,Leeds Building Services,Supplies and Services,Operational Materials,205,09/11/2018,1811-00050,0.00,180.26,R,A J H  Pump Supply & Repair Ltd,NO
Http://opendatacommunities.org/id/metropolitan-district-council/leeds,Leeds City Council,30/11/2018,Resources and Housing,Leeds Building Services,Supplies and Services,Operational Materials,205,15/11/2018,1811-00051,0.00,318.93,R,A J H  Pump Supply & Repair Ltd,NO
Http://opendatacommunities.org/id/metropolitan-district-council/leeds,Leeds City Council,30/11/2018,Resources and Housing,Leeds Building Services,Supplies and Services,Operational Materials,205,15/11/2018,1811-00052,0.00,248.26,R,A J H  Pump Supply & Repair Ltd,NO
Http://opendatacommunities.org/id/metropolitan-district-council/leeds,Leeds City Council,30/11/2018,Resources and Housing,Leeds Building Services,Supplies and Services,Operational Materials,205,15/11/2018,1811-00053,0.00,122.20,R,A J H  Pump Supply & Repair Ltd,NO
Http://opendatacommunities.org/id/metropolitan-district-council/leeds,Leeds City Council,30/11/2018,Resources and Housing,Leeds Building Services,Supplies and Services,Operational Materials,205,15/11/2018,1811-00054,0.00,425.00,R,A J H  Pump Supply & Repair Ltd,NO
Http://opendatacommunities.org/id/metropolitan-district-council/leeds,Leeds City Council,30/11/2018,Resources and Housing,Leeds Building Services,Supplies and Services,Operational Materials,205,15/11/2018,1811-00055,0.00,139.00,R,A J H  Pump Supply & Repair Ltd,NO
Http://opendatacommunities.org/id/metropolitan-district-council/leeds,Leeds City Council,30/11/2018,Resources and Housing,Leeds Building Services,Supplies and Services,Operational Materials,205,16/11/2018,1811-00056,0.00,216.00,R,A J H  Pump Supply & Repair Ltd,NO
Http://opendatacommunities.org/id/metropolitan-district-council/leeds,Leeds City Council,30/11/2018,Resources and Housing,Leeds Building Services,Supplies and Services,Operational Materials,205,23/11/2018,1811-00057,0.00,-518.00,R,A J H  Pump Supply & Repair Ltd,NO
Http://opendatacommunities.org/id/metropolitan-district-council/leeds,Leeds City Council,30/11/2018,Resources and Housing,Leeds Building Services,Supplies and Services,Other Hired And Contracted Services,265,23/11/2018,1811-00058,0.00,3024.00,R,A J H  Pump Supply & Repair Ltd,NO
Http://opendatacommunities.org/id/metropolitan-district-council/leeds,Leeds City Council,30/11/2018,Resources and Housing,Leeds Building Services,Supplies and Services,Operational Materials,205,23/11/2018,1811-00059,0.00,740.00,R,A J H  Pump Supply & Repair Ltd,NO
Http://opendatacommunities.org/id/metropolitan-district-council/leeds,Leeds City Council,30/11/2018,Resources and Housing,Leeds Building Services,Supplies and Services,Operational Materials,205,23/11/2018,1811-00060,0.00,115.78,R,A J H  Pump Supply & Repair Ltd,NO
Http://opendatacommunities.org/id/metropolitan-district-council/leeds,Leeds City Council,30/11/2018,Resources and Housing,Leeds Building Services,Supplies and Services,Operational Materials,205,23/11/2018,1811-00061,0.00,1720.00,R,A J H  Pump Supply & Repair Ltd,NO
Http://opendatacommunities.org/id/metropolitan-district-council/leeds,Leeds City Council,30/11/2018,Resources and Housing,Leeds Building Services,Supplies and Services,Operational Materials,205,27/11/2018,1811-00062,0.00,1070.00,R,A J H  Pump Supply & Repair Ltd,NO
Http://opendatacommunities.org/id/metropolitan-district-council/leeds,Leeds City Council,30/11/2018,Resources and Housing,Leeds Building Services,Supplies and Services,Operational Materials,205,27/11/2018,1811-00063,0.00,1777.00,R,A J H  Pump Supply & Repair Ltd,NO
Http://opendatacommunities.org/id/metropolitan-district-council/leeds,Leeds City Council,30/11/2018,Resources and Housing,Leeds Building Services,Supplies and Services,Operational Materials,205,27/11/2018,1811-00064,0.00,62.70,R,A J H  Pump Supply & Repair Ltd,NO
Http://opendatacommunities.org/id/metropolitan-district-council/leeds,Leeds City Council,30/11/2018,Resources and Housing,Leeds Building Services,Supplies and Services,Operational Materials,205,27/11/2018,1811-00065,0.00,135.00,R,A J H  Pump Supply & Repair Ltd,NO
Http://opendatacommunities.org/id/metropolitan-district-council/leeds,Leeds City Council,30/11/2018,Resources and Housing,Leeds Building Services,Supplies and Services,Operational Materials,205,27/11/2018,1811-00066,0.00,75.00,R,A J H  Pump Supply & Repair Ltd,NO
Http://opendatacommunities.org/id/metropolitan-district-council/leeds,Leeds City Council,30/11/2018,Resources and Housing,Leeds Building Services,Supplies and Services,Operational Materials,205,27/11/2018,1811-00067,0.00,160.87,R,A J H  Pump Supply & Repair Ltd,NO
Http://opendatacommunities.org/id/metropolitan-district-council/leeds,Leeds City Council,30/11/2018,Resources and Housing,Leeds Building Services,Supplies and Services,Operational Materials,205,27/11/2018,1811-00068,0.00,2425.00,R,A J H  Pump Supply & Repair Ltd,NO
Http://opendatacommunities.org/id/metropolitan-district-council/leeds,Leeds City Council,30/11/2018,Resources and Housing,Leeds Building Services,Supplies and Services,Operational Materials,205,27/11/2018,1811-00069,0.00,17.76,R,A J H  Pump Supply & Repair Ltd,NO
Http://opendatacommunities.org/id/metropolitan-district-council/leeds,Leeds City Council,30/11/2018,Resources and Housing,Leeds Building Services,Supplies and Services,Operational Materials,205,27/11/2018,1811-00070,0.00,55.20,R,A J H  Pump Supply & Repair Ltd,NO
Http://opendatacommunities.org/id/metropolitan-district-council/leeds,Leeds City Council,30/11/2018,Resources and Housing,Leeds Building Services,Supplies and Services,Operational Materials,205,27/11/2018,1811-00071,0.00,208.00,R,A J H  Pump Supply & Repair Ltd,NO
Http://opendatacommunities.org/id/metropolitan-district-council/leeds,Leeds City Council,30/11/2018,Resources and Housing,Leeds Building Services,Supplies and Services,Operational Materials,205,29/11/2018,1811-00072,0.00,20.85,R,A J H  Pump Supply & Repair Ltd,NO
Http://opendatacommunities.org/id/metropolitan-district-council/leeds,Leeds City Council,30/11/2018,Resources and Housing,Leeds Building Services,Supplies and Services,Operational Materials,205,29/11/2018,1811-00073,0.00,33.47,R,A J H  Pump Supply & Repair Ltd,NO
Http://opendatacommunities.org/id/metropolitan-district-council/leeds,Leeds City Council,30/11/2018,Resources and Housing,Leeds Building Services,Supplies and Services,Operational Materials,205,29/11/2018,1811-00074,0.00,20.99,R,A J H  Pump Supply & Repair Ltd,NO
Http://opendatacommunities.org/id/metropolitan-district-council/leeds,Leeds City Council,30/11/2018,Resources and Housing,Leeds Building Services,Supplies and Services,Operational Materials,205,29/11/2018,1811-00075,0.00,41.15,R,A J H  Pump Supply & Repair Ltd,NO
Http://opendatacommunities.org/id/metropolitan-district-council/leeds,Leeds City Council,30/11/2018,Resources and Housing,Leeds Building Services,Supplies and Services,Operational Materials,205,30/11/2018,1811-00076,0.00,110.00,R,A J H  Pump Supply & Repair Ltd,NO
Http://opendatacommunities.org/id/metropolitan-district-council/leeds,Leeds City Council,30/11/2018,Resources and Housing,Leeds Building Services,Supplies and Services,Operational Materials,205,30/11/2018,1811-00077,0.00,88.99,R,A J H  Pump Supply & Repair Ltd,NO
Http://opendatacommunities.org/id/metropolitan-district-council/leeds,Leeds City Council,30/11/2018,Resources and Housing,Leeds Building Services,Supplies and Services,Operational Materials,205,30/11/2018,1811-00078,0.00,140.67,R,A J H  Pump Supply & Repair Ltd,NO
Http://opendatacommunities.org/id/metropolitan-district-council/leeds,Leeds City Council,30/11/2018,Resources and Housing,Leeds Building Services,Supplies and Services,Operational Materials,205,30/11/2018,1811-00079,0.00,260.31,R,A J H  Pump Supply & Repair Ltd,NO
Http://opendatacommunities.org/id/metropolitan-district-council/leeds,Leeds City Council,30/11/2018,Resources and Housing,Leeds Building Services,Supplies and Services,Operational Materials,205,30/11/2018,1811-00080,0.00,404.75,R,A J H  Pump Supply & Repair Ltd,NO
Http://opendatacommunities.org/id/metropolitan-district-council/leeds,Leeds City Council,30/11/2018,Resources and Housing,Leeds Building Services,Supplies and Services,Operational Materials,205,30/11/2018,1811-00081,0.00,73.95,R,A J H  Pump Supply & Repair Ltd,NO
Http://opendatacommunities.org/id/metropolitan-district-council/leeds,Leeds City Council,30/11/2018,Resources and Housing,Leeds Building Services,Supplies and Services,Operational Materials,205,30/11/2018,1811-00082,0.00,230.85,R,A J H  Pump Supply & Repair Ltd,NO
Http://opendatacommunities.org/id/metropolitan-district-council/leeds,Leeds City Council,30/11/2018,Resources and Housing,Leeds Building Services,Supplies and Services,Operational Materials,205,30/11/2018,1811-00083,0.00,339.52,R,A J H  Pump Supply & Repair Ltd,NO
Http://opendatacommunities.org/id/metropolitan-district-council/leeds,Leeds City Council,30/11/2018,Resources and Housing,Leeds Building Services,Supplies and Services,Operational Materials,205,30/11/2018,1811-00084,0.00,682.50,R,A J H  Pump Supply & Repair Ltd,NO
Http://opendatacommunities.org/id/metropolitan-district-council/leeds,Leeds City Council,30/11/2018,Resources and Housing,Leeds Building Services,Supplies and Services,Operational Materials,205,30/11/2018,1811-00085,0.00,310.22,R,A J H  Pump Supply & Repair Ltd,NO
Http://opendatacommunities.org/id/metropolitan-district-council/leeds,Leeds City Council,30/11/2018,Resources and Housing,Leeds Building Services,Supplies and Services,Operational Materials,205,30/11/2018,1811-00086,0.00,79.95,R,A J H  Pump Supply & Repair Ltd,NO
Http://opendatacommunities.org/id/metropolitan-district-council/leeds,Leeds City Council,30/11/2018,Resources and Housing,Leeds Building Services,Supplies and Services,Operational Materials,205,30/11/2018,1811-00087,0.00,149.00,R,A J H  Pump Supply & Repair Ltd,NO
Http://opendatacommunities.org/id/metropolitan-district-council/leeds,Leeds City Council,30/11/2018,Resources and Housing,Leeds Building Services,Supplies and Services,Operational Materials,205,30/11/2018,1811-00088,0.00,100.50,R,A J H  Pump Supply & Repair Ltd,NO
Http://opendatacommunities.org/id/metropolitan-district-council/leeds,Leeds City Council,30/11/2018,Resources and Housing,Leeds Building Services,Supplies and Services,Operational Materials,205,30/11/2018,1811-00089,0.00,168.59,R,A J H  Pump Supply & Repair Ltd,NO
Http://opendatacommunities.org/id/metropolitan-district-council/leeds,Leeds City Council,30/11/2018,Resources and Housing,Leeds Building Services,Supplies and Services,Operational Materials,205,30/11/2018,1811-00090,0.00,151.80,R,A J H  Pump Supply & Repair Ltd,NO
Http://opendatacommunities.org/id/metropolitan-district-council/leeds,Leeds City Council,30/11/2018,Resources and Housing,Leeds Building Services,Supplies and Services,Operational Materials,205,30/11/2018,1811-00091,0.00,828.20,R,A J H  Pump Supply & Repair Ltd,NO
Http://opendatacommunities.org/id/metropolitan-district-council/leeds,Leeds City Council,30/11/2018,Resources and Housing,Leeds Building Services,Supplies and Services,Operational Materials,205,30/11/2018,1811-00092,0.00,33.85,R,A J H  Pump Supply & Repair Ltd,NO
Http://opendatacommunities.org/id/metropolitan-district-council/leeds,Leeds City Council,30/11/2018,Resources and Housing,Leeds Building Services,Supplies and Services,Operational Materials,205,30/11/2018,1811-00093,0.00,1495.00,R,A J H  Pump Supply & Repair Ltd,NO
Http://opendatacommunities.org/id/metropolitan-district-council/leeds,Leeds City Council,30/11/2018,Resources and Housing,Leeds Building Services,Supplies and Services,Operational Materials,205,30/11/2018,1811-00094,0.00,33.59,R,A J H  Pump Supply & Repair Ltd,NO
Http://opendatacommunities.org/id/metropolitan-district-council/leeds,Leeds City Council,30/11/2018,Resources and Housing,Leeds Building Services,Supplies and Services,Operational Materials,205,30/11/2018,1811-00095,0.00,144.00,R,A J H  Pump Supply & Repair Ltd,NO
Http://opendatacommunities.org/id/metropolitan-district-council/leeds,Leeds City Council,30/11/2018,Resources and Housing,Leeds Building Services,Supplies and Services,Operational Materials,205,30/11/2018,1811-00096,0.00,283.60,R,A J H  Pump Supply & Repair Ltd,NO
Http://opendatacommunities.org/id/metropolitan-district-council/leeds,Leeds City Council,30/11/2018,Resources and Housing,Leeds Building Services,Supplies and Services,Operational Materials,205,30/11/2018,1811-00097,0.00,225.00,R,A J H  Pump Supply & Repair Ltd,NO
Http://opendatacommunities.org/id/metropolitan-district-council/leeds,Leeds City Council,30/11/2018,Resources and Housing,Leeds Building Services,Supplies and Services,Operational Materials,205,30/11/2018,1811-00098,0.00,536.00,R,A J H  Pump Supply & Repair Ltd,NO
Http://opendatacommunities.org/id/metropolitan-district-council/leeds,Leeds City Council,30/11/2018,Resources and Housing,Leeds Building Services,Supplies and Services,Operational Materials,205,30/11/2018,1811-00099,0.00,60.82,R,A J H  Pump Supply & Repair Ltd,NO
Http://opendatacommunities.org/id/metropolitan-district-council/leeds,Leeds City Council,30/11/2018,Communities and Environment,Parks and Countryside,Supplies and Services,Crockery  Cutlery & Utensils,221,30/11/2018,1811-00100,0.00,5342.40,R,A J Promotions,NO
Http://opendatacommunities.org/id/metropolitan-district-council/leeds,Leeds City Council,30/11/2018,City Development,Libraries  Arts & Heritage,Supplies and Services,Other Hired And Contracted Services,265,05/11/2018,1811-00101,0.00,460.00,R,A J Wightman,NO
Http://opendatacommunities.org/id/metropolitan-district-council/leeds,Leeds City Council,30/11/2018,Children and Families,Social Care,Third Party Payments,Services Rendered By Other Organisations,511,02/11/2018,1811-00102,0.00,71.00,R,REDACTED PERSONAL DATA,NO
Http://opendatacommunities.org/id/metropolitan-district-council/leeds,Leeds City Council,30/11/2018,Children and Families,Social Care,Third Party Payments,Services Rendered By Other Organisations,511,16/11/2018,1811-00103,0.00,297.50,R,REDACTED PERSONAL DATA,NO
Http://opendatacommunities.org/id/metropolitan-district-council/leeds,Leeds City Council,30/11/2018,Children and Families,Social Care,Third Party Payments,Services Rendered By Other Organisations,511,21/11/2018,1811-00104,0.00,535.50,R,REDACTED PERSONAL DATA,NO
Http://opendatacommunities.org/id/metropolitan-district-council/leeds,Leeds City Council,30/11/2018,Adults and Health,Public Health,Third Party Payments,Public Health Commissioned Services,526,16/11/2018,1811-00105,0.00,240.00,R,A Khan & K Muneer,NO
Http://opendatacommunities.org/id/metropolitan-district-council/leeds,Leeds City Council,30/11/2018,Children and Families,Social Care,Third Party Payments,Services Rendered By Voluntary Sector,505,26/11/2018,1811-00106,0.00,840.00,R,A Little Something Extra Ltd,NO
Http://opendatacommunities.org/id/metropolitan-district-council/leeds,Leeds City Council,30/11/2018,Children and Families,Social Care,Third Party Payments,Allowances,546,16/11/2018,1811-00107,0.00,93.03,R,REDACTED PERSONAL DATA,NO
Http://opendatacommunities.org/id/metropolitan-district-council/leeds,Leeds City Council,30/11/2018,Communities and Environment,Customer Access,Supplies and Services,Other Hired And Contracted Services,265,02/11/2018,1811-00108,0.00,952.50,R,A Mohammed,NO
Http://opendatacommunities.org/id/metropolitan-district-council/leeds,Leeds City Council,30/11/2018,Communities and Environment,Customer Access,Supplies and Services,Other Hired And Contracted Services,265,01/11/2018,1811-00109,0.00,36.00,R,A Musalam,NO
Http://opendatacommunities.org/id/metropolitan-district-council/leeds,Leeds City Council,30/11/2018,Communities and Environment,Customer Access,Supplies and Services,Other Hired And Contracted Services,265,02/11/2018,1811-00110,0.00,347.00,R,A Namaki,NO
Http://opendatacommunities.org/id/metropolitan-district-council/leeds,Leeds City Council,30/11/2018,Communities and Environment,Parks and Countryside,Supplies and Services,Other Hired And Contracted Services,265,16/11/2018,1811-00111,0.00,1428.80,R,A Nicholls,NO
Http://opendatacommunities.org/id/metropolitan-district-council/leeds,Leeds City Council,30/11/2018,Children and Families,Social Care,Third Party Payments,Services Rendered By Other Organisations,511,16/11/2018,1811-00112,0.00,148.75,R,A Spivey,NO
Http://opendatacommunities.org/id/metropolitan-district-council/leeds,Leeds City Council,30/11/2018,Resources and Housing,Shared Services,Supplies and Services,Other Hired And Contracted Services,265,07/11/2018,1811-00113,0.00,46.25,R,A Star Couriers Ltd,NO
Http://opendatacommunities.org/id/metropolitan-district-council/leeds,Leeds City Council,30/11/2018,Resources and Housing,Shared Services,Supplies and Services,Other Hired And Contracted Services,265,30/11/2018,1811-00114,0.00,65.00,R,A Star Couriers Ltd,NO
Http://opendatacommunities.org/id/metropolitan-district-council/leeds,Leeds City Council,30/11/2018,Communities and Environment,Communities,Supplies and Services,Other Hired And Contracted Services,265,13/11/2018,1811-00115,0.00,125.00,R,A Strniskova,NO
Http://opendatacommunities.org/id/metropolitan-district-council/leeds,Leeds City Council,30/11/2018,Communities and Environment,Communities,Supplies and Services,Other Hired And Contracted Services,265,13/11/2018,1811-00116,0.00,100.00,R,A Strniskova,NO
Http://opendatacommunities.org/id/metropolitan-district-council/leeds,Leeds City Council,30/11/2018,City Development,Markets & City Centre Management,Supplies and Services,Publication And Promotion,267,30/11/2018,1811-00117,0.00,350.00,R,A T Graphics Limited,NO
Http://opendatacommunities.org/id/metropolitan-district-council/leeds,Leeds City Council,30/11/2018,Children and Families,Social Care,Third Party Payments,Services Rendered By Other Organisations,511,21/11/2018,1811-00118,0.00,116.03,R,REDACTED PERSONAL DATA,NO
Http://opendatacommunities.org/id/metropolitan-district-council/leeds,Leeds City Council,30/11/2018,Children and Families,Social Care,Third Party Payments,Services Rendered By Other Organisations,511,02/11/2018,1811-00119,0.00,106.67,R,REDACTED PERSONAL DATA,NO
Http://opendatacommunities.org/id/metropolitan-district-council/leeds,Leeds City Council,30/11/2018,Children and Families,Social Care,Third Party Payments,Services Rendered By Other Organisations,511,16/11/2018,1811-00120,0.00,42.50,R,REDACTED PERSONAL DATA,NO
Http://opendatacommunities.org/id/metropolitan-district-council/leeds,Leeds City Council,30/11/2018,Children and Families,Social Care,Third Party Payments,Services Rendered By Other Organisations,511,02/11/2018,1811-00121,0.00,125.00,R,REDACTED PERSONAL DATA,NO
Http://opendatacommunities.org/id/metropolitan-district-council/leeds,Leeds City Council,30/11/2018,Children and Families,Social Care,Third Party Payments,Services Rendered By Other Organisations,511,16/11/2018,1811-00122,0.00,223.13,R,REDACTED PERSONAL DATA,NO
Http://opendatacommunities.org/id/metropolitan-district-council/leeds,Leeds City Council,30/11/2018,Children and Families,Social Care,Third Party Payments,Services Rendered By Other Organisations,511,21/11/2018,1811-00123,0.00,267.75,R,REDACTED PERSONAL DATA,NO
Http://opendatacommunities.org/id/metropolitan-district-council/leeds,Leeds City Council,30/11/2018,Children and Families,Social Care,Third Party Payments,Services Rendered By Other Organisations,511,16/11/2018,1811-00124,0.00,471.75,R,REDACTED PERSONAL DATA,NO
Http://opendatacommunities.org/id/metropolitan-district-council/leeds,Leeds City Council,30/11/2018,Children and Families,Social Care,Third Party Payments,General External Residential Placements,507,08/11/2018,1811-00125,0.00,18422.86,R,A Wilderness Way Ltd,NO
Http://opendatacommunities.org/id/metropolitan-district-council/leeds,Leeds City Council,30/11/2018,Children and Families,Social Care,Third Party Payments,General External Residential Placements,507,27/11/2018,1811-00126,0.00,196.20,R,A Wilderness Way Ltd,NO
Http://opendatacommunities.org/id/metropolitan-district-council/leeds,Leeds City Council,30/11/2018,Children and Families,Social Care,Third Party Payments,General External Residential Placements,507,27/11/2018,1811-00127,0.00,49.05,R,A Wilderness Way Ltd,NO
Http://opendatacommunities.org/id/metropolitan-district-council/leeds,Leeds City Council,30/11/2018,Children and Families,Social Care,Third Party Payments,General External Residential Placements,507,27/11/2018,1811-00128,0.00,490.50,R,A Wilderness Way Ltd,NO
Http://opendatacommunities.org/id/metropolitan-district-council/leeds,Leeds City Council,30/11/2018,Communities and Environment,Waste Management,Capital,Furniture And Equipment,5,07/11/2018,1811-00129,0.00,-2769.00,C,A&C Weber Uk Ltd,NO
Http://opendatacommunities.org/id/metropolitan-district-council/leeds,Leeds City Council,30/11/2018,Communities and Environment,Waste Management,Capital,Furniture And Equipment,5,07/11/2018,1811-00130,0.00,2769.00,C,A&C Weber Uk Ltd,NO
Http://opendatacommunities.org/id/metropolitan-district-council/leeds,Leeds City Council,30/11/2018,Communities and Environment,Waste Management,Capital,Furniture And Equipment,5,13/11/2018,1811-00131,0.00,4515.00,C,A&C Weber Uk Ltd,NO
Http://opendatacommunities.org/id/metropolitan-district-council/leeds,Leeds City Council,30/11/2018,Resources and Housing,Leeds Building Services,Employees,Training & Development,70,26/11/2018,1811-00132,0.00,415.00,R,Aaa Training Co Ltd,NO
Http://opendatacommunities.org/id/metropolitan-district-council/leeds,Leeds City Council,30/11/2018,Resources and Housing,Leeds Building Services,Employees,Training & Development,70,26/11/2018,1811-00133,0.00,775.00,R,Aaa Training Co Ltd,NO
Http://opendatacommunities.org/id/metropolitan-district-council/leeds,Leeds City Council As Accountable Body,30/11/2018,Social Services Pooled Budgets,Leeds Community Equip Store Pooled Budgt,Supplies and Services,Other Equipment,203,23/11/2018,1811-00134,0.00,135.00,R,Aat (Gb) Ltd,NO
Http://opendatacommunities.org/id/metropolitan-district-council/leeds,Leeds City Council As Accountable Body,30/11/2018,Social Services Pooled Budgets,Leeds Community Equip Store Pooled Budgt,Supplies and Services,Other Equipment,203,23/11/2018,1811-00135,0.00,874.00,R,Aat (Gb) Ltd,NO
Http://opendatacommunities.org/id/metropolitan-district-council/leeds,Leeds City Council,30/11/2018,Adults and Health,Social Services Support Services,Transport,Public Transport Expenses,310,02/11/2018,1811-00136,0.00,272.00,R,Ab Cars,NO
Http://opendatacommunities.org/id/metropolitan-district-council/leeds,Leeds City Council,30/11/2018,City Development,Libraries  Arts & Heritage,Supplies and Services,Other Hired And Contracted Services,265,30/11/2018,1811-00137,0.00,-699.00,R,Ab Print Group Limited,NO
Http://opendatacommunities.org/id/metropolitan-district-council/leeds,Leeds City Council,30/11/2018,City Development,Libraries  Arts & Heritage,Supplies and Services,Other Hired And Contracted Services,265,30/11/2018,1811-00138,0.00,5900.00,R,Ab Print Group Limited,NO
Http://opendatacommunities.org/id/metropolitan-district-council/leeds,Leeds City Council,30/11/2018,Communities and Environment,Parks And Countryside  ,Supplies and Services,Resaleable Materials,204,29/10/2018,1811-00139,0.00,84.60,R,Abacus Cards Ltd,YES
Http://opendatacommunities.org/id/metropolitan-district-council/leeds,Leeds City Council,30/11/2018,Communities and Environment,Car Parking Services  ,Supplies and Services,Postages,212,15/10/2018,1811-00140,0.00,14.50,R,Abacus Express,YES
Http://opendatacommunities.org/id/metropolitan-district-council/leeds,Leeds City Council,30/11/2018,Children and Families,Social Care,Support Services,Legal Disbursements,411,28/11/2018,1811-00141,0.00,31.02,R,Abacus Express Limited,NO
Http://opendatacommunities.org/id/metropolitan-district-council/leeds,Leeds City Council,30/11/2018,Adults and Health,Public Health,Third Party Payments,Public Health Commissioned Services,526,16/11/2018,1811-00142,0.00,1055.00,R,Abbey Grange Medical Practice,NO
Http://opendatacommunities.org/id/metropolitan-district-council/leeds,Leeds City Council,30/11/2018,Adults and Health,Services For Adults Under 65 Mental/Dis,Third Party Payments,Nursing Home,570,14/11/2018,1811-00143,0.00,1852.00,R,Abbey Grange Nursing Home,NO
Http://opendatacommunities.org/id/metropolitan-district-council/leeds,Leeds City Council,30/11/2018,Children and Families,Social Care,Supplies and Services,Food & Drink,231,23/11/2018,1811-00144,0.00,895.50,R,Abbey Multi Academy Trust,NO
Http://opendatacommunities.org/id/metropolitan-district-council/leeds,Leeds City Council,30/11/2018,Children and Families,Social Care,Premises,Hire of meeting rooms,143,23/11/2018,1811-00145,0.00,30.00,R,Abbey Multi Academy Trust,NO
Http://opendatacommunities.org/id/metropolitan-district-council/leeds,Leeds City Council,30/11/2018,Children and Families,Social Care,Supplies and Services,Food & Drink,231,23/11/2018,1811-00146,0.00,42.00,R,Abbey Multi Academy Trust,NO
Http://opendatacommunities.org/id/metropolitan-district-council/leeds,Leeds City Council,30/11/2018,Children and Families,Learning,Supplies and Services,Other Hired And Contracted Services,265,23/11/2018,1811-00147,0.00,176.00,R,Abbey Multi Academy Trust,NO
Http://opendatacommunities.org/id/metropolitan-district-council/leeds,Leeds City Council,30/11/2018,Children and Families,Social Care,Third Party Payments,Services Rendered By Other Organisations,511,02/11/2018,1811-00148,0.00,272.67,R,Abc Daycare And Ozone Out Of School,NO
Http://opendatacommunities.org/id/metropolitan-district-council/leeds,Leeds City Council,30/11/2018,Children and Families,Social Care,Third Party Payments,Services Rendered By Other Organisations,511,16/11/2018,1811-00149,0.00,6815.94,R,Abc Daycare And Ozone Out Of School,NO
Http://opendatacommunities.org/id/metropolitan-district-council/leeds,Leeds City Council,30/11/2018,Children and Families,Social Care,Third Party Payments,Services Rendered By Other Organisations,511,21/11/2018,1811-00150,0.00,2428.88,R,Abc Daycare And Ozone Out Of School,NO
Http://opendatacommunities.org/id/metropolitan-district-council/leeds,Leeds City Council,30/11/2018,Children and Families,Social Care,Third Party Payments,Services Rendered By Other Organisations,511,02/11/2018,1811-00151,0.00,1362.33,R,Abc Nursery At Lufc,NO
Http://opendatacommunities.org/id/metropolitan-district-council/leeds,Leeds City Council,30/11/2018,Children and Families,Social Care,Third Party Payments,Services Rendered By Other Organisations,511,16/11/2018,1811-00152,0.00,5131.88,R,Abc Nursery At Lufc,NO
Http://opendatacommunities.org/id/metropolitan-district-council/leeds,Leeds City Council,30/11/2018,Children and Families,Social Care,Third Party Payments,Services Rendered By Other Organisations,511,21/11/2018,1811-00153,0.00,1338.75,R,Abc Nursery At Lufc,NO
Http://opendatacommunities.org/id/metropolitan-district-council/leeds,Leeds City Council,30/11/2018,Children and Families,Social Care,Third Party Payments,Services Rendered By Other Organisations,511,02/11/2018,1811-00154,0.00,630.33,R,Abc@D'S Childcare Services,NO
Http://opendatacommunities.org/id/metropolitan-district-council/leeds,Leeds City Council,30/11/2018,Children and Families,Social Care,Third Party Payments,Services Rendered By Other Organisations,511,16/11/2018,1811-00155,0.00,6024.38,R,Abc@D'S Childcare Services,NO
Http://opendatacommunities.org/id/metropolitan-district-council/leeds,Leeds City Council,30/11/2018,Children and Families,Social Care,Third Party Payments,Services Rendered By Other Organisations,511,21/11/2018,1811-00156,0.00,1071.00,R,Abc@D'S Childcare Services,NO
Http://opendatacommunities.org/id/metropolitan-district-council/leeds,Leeds City Council,30/11/2018,Communities and Environment,Customer Access,Supplies and Services,Other Hired And Contracted Services,265,02/11/2018,1811-00157,0.00,103.50,R,Abdulahad Denha,NO
Http://opendatacommunities.org/id/metropolitan-district-council/leeds,Leeds City Council,30/11/2018,Communities and Environment,Elections  Licensing and Registration,Income,Admissions  Booking Fees & Ticket Sales,933,22/11/2018,1811-00158,0.00,155.00,R,REDACTED PERSONAL DATA,NO
Http://opendatacommunities.org/id/metropolitan-district-council/leeds,Leeds City Council,30/11/2018,Strategic Landlord,Housing Management,Supplies and Services,Grants To Voluntary Organisations,293,07/11/2018,1811-00159,0.00,688.00,R,#N/A,NO
Http://opendatacommunities.org/id/metropolitan-district-council/leeds,Leeds City Council,30/11/2018,Adults and Health,Services For Older People - 65 And Over,Third Party Payments,Nursing Home,570,14/11/2018,1811-00160,0.00,27821.43,R,Aberford Hall,NO
Http://opendatacommunities.org/id/metropolitan-district-council/leeds,Leeds City Council,30/11/2018,Adults and Health,Services For Older People - 65 And Over,Third Party Payments,Nursing Care Dementia,574,14/11/2018,1811-00161,0.00,-1141.80,R,Aberford Hall,NO
Http://opendatacommunities.org/id/metropolitan-district-council/leeds,Leeds City Council,30/11/2018,Adults and Health,Services For Older People - 65 And Over,Third Party Payments,Residential,580,14/11/2018,1811-00162,0.00,1531.12,R,Aberford Hall,NO
Http://opendatacommunities.org/id/metropolitan-district-council/leeds,Leeds City Council,30/11/2018,Resources and Housing,Leeds Building Services,Supplies and Services,Operational Materials,205,05/11/2018,1811-00163,0.00,6.67,R,Abi Garage Doors Ltd,NO
Http://opendatacommunities.org/id/metropolitan-district-council/leeds,Leeds City Council,30/11/2018,Resources and Housing,Leeds Building Services,Supplies and Services,Operational Materials,205,05/11/2018,1811-00164,0.00,6.67,R,Abi Garage Doors Ltd,NO
Http://opendatacommunities.org/id/metropolitan-district-council/leeds,Leeds City Council,30/11/2018,Resources and Housing,Leeds Building Services,Supplies and Services,Operational Materials,205,05/11/2018,1811-00165,0.00,10.83,R,Abi Garage Doors Ltd,NO
Http://opendatacommunities.org/id/metropolitan-district-council/leeds,Leeds City Council,30/11/2018,Resources and Housing,Leeds Building Services,Supplies and Services,Operational Materials,205,15/11/2018,1811-00166,0.00,10.00,R,Abi Garage Doors Ltd,NO
Http://opendatacommunities.org/id/metropolitan-district-council/leeds,Leeds City Council,30/11/2018,Resources and Housing,Leeds Building Services,Supplies and Services,Operational Materials,205,15/11/2018,1811-00167,0.00,10.00,R,Abi Garage Doors Ltd,NO
Http://opendatacommunities.org/id/metropolitan-district-council/leeds,Leeds City Council,30/11/2018,Resources and Housing,Leeds Building Services,Supplies and Services,Operational Materials,205,15/11/2018,1811-00168,0.00,10.00,R,Abi Garage Doors Ltd,NO
Http://opendatacommunities.org/id/metropolitan-district-council/leeds,Leeds City Council,30/11/2018,Resources and Housing,Leeds Building Services,Supplies and Services,Operational Materials,205,15/11/2018,1811-00169,0.00,10.00,R,Abi Garage Doors Ltd,NO
Http://opendatacommunities.org/id/metropolitan-district-council/leeds,Leeds City Council,30/11/2018,Resources and Housing,Leeds Building Services,Supplies and Services,Operational Materials,205,15/11/2018,1811-00170,0.00,16.67,R,Abi Garage Doors Ltd,NO
Http://opendatacommunities.org/id/metropolitan-district-council/leeds,Leeds City Council,30/11/2018,Resources and Housing,Leeds Building Services,Supplies and Services,Operational Materials,205,15/11/2018,1811-00171,0.00,16.67,R,Abi Garage Doors Ltd,NO
Http://opendatacommunities.org/id/metropolitan-district-council/leeds,Leeds City Council,30/11/2018,Resources and Housing,Leeds Building Services,Supplies and Services,Operational Materials,205,15/11/2018,1811-00172,0.00,28.50,R,Abi Garage Doors Ltd,NO
Http://opendatacommunities.org/id/metropolitan-district-council/leeds,Leeds City Council,30/11/2018,Resources and Housing,Leeds Building Services,Supplies and Services,Operational Materials,205,16/11/2018,1811-00173,0.00,260.45,R,Abi Garage Doors Ltd,NO
Http://opendatacommunities.org/id/metropolitan-district-council/leeds,Leeds City Council,30/11/2018,Resources and Housing,Leeds Building Services,Supplies and Services,Operational Materials,205,22/11/2018,1811-00174,0.00,260.45,R,Abi Garage Doors Ltd,NO
Http://opendatacommunities.org/id/metropolitan-district-council/leeds,Leeds City Council,30/11/2018,Resources and Housing,Leeds Building Services,Supplies and Services,Operational Materials,205,30/11/2018,1811-00175,0.00,260.45,R,Abi Garage Doors Ltd,NO
Http://opendatacommunities.org/id/metropolitan-district-council/leeds,Leeds City Council,30/11/2018,Resources and Housing,Leeds Building Services,Supplies and Services,Operational Materials,205,30/11/2018,1811-00176,0.00,260.45,R,Abi Garage Doors Ltd,NO
Http://opendatacommunities.org/id/metropolitan-district-council/leeds,Leeds City Council,30/11/2018,Resources and Housing,Technology,Supplies and Services,Computer Software & Equipment,214,09/11/2018,1811-00177,0.00,3890.00,R,Abm Critical Solutions Ltd,NO
Http://opendatacommunities.org/id/metropolitan-district-council/leeds,Leeds City Council,30/11/2018,Children and Families,Social Care  ,Transfer Payments,Young Peoples Rewards,653,25/10/2018,1811-00178,0.00,260.00,R,Abu 2 Go Ltd,YES
Http://opendatacommunities.org/id/metropolitan-district-council/leeds,Leeds City Council,30/11/2018,Children and Families,Social Care,Employees,Agency Staff,8,02/11/2018,1811-00179,0.00,2925.00,R,Academic Appointments Ltd,NO
Http://opendatacommunities.org/id/metropolitan-district-council/leeds,Leeds City Council,30/11/2018,Children and Families,Social Care,Employees,Agency Staff,8,09/11/2018,1811-00180,0.00,3170.00,R,Academic Appointments Ltd,NO
Http://opendatacommunities.org/id/metropolitan-district-council/leeds,Leeds City Council,30/11/2018,Children and Families,Social Care,Supplies and Services,Teaching Materials,202,16/11/2018,1811-00181,0.00,3630.00,R,Academic Appointments Ltd,NO
Http://opendatacommunities.org/id/metropolitan-district-council/leeds,Leeds City Council,30/11/2018,Children and Families,Social Care,Supplies and Services,Teaching Materials,202,29/11/2018,1811-00182,0.00,522.00,R,Academic Appointments Ltd,NO
Http://opendatacommunities.org/id/metropolitan-district-council/leeds,Leeds City Council,30/11/2018,Communities and Environment,Community Safety,Transport,Hire Of Movable Plant & Machinery,315,28/11/2018,1811-00183,0.00,1310.86,R,Access Hire Nationwide Ltd,NO
Http://opendatacommunities.org/id/metropolitan-district-council/leeds,Leeds City Council,30/11/2018,Resources and Housing,Commercial Services  ,Supplies and Services,Operational Materials,205,16/10/2018,1811-00184,0.00,334.66,R,Access Locksmiths,YES
Http://opendatacommunities.org/id/metropolitan-district-council/leeds,Leeds City Council,30/11/2018,Communities and Environment,Communities  ,Supplies and Services,Office Furniture & Equipment,201,17/10/2018,1811-00185,0.00,59.25,R,Access Locksmiths,YES
Http://opendatacommunities.org/id/metropolitan-district-council/leeds,Leeds City Council,30/11/2018,Resources and Housing,HRA Housing Leeds,Capital,Construction,3,02/11/2018,1811-00186,0.00,53.08,C,Access Locksmiths (Leeds) Limited,NO
Http://opendatacommunities.org/id/metropolitan-district-council/leeds,Leeds City Council,30/11/2018,Resources and Housing,Leeds Building Services,Premises,Maintenance Of Buildings,101,02/11/2018,1811-00187,0.00,31.50,R,Access Locksmiths (Leeds) Limited,NO
Http://opendatacommunities.org/id/metropolitan-district-council/leeds,Leeds City Council,30/11/2018,Strategic Landlord,Housing Management,Supplies and Services,Resaleable Materials,204,02/11/2018,1811-00188,0.00,34.20,R,Access Locksmiths (Leeds) Limited,NO
Http://opendatacommunities.org/id/metropolitan-district-council/leeds,Leeds City Council,30/11/2018,Strategic Landlord,Housing Management,Supplies and Services,Resaleable Materials,204,02/11/2018,1811-00189,0.00,228.00,R,Access Locksmiths (Leeds) Limited,NO
Http://opendatacommunities.org/id/metropolitan-district-council/leeds,Leeds City Council,30/11/2018,Strategic Landlord,Housing Management,Supplies and Services,Resaleable Materials,204,02/11/2018,1811-00190,0.00,40.36,R,Access Locksmiths (Leeds) Limited,NO
Http://opendatacommunities.org/id/metropolitan-district-council/leeds,Leeds City Council,30/11/2018,Strategic Landlord,Housing Management,Supplies and Services,Resaleable Materials,204,02/11/2018,1811-00191,0.00,80.72,R,Access Locksmiths (Leeds) Limited,NO
Http://opendatacommunities.org/id/metropolitan-district-council/leeds,Leeds City Council,30/11/2018,Resources and Housing,HRA Housing Leeds,Capital,Construction,3,02/11/2018,1811-00192,0.00,157.86,C,Access Locksmiths (Leeds) Limited,NO
Http://opendatacommunities.org/id/metropolitan-district-council/leeds,Leeds City Council,30/11/2018,Strategic Landlord,Housing Management,Premises,Premises Security Services,162,02/11/2018,1811-00193,0.00,25.00,R,Access Locksmiths (Leeds) Limited,NO
Http://opendatacommunities.org/id/metropolitan-district-council/leeds,Leeds City Council,30/11/2018,Resources and Housing,HRA Housing Leeds,Capital,Other Costs,7,02/11/2018,1811-00194,0.00,126.90,C,Access Locksmiths (Leeds) Limited,NO
Http://opendatacommunities.org/id/metropolitan-district-council/leeds,Leeds City Council,30/11/2018,Communities and Environment,Waste Management,Supplies and Services,Operational Furniture And Equipment,203,02/11/2018,1811-00195,0.00,572.50,R,Access Locksmiths (Leeds) Limited,NO
Http://opendatacommunities.org/id/metropolitan-district-council/leeds,Leeds City Council,30/11/2018,Resources and Housing,Leeds Building Services,Supplies and Services,Operational Materials,205,07/11/2018,1811-00196,0.00,18.15,R,Access Locksmiths (Leeds) Limited,NO
Http://opendatacommunities.org/id/metropolitan-district-council/leeds,Leeds City Council,30/11/2018,Strategic Landlord,Property and Contracts,Premises,General Maintenance,104,14/11/2018,1811-00197,0.00,37.50,R,Access Locksmiths (Leeds) Limited,NO
Http://opendatacommunities.org/id/metropolitan-district-council/leeds,Leeds City Council,30/11/2018,Strategic Landlord,Property and Contracts,Premises,General Maintenance,104,14/11/2018,1811-00198,0.00,257.33,R,Access Locksmiths (Leeds) Limited,NO
Http://opendatacommunities.org/id/metropolitan-district-council/leeds,Leeds City Council,30/11/2018,Resources and Housing,HRA Housing Leeds,Capital,Other Costs,7,14/11/2018,1811-00199,0.00,140.53,C,Access Locksmiths (Leeds) Limited,NO
Http://opendatacommunities.org/id/metropolitan-district-council/leeds,Leeds City Council,30/11/2018,Strategic Landlord,Housing Management,Supplies and Services,Resaleable Materials,204,14/11/2018,1811-00200,0.00,60.54,R,Access Locksmiths (Leeds) Limited,NO
Http://opendatacommunities.org/id/metropolitan-district-council/leeds,Leeds City Council,30/11/2018,Strategic Landlord,Housing Management,Supplies and Services,Resaleable Materials,204,14/11/2018,1811-00201,0.00,84.25,R,Access Locksmiths (Leeds) Limited,NO
Http://opendatacommunities.org/id/metropolitan-district-council/leeds,Leeds City Council,30/11/2018,Resources and Housing,HRA Housing Leeds,Capital,Furniture And Equipment,5,16/11/2018,1811-00202,0.00,3819.90,C,Access Locksmiths (Leeds) Limited,NO
Http://opendatacommunities.org/id/metropolitan-district-council/leeds,Leeds City Council,30/11/2018,Resources and Housing,Commercial Services,Supplies and Services,Operational Furniture And Equipment,203,19/11/2018,1811-00203,0.00,16.00,R,Access Locksmiths (Leeds) Limited,NO
Http://opendatacommunities.org/id/metropolitan-district-council/leeds,Leeds City Council,30/11/2018,Resources and Housing,Commercial Services,Transport,Plant Hire - By Directorate,305,19/11/2018,1811-00204,0.00,312.00,R,Access Locksmiths (Leeds) Limited,NO
Http://opendatacommunities.org/id/metropolitan-district-council/leeds,Leeds City Council,30/11/2018,Resources and Housing,Commercial Services,Supplies and Services,Operational Furniture And Equipment,203,19/11/2018,1811-00205,0.00,55.50,R,Access Locksmiths (Leeds) Limited,NO
Http://opendatacommunities.org/id/metropolitan-district-council/leeds,Leeds City Council,30/11/2018,Resources and Housing,Commercial Services,Supplies and Services,Operational Furniture And Equipment,203,19/11/2018,1811-00206,0.00,40.36,R,Access Locksmiths (Leeds) Limited,NO
Http://opendatacommunities.org/id/metropolitan-district-council/leeds,Leeds City Council,30/11/2018,Resources and Housing,Commercial Services,Supplies and Services,Operational Furniture And Equipment,203,22/11/2018,1811-00207,0.00,20.18,R,Access Locksmiths (Leeds) Limited,NO
Http://opendatacommunities.org/id/metropolitan-district-council/leeds,Leeds City Council,30/11/2018,Strategic Landlord,Property and Contracts,Premises,General Maintenance,104,28/11/2018,1811-00208,0.00,170.18,R,Access Locksmiths (Leeds) Limited,NO
Http://opendatacommunities.org/id/metropolitan-district-council/leeds,Leeds City Council,30/11/2018,Strategic Landlord,Property and Contracts,Premises,General Maintenance,104,28/11/2018,1811-00209,0.00,103.00,R,Access Locksmiths (Leeds) Limited,NO
Http://opendatacommunities.org/id/metropolitan-district-council/leeds,Leeds City Council,30/11/2018,Strategic Landlord,Property and Contracts,Premises,General Maintenance,104,29/11/2018,1811-00210,0.00,297.00,R,Access Locksmiths (Leeds) Limited,NO
Http://opendatacommunities.org/id/metropolitan-district-council/leeds,Leeds City Council,30/11/2018,Strategic Landlord,Property and Contracts,Premises,General Maintenance,104,29/11/2018,1811-00211,0.00,231.04,R,Access Locksmiths (Leeds) Limited,NO
Http://opendatacommunities.org/id/metropolitan-district-council/leeds,Leeds City Council,30/11/2018,Resources and Housing,Commercial Services,Supplies and Services,Operational Furniture And Equipment,203,30/11/2018,1811-00212,0.00,100.90,R,Access Locksmiths (Leeds) Limited,NO
Http://opendatacommunities.org/id/metropolitan-district-council/leeds,Leeds City Council,30/11/2018,Resources and Housing,Leeds Building Services,Supplies and Services,Operational Materials,205,01/11/2018,1811-00213,0.00,162.50,R,Access Opening Systems,NO
Http://opendatacommunities.org/id/metropolitan-district-council/leeds,Leeds City Council,30/11/2018,Resources and Housing,Leeds Building Services,Supplies and Services,Operational Materials,205,01/11/2018,1811-00214,0.00,38.50,R,Access Opening Systems,NO
Http://opendatacommunities.org/id/metropolitan-district-council/leeds,Leeds City Council,30/11/2018,Resources and Housing,Leeds Building Services,Supplies and Services,Operational Materials,205,02/11/2018,1811-00215,0.00,432.00,R,Access Opening Systems,NO
Http://opendatacommunities.org/id/metropolitan-district-council/leeds,Leeds City Council,30/11/2018,Resources and Housing,Leeds Building Services,Supplies and Services,Operational Materials,205,02/11/2018,1811-00216,0.00,45.00,R,Access Opening Systems,NO
Http://opendatacommunities.org/id/metropolitan-district-council/leeds,Leeds City Council,30/11/2018,Resources and Housing,Leeds Building Services,Supplies and Services,Other Hired And Contracted Services,265,06/11/2018,1811-00217,0.00,95.00,R,Access Opening Systems,NO
Http://opendatacommunities.org/id/metropolitan-district-council/leeds,Leeds City Council,30/11/2018,Resources and Housing,Corporate Property Management,Premises,Maintenance Of Buildings,101,07/11/2018,1811-00218,0.00,85.00,R,Access Opening Systems,NO
Http://opendatacommunities.org/id/metropolitan-district-council/leeds,Leeds City Council,30/11/2018,Resources and Housing,Leeds Building Services,Supplies and Services,Operational Materials,205,09/11/2018,1811-00219,0.00,25.00,R,Access Opening Systems,NO
Http://opendatacommunities.org/id/metropolitan-district-council/leeds,Leeds City Council,30/11/2018,Resources and Housing,Leeds Building Services,Supplies and Services,Operational Materials,205,09/11/2018,1811-00220,0.00,190.00,R,Access Opening Systems,NO
Http://opendatacommunities.org/id/metropolitan-district-council/leeds,Leeds City Council,30/11/2018,Resources and Housing,Leeds Building Services,Supplies and Services,Other Hired And Contracted Services,265,14/11/2018,1811-00221,0.00,142.50,R,Access Opening Systems,NO
Http://opendatacommunities.org/id/metropolitan-district-council/leeds,Leeds City Council,30/11/2018,Resources and Housing,Leeds Building Services,Supplies and Services,Other Hired And Contracted Services,265,14/11/2018,1811-00222,0.00,11890.00,R,Access Opening Systems,NO
Http://opendatacommunities.org/id/metropolitan-district-council/leeds,Leeds City Council,30/11/2018,Resources and Housing,Leeds Building Services,Supplies and Services,Operational Materials,205,22/11/2018,1811-00223,0.00,30.00,R,Access Opening Systems,NO
Http://opendatacommunities.org/id/metropolitan-district-council/leeds,Leeds City Council,30/11/2018,Resources and Housing,Leeds Building Services,Supplies and Services,Operational Materials,205,23/11/2018,1811-00224,0.00,185.50,R,Access Opening Systems,NO
Http://opendatacommunities.org/id/metropolitan-district-council/leeds,Leeds City Council,30/11/2018,Insurance,Insurance,Supplies and Services,Insurance Claims,248,08/11/2018,1811-00225,0.00,3783.64,R,Accident Exchange Ltd,NO
Http://opendatacommunities.org/id/metropolitan-district-council/leeds,Leeds City Council,30/11/2018,Insurance,Insurance,Supplies and Services,Insurance Claims,248,29/11/2018,1811-00226,0.00,50.75,R,Accident Exchange Ltd,NO
Http://opendatacommunities.org/id/metropolitan-district-council/leeds,Leeds City Council,30/11/2018,Communities and Environment,Community Safety  ,Supplies and Services,Operational Furniture And Equipment,203,04/10/2018,1811-00227,0.00,119.99,R,Accutime.Co.Uk,YES
Http://opendatacommunities.org/id/metropolitan-district-council/leeds,Leeds City Council,30/11/2018,City Development,Libraries  Arts & Heritage,Supplies and Services,Other Hired And Contracted Services,265,01/11/2018,1811-00228,0.00,46.50,R,Ace Container Services Limited,NO
Http://opendatacommunities.org/id/metropolitan-district-council/leeds,Leeds City Council,30/11/2018,City Development,Recreation,Supplies and Services,Other Hired And Contracted Services,265,09/11/2018,1811-00229,0.00,93.00,R,Ace Container Services Limited,NO
Http://opendatacommunities.org/id/metropolitan-district-council/leeds,Leeds City Council,30/11/2018,City Development,Recreation,Supplies and Services,Other Hired And Contracted Services,265,30/11/2018,1811-00230,0.00,90.00,R,Ace Container Services Limited,NO
Http://opendatacommunities.org/id/metropolitan-district-council/leeds,Leeds City Council,30/11/2018,City Development,Recreation,Transport,External Hire -Occasional,304,30/11/2018,1811-00231,0.00,124.50,R,Ace Container Services Limited,NO
Http://opendatacommunities.org/id/metropolitan-district-council/leeds,Leeds City Council,30/11/2018,City Development,Asset Management Services,Employees,Training & Development,70,16/11/2018,1811-00232,0.00,20.00,R,Aces (North East Branch ),NO
Http://opendatacommunities.org/id/metropolitan-district-council/leeds,Leeds City Council,30/11/2018,Adults and Health,Services For Older People - 65 And Over,Third Party Payments,Nursing Care Dementia,574,14/11/2018,1811-00233,0.00,1625.64,R,Acorn Nursing Home,NO
Http://opendatacommunities.org/id/metropolitan-district-council/leeds,Leeds City Council,30/11/2018,Adults and Health,Services For Older People Under 65 P/Dis,Third Party Payments,Nursing Home,570,14/11/2018,1811-00234,0.00,280.61,R,Acorn Nursing Home,NO
Http://opendatacommunities.org/id/metropolitan-district-council/leeds,Leeds City Council,30/11/2018,City Development,Libraries  Arts & Heritage,Supplies and Services,Other Hired And Contracted Services,265,02/11/2018,1811-00235,0.00,6763.76,R,Acorn Scaffolding (Yorkshire) Ltd,NO
Http://opendatacommunities.org/id/metropolitan-district-council/leeds,Leeds City Council,30/11/2018,Communities and Environment,Parks and Countryside,Supplies and Services,Other Hired And Contracted Services,265,16/11/2018,1811-00236,0.00,658.90,R,Acorn Scaffolding (Yorkshire) Ltd,NO
Http://opendatacommunities.org/id/metropolitan-district-council/leeds,Leeds City Council,30/11/2018,City Development,Libraries  Arts & Heritage,Supplies and Services,Other Hired And Contracted Services,265,16/11/2018,1811-00237,0.00,9580.00,R,Acorn Scaffolding (Yorkshire) Ltd,NO
Http://opendatacommunities.org/id/metropolitan-district-council/leeds,Leeds City Council,30/11/2018,City Development,Libraries  Arts & Heritage,Supplies and Services,Other Hired And Contracted Services,265,16/11/2018,1811-00238,0.00,7282.00,R,Acorn Scaffolding (Yorkshire) Ltd,NO
Http://opendatacommunities.org/id/metropolitan-district-council/leeds,Leeds City Council,30/11/2018,City Development,Libraries  Arts & Heritage,Supplies and Services,Operational Furniture And Equipment,203,23/11/2018,1811-00239,0.00,3507.00,R,Acorn Scaffolding (Yorkshire) Ltd,NO
Http://opendatacommunities.org/id/metropolitan-district-council/leeds,Leeds City Council,30/11/2018,Children and Families,Social Care,Third Party Payments,Services Rendered By Other Organisations,511,16/11/2018,1811-00240,0.00,6113.63,R,Acorns Nursery,NO
Http://opendatacommunities.org/id/metropolitan-district-council/leeds,Leeds City Council,30/11/2018,Communities and Environment,Parks and Countryside,Supplies and Services,Operational Furniture And Equipment,203,23/11/2018,1811-00241,0.00,88.00,R,Acoustic Arrangments Limited,NO
Http://opendatacommunities.org/id/metropolitan-district-council/leeds,Leeds City Council,30/11/2018,Adults and Health,Services For Older People - 65 And Over,Third Party Payments,Nursing Home,570,14/11/2018,1811-00242,0.00,34891.89,R,Acre Green,NO
Http://opendatacommunities.org/id/metropolitan-district-council/leeds,Leeds City Council,30/11/2018,Adults and Health,Services For Older People - 65 And Over,Third Party Payments,Residential,580,14/11/2018,1811-00243,0.00,3631.60,R,Acre Green,NO
Http://opendatacommunities.org/id/metropolitan-district-council/leeds,Leeds City Council,30/11/2018,Adults and Health,Services For Older People Under 65 P/Dis,Third Party Payments,Nursing Home,570,14/11/2018,1811-00244,0.00,2200.00,R,Acre Green,NO
Http://opendatacommunities.org/id/metropolitan-district-council/leeds,Leeds City Council,30/11/2018,Adults and Health,Services For Older People Under 65 P/Dis,Third Party Payments,Residential,580,14/11/2018,1811-00245,0.00,11986.35,R,Acre Green,NO
Http://opendatacommunities.org/id/metropolitan-district-council/leeds,Leeds City Council,30/11/2018,Children and Families,Social Care,Third Party Payments,Services Rendered By Other Organisations,511,02/11/2018,1811-00246,0.00,1272.67,R,Acre Wood Day Nursery,NO
Http://opendatacommunities.org/id/metropolitan-district-council/leeds,Leeds City Council,30/11/2018,Children and Families,Social Care,Third Party Payments,Services Rendered By Other Organisations,511,16/11/2018,1811-00247,0.00,8478.75,R,Acre Wood Day Nursery,NO
Http://opendatacommunities.org/id/metropolitan-district-council/leeds,Leeds City Council,30/11/2018,Children and Families,Social Care,Third Party Payments,Services Rendered By Other Organisations,511,21/11/2018,1811-00248,0.00,4284.00,R,Acre Wood Day Nursery,NO
Http://opendatacommunities.org/id/metropolitan-district-council/leeds,Leeds City Council,30/11/2018,Resources and Housing,Technology  ,Employees,Best Value Training,70,03/10/2018,1811-00249,0.00,29.99,R,Act Now Training Limit,YES
Http://opendatacommunities.org/id/metropolitan-district-council/leeds,Leeds City Council,30/11/2018,Resources and Housing,Technology  ,Employees,Best Value Training,70,03/10/2018,1811-00250,0.00,1995.00,R,Act Now Training Limit,YES
Http://opendatacommunities.org/id/metropolitan-district-council/leeds,Leeds City Council,30/11/2018,City Development,Highways,Supplies and Services,Operational Materials,205,02/11/2018,1811-00251,0.00,768.00,R,Actavo (Leeds H & S),NO
Http://opendatacommunities.org/id/metropolitan-district-council/leeds,Leeds City Council,30/11/2018,City Development,Highways,Supplies and Services,Operational Materials,205,09/11/2018,1811-00252,0.00,500.20,R,Actavo (Leeds H & S),NO
Http://opendatacommunities.org/id/metropolitan-district-council/leeds,Leeds City Council,30/11/2018,Children and Families,Social Care,Third Party Payments,Independent Fostering Agencies,509,16/11/2018,1811-00253,0.00,4776.48,R,Action For Children,NO
Http://opendatacommunities.org/id/metropolitan-district-council/leeds,Leeds City Council,30/11/2018,Children and Families,Social Care,Third Party Payments,Independent Fostering Agencies,509,21/11/2018,1811-00254,0.00,4776.48,R,Action For Children,NO
Http://opendatacommunities.org/id/metropolitan-district-council/leeds,Leeds City Council,30/11/2018,Children and Families,Social Care,Third Party Payments,Independent Fostering Agencies,509,21/11/2018,1811-00255,0.00,4776.48,R,Action For Children,NO
Http://opendatacommunities.org/id/metropolitan-district-council/leeds,Leeds City Council,30/11/2018,Children and Families,Social Care,Third Party Payments,Independent Fostering Agencies,509,21/11/2018,1811-00256,0.00,4776.48,R,Action For Children,NO
Http://opendatacommunities.org/id/metropolitan-district-council/leeds,Leeds City Council,30/11/2018,Communities and Environment,Communities,Supplies and Services,Well Being Small Grants Projects,228,05/11/2018,1811-00257,0.00,500.00,R,Action Interactive International,NO
Http://opendatacommunities.org/id/metropolitan-district-council/leeds,Leeds City Council,30/11/2018,Adults and Health,Services For Adults Under 65 Mental/Dis,Supplies and Services,Other Hired And Contracted Services,265,06/11/2018,1811-00258,0.00,525.00,R,Active Cleaning Solutions Ltd,NO
Http://opendatacommunities.org/id/metropolitan-district-council/leeds,Leeds City Council,30/11/2018,Children and Families,Social Care,Third Party Payments,Services Rendered By Other Organisations,511,02/11/2018,1811-00259,0.00,183.67,R,Active Kids Yeadon Llp,NO
Http://opendatacommunities.org/id/metropolitan-district-council/leeds,Leeds City Council,30/11/2018,Children and Families,Social Care,Third Party Payments,Services Rendered By Other Organisations,511,16/11/2018,1811-00260,0.00,13605.60,R,Active Kids Yeadon Llp,NO
Http://opendatacommunities.org/id/metropolitan-district-council/leeds,Leeds City Council,30/11/2018,Children and Families,Social Care,Third Party Payments,Services Rendered By Other Organisations,511,21/11/2018,1811-00261,0.00,803.25,R,Active Kids Yeadon Llp,NO
Http://opendatacommunities.org/id/metropolitan-district-council/leeds,Leeds City Council As Accountable Body,30/11/2018,Social Services Pooled Budgets,Leeds Community Equip Store Pooled Budgt,Supplies and Services,Other Equipment,203,15/11/2018,1811-00262,0.00,255.00,R,Active Mobility Centre Ltd,NO
Http://opendatacommunities.org/id/metropolitan-district-council/leeds,Leeds City Council As Accountable Body,30/11/2018,Social Services Pooled Budgets,Leeds Community Equip Store Pooled Budgt,Supplies and Services,Other Equipment,203,15/11/2018,1811-00263,0.00,255.00,R,Active Mobility Centre Ltd,NO
Http://opendatacommunities.org/id/metropolitan-district-council/leeds,Leeds City Council,30/11/2018,Communities and Environment,Cleaner Neighbourhood Teams,Premises,Removal Of Workplace Waste,126,02/11/2018,1811-00264,0.00,110.00,R,Acumen Waste Services Ltd,NO
Http://opendatacommunities.org/id/metropolitan-district-council/leeds,Leeds City Council,30/11/2018,Communities and Environment,Cleaner Neighbourhood Teams,Premises,Removal Of Workplace Waste,126,02/11/2018,1811-00265,0.00,110.00,R,Acumen Waste Services Ltd,NO
Http://opendatacommunities.org/id/metropolitan-district-council/leeds,Leeds City Council,30/11/2018,Communities and Environment,Cleaner Neighbourhood Teams,Premises,Removal Of Workplace Waste,126,02/11/2018,1811-00266,0.00,110.00,R,Acumen Waste Services Ltd,NO
Http://opendatacommunities.org/id/metropolitan-district-council/leeds,Leeds City Council,30/11/2018,Communities and Environment,Cleaner Neighbourhood Teams,Premises,Removal Of Workplace Waste,126,02/11/2018,1811-00267,0.00,110.00,R,Acumen Waste Services Ltd,NO
Http://opendatacommunities.org/id/metropolitan-district-council/leeds,Leeds City Council,30/11/2018,Communities and Environment,Waste Management,Supplies and Services,Recycling & Reuse Charges,234,07/11/2018,1811-00268,0.00,4721.49,R,Acumen Waste Services Ltd,NO
Http://opendatacommunities.org/id/metropolitan-district-council/leeds,Leeds City Council,30/11/2018,Communities and Environment,Cleaner Neighbourhood Teams,Premises,Removal Of Workplace Waste,126,07/11/2018,1811-00269,0.00,110.00,R,Acumen Waste Services Ltd,NO
Http://opendatacommunities.org/id/metropolitan-district-council/leeds,Leeds City Council,30/11/2018,Communities and Environment,Cleaner Neighbourhood Teams,Premises,Removal Of Workplace Waste,126,07/11/2018,1811-00270,0.00,110.00,R,Acumen Waste Services Ltd,NO
Http://opendatacommunities.org/id/metropolitan-district-council/leeds,Leeds City Council,30/11/2018,Communities and Environment,Cleaner Neighbourhood Teams,Premises,Removal Of Workplace Waste,126,07/11/2018,1811-00271,0.00,110.00,R,Acumen Waste Services Ltd,NO
Http://opendatacommunities.org/id/metropolitan-district-council/leeds,Leeds City Council,30/11/2018,Communities and Environment,Cleaner Neighbourhood Teams,Premises,Removal Of Workplace Waste,126,07/11/2018,1811-00272,0.00,110.00,R,Acumen Waste Services Ltd,NO
Http://opendatacommunities.org/id/metropolitan-district-council/leeds,Leeds City Council,30/11/2018,Communities and Environment,Cleaner Neighbourhood Teams,Premises,Removal Of Workplace Waste,126,07/11/2018,1811-00273,0.00,110.00,R,Acumen Waste Services Ltd,NO
Http://opendatacommunities.org/id/metropolitan-district-council/leeds,Leeds City Council,30/11/2018,Communities and Environment,Cleaner Neighbourhood Teams,Premises,Removal Of Workplace Waste,126,07/11/2018,1811-00274,0.00,110.00,R,Acumen Waste Services Ltd,NO
Http://opendatacommunities.org/id/metropolitan-district-council/leeds,Leeds City Council,30/11/2018,Communities and Environment,Cleaner Neighbourhood Teams,Premises,Removal Of Workplace Waste,126,07/11/2018,1811-00275,0.00,110.00,R,Acumen Waste Services Ltd,NO
Http://opendatacommunities.org/id/metropolitan-district-council/leeds,Leeds City Council,30/11/2018,Communities and Environment,Cleaner Neighbourhood Teams,Premises,Removal Of Workplace Waste,126,07/11/2018,1811-00276,0.00,110.00,R,Acumen Waste Services Ltd,NO
Http://opendatacommunities.org/id/metropolitan-district-council/leeds,Leeds City Council,30/11/2018,Communities and Environment,Cleaner Neighbourhood Teams,Premises,Removal Of Workplace Waste,126,07/11/2018,1811-00277,0.00,110.00,R,Acumen Waste Services Ltd,NO
Http://opendatacommunities.org/id/metropolitan-district-council/leeds,Leeds City Council,30/11/2018,Communities and Environment,Waste Management,Supplies and Services,Recycling & Reuse Charges,234,14/11/2018,1811-00278,0.00,5781.43,R,Acumen Waste Services Ltd,NO
Http://opendatacommunities.org/id/metropolitan-district-council/leeds,Leeds City Council,30/11/2018,Communities and Environment,Cleaner Neighbourhood Teams,Premises,Removal Of Workplace Waste,126,14/11/2018,1811-00279,0.00,110.00,R,Acumen Waste Services Ltd,NO
Http://opendatacommunities.org/id/metropolitan-district-council/leeds,Leeds City Council,30/11/2018,Communities and Environment,Cleaner Neighbourhood Teams,Premises,Removal Of Workplace Waste,126,14/11/2018,1811-00280,0.00,110.00,R,Acumen Waste Services Ltd,NO
Http://opendatacommunities.org/id/metropolitan-district-council/leeds,Leeds City Council,30/11/2018,Communities and Environment,Cleaner Neighbourhood Teams,Premises,Removal Of Workplace Waste,126,14/11/2018,1811-00281,0.00,110.00,R,Acumen Waste Services Ltd,NO
Http://opendatacommunities.org/id/metropolitan-district-council/leeds,Leeds City Council,30/11/2018,Communities and Environment,Cleaner Neighbourhood Teams,Premises,Removal Of Workplace Waste,126,14/11/2018,1811-00282,0.00,110.00,R,Acumen Waste Services Ltd,NO
Http://opendatacommunities.org/id/metropolitan-district-council/leeds,Leeds City Council,30/11/2018,Communities and Environment,Waste Management,Supplies and Services,Recycling & Reuse Charges,234,21/11/2018,1811-00283,0.00,5423.65,R,Acumen Waste Services Ltd,NO
Http://opendatacommunities.org/id/metropolitan-district-council/leeds,Leeds City Council,30/11/2018,Communities and Environment,Cleaner Neighbourhood Teams,Premises,Removal Of Workplace Waste,126,21/11/2018,1811-00284,0.00,110.00,R,Acumen Waste Services Ltd,NO
Http://opendatacommunities.org/id/metropolitan-district-council/leeds,Leeds City Council,30/11/2018,Communities and Environment,Cleaner Neighbourhood Teams,Premises,Removal Of Workplace Waste,126,21/11/2018,1811-00285,0.00,110.00,R,Acumen Waste Services Ltd,NO
Http://opendatacommunities.org/id/metropolitan-district-council/leeds,Leeds City Council,30/11/2018,Communities and Environment,Cleaner Neighbourhood Teams,Premises,Removal Of Workplace Waste,126,21/11/2018,1811-00286,0.00,110.00,R,Acumen Waste Services Ltd,NO
Http://opendatacommunities.org/id/metropolitan-district-council/leeds,Leeds City Council,30/11/2018,Communities and Environment,Cleaner Neighbourhood Teams,Premises,Removal Of Workplace Waste,126,21/11/2018,1811-00287,0.00,110.00,R,Acumen Waste Services Ltd,NO
Http://opendatacommunities.org/id/metropolitan-district-council/leeds,Leeds City Council,30/11/2018,Communities and Environment,Cleaner Neighbourhood Teams,Premises,Removal Of Workplace Waste,126,21/11/2018,1811-00288,0.00,110.00,R,Acumen Waste Services Ltd,NO
Http://opendatacommunities.org/id/metropolitan-district-council/leeds,Leeds City Council,30/11/2018,Communities and Environment,Waste Management,Supplies and Services,Recycling & Reuse Charges,234,28/11/2018,1811-00289,0.00,5463.18,R,Acumen Waste Services Ltd,NO
Http://opendatacommunities.org/id/metropolitan-district-council/leeds,Leeds City Council,30/11/2018,Communities and Environment,Cleaner Neighbourhood Teams,Premises,Removal Of Workplace Waste,126,28/11/2018,1811-00290,0.00,110.00,R,Acumen Waste Services Ltd,NO
Http://opendatacommunities.org/id/metropolitan-district-council/leeds,Leeds City Council,30/11/2018,Communities and Environment,Cleaner Neighbourhood Teams,Premises,Removal Of Workplace Waste,126,28/11/2018,1811-00291,0.00,110.00,R,Acumen Waste Services Ltd,NO
Http://opendatacommunities.org/id/metropolitan-district-council/leeds,Leeds City Council,30/11/2018,Communities and Environment,Cleaner Neighbourhood Teams,Premises,Removal Of Workplace Waste,126,28/11/2018,1811-00292,0.00,110.00,R,Acumen Waste Services Ltd,NO
Http://opendatacommunities.org/id/metropolitan-district-council/leeds,Leeds City Council,30/11/2018,Communities and Environment,Cleaner Neighbourhood Teams,Premises,Removal Of Workplace Waste,126,28/11/2018,1811-00293,0.00,110.00,R,Acumen Waste Services Ltd,NO
Http://opendatacommunities.org/id/metropolitan-district-council/leeds,Leeds City Council,30/11/2018,Communities and Environment,Cleaner Neighbourhood Teams,Premises,Removal Of Workplace Waste,126,28/11/2018,1811-00294,0.00,110.00,R,Acumen Waste Services Ltd,NO
Http://opendatacommunities.org/id/metropolitan-district-council/leeds,Leeds City Council,30/11/2018,Communities and Environment,Cleaner Neighbourhood Teams,Premises,Removal Of Workplace Waste,126,28/11/2018,1811-00295,0.00,110.00,R,Acumen Waste Services Ltd,NO
Http://opendatacommunities.org/id/metropolitan-district-council/leeds,Leeds City Council,30/11/2018,Communities and Environment,Cleaner Neighbourhood Teams,Premises,Removal Of Workplace Waste,126,28/11/2018,1811-00296,0.00,110.00,R,Acumen Waste Services Ltd,NO
Http://opendatacommunities.org/id/metropolitan-district-council/leeds,Leeds City Council,30/11/2018,Communities and Environment,Cleaner Neighbourhood Teams,Premises,Removal Of Workplace Waste,126,28/11/2018,1811-00297,0.00,110.00,R,Acumen Waste Services Ltd,NO
Http://opendatacommunities.org/id/metropolitan-district-council/leeds,Leeds City Council,30/11/2018,Communities and Environment,Waste Management,Supplies and Services,Recycling & Reuse Charges,234,30/11/2018,1811-00298,0.00,3695.05,R,Acumen Waste Services Ltd,NO
Http://opendatacommunities.org/id/metropolitan-district-council/leeds,Leeds City Council,30/11/2018,Communities and Environment,Parks and Countryside,Supplies and Services,Resaleable Materials,204,16/11/2018,1811-00299,0.00,36.00,R,Acushnet Europe Limited,NO
Http://opendatacommunities.org/id/metropolitan-district-council/leeds,Leeds City Council,30/11/2018,Communities and Environment,Parks and Countryside,Supplies and Services,Resaleable Materials,204,16/11/2018,1811-00300,0.00,171.00,R,Acushnet Europe Limited,NO
Http://opendatacommunities.org/id/metropolitan-district-council/leeds,Leeds City Council,30/11/2018,Communities and Environment,Parks and Countryside,Supplies and Services,Resaleable Materials,204,30/11/2018,1811-00301,0.00,430.00,R,Acushnet Europe Limited,NO
Http://opendatacommunities.org/id/metropolitan-district-council/leeds,Leeds City Council,30/11/2018,Resources and Housing,Shared Services,Supplies and Services,Other Hired And Contracted Services,265,09/11/2018,1811-00302,0.00,292.25,R,Ad3 Envelope Printers Limited,NO
Http://opendatacommunities.org/id/metropolitan-district-council/leeds,Leeds City Council,30/11/2018,Resources and Housing,Shared Services,Supplies and Services,Operational Materials,205,09/11/2018,1811-00303,0.00,705.00,R,Ad3 Envelope Printers Limited,NO
Http://opendatacommunities.org/id/metropolitan-district-council/leeds,Leeds City Council,30/11/2018,Resources and Housing,Shared Services,Supplies and Services,Operational Materials,205,30/11/2018,1811-00304,0.00,705.00,R,Ad3 Envelope Printers Limited,NO
Http://opendatacommunities.org/id/metropolitan-district-council/leeds,Leeds City Council,30/11/2018,Children and Families,Social Care,Transfer Payments,Leaving Care Allowances,634,02/11/2018,1811-00305,0.00,50.00,R,REDACTED PERSONAL DATA,NO
Http://opendatacommunities.org/id/metropolitan-district-council/leeds,Leeds City Council,30/11/2018,Resources and Housing,Human Resources,Support Services,Legal Disbursements,411,16/11/2018,1811-00306,0.00,2080.00,R,Adam Willoughby,NO
Http://opendatacommunities.org/id/metropolitan-district-council/leeds,Leeds City Council,30/11/2018,Adults and Health,Services For Older People - 65 And Over,Third Party Payments,Nursing Home,570,14/11/2018,1811-00307,0.00,3897.12,R,Adbolton Hall,NO
Http://opendatacommunities.org/id/metropolitan-district-council/leeds,Leeds City Council,30/11/2018,City Development,Planning & Sustainable Development,Income,Planning Fees,939,01/11/2018,1811-00308,0.00,118.00,R,Added Value Concepts,NO
Http://opendatacommunities.org/id/metropolitan-district-council/leeds,Leeds City Council,30/11/2018,Resources and Housing,Sustainable Energy & Climate Change,Capital,Other Costs,7,02/11/2018,1811-00309,0.00,1142.50,C,Addleshaw Goddard Llp,NO
Http://opendatacommunities.org/id/metropolitan-district-council/leeds,Leeds City Council,30/11/2018,Strategic Landlord,Property and Contracts,Support Services,Professional Legal Services Charges,410,16/11/2018,1811-00310,0.00,5000.00,R,Addleshaw Goddard Llp,NO
Http://opendatacommunities.org/id/metropolitan-district-council/leeds,Leeds City Council,30/11/2018,Communities and Environment,Parks and Countryside,Supplies and Services,Other Hired And Contracted Services,265,26/11/2018,1811-00311,0.00,7784.00,R,Addlestone & Partners,NO
Http://opendatacommunities.org/id/metropolitan-district-council/leeds,Leeds City Council,30/11/2018,Resources and Housing,Technology  ,Employees,Agency Staff,8,02/10/2018,1811-00312,0.00,59419.63,R,Adecco Alfred Marks,YES
Http://opendatacommunities.org/id/metropolitan-district-council/leeds,Leeds City Council,30/11/2018,Resources and Housing,Technology  ,Employees,Agency Staff,8,26/10/2018,1811-00313,0.00,65324.10,R,Adecco Alfred Marks,YES
Http://opendatacommunities.org/id/metropolitan-district-council/leeds,Leeds City Council,30/11/2018,Communities and Environment,Communities,Capital,Financing,9,23/11/2018,1811-00314,0.00,3730.00,C,Adel Players (Awma),NO
Http://opendatacommunities.org/id/metropolitan-district-council/leeds,Leeds City Council,30/11/2018,Children and Families,Social Care,Third Party Payments,Services Rendered By Voluntary Sector,505,02/11/2018,1811-00315,0.00,960.67,R,Adel Pre School,NO
Http://opendatacommunities.org/id/metropolitan-district-council/leeds,Leeds City Council,30/11/2018,Children and Families,Social Care,Third Party Payments,Services Rendered By Other Organisations,511,16/11/2018,1811-00316,0.00,3703.88,R,Adel Pre School,NO
Http://opendatacommunities.org/id/metropolitan-district-council/leeds,Leeds City Council,30/11/2018,Children and Families,Social Care,Third Party Payments,Section 17,551,07/11/2018,1811-00317,0.00,303.60,R,REDACTED PERSONAL DATA,NO
Http://opendatacommunities.org/id/metropolitan-district-council/leeds,Leeds City Council,30/11/2018,Children and Families,Social Care,Third Party Payments,Section 17,551,16/11/2018,1811-00318,0.00,151.80,R,REDACTED PERSONAL DATA,NO
Http://opendatacommunities.org/id/metropolitan-district-council/leeds,Leeds City Council,30/11/2018,Children and Families,Social Care,Third Party Payments,Section 17,551,23/11/2018,1811-00319,0.00,151.80,R,REDACTED PERSONAL DATA,NO
Http://opendatacommunities.org/id/metropolitan-district-council/leeds,Leeds City Council,30/11/2018,Children and Families,Social Care,Third Party Payments,Section 17,551,30/11/2018,1811-00320,0.00,151.80,R,REDACTED PERSONAL DATA,NO
Http://opendatacommunities.org/id/metropolitan-district-council/leeds,Leeds City Council,30/11/2018,Insurance,Insurance,Supplies and Services,Insurance Claims,248,23/11/2018,1811-00321,0.00,55.00,R,REDACTED PERSONAL DATA,NO
Http://opendatacommunities.org/id/metropolitan-district-council/leeds,Leeds City Council,30/11/2018,Children and Families,Social Care,Third Party Payments,Services Rendered By Other Organisations,511,02/11/2018,1811-00322,0.00,237.33,R,REDACTED PERSONAL DATA,NO
Http://opendatacommunities.org/id/metropolitan-district-council/leeds,Leeds City Council,30/11/2018,Children and Families,Social Care,Third Party Payments,Services Rendered By Other Organisations,511,16/11/2018,1811-00323,0.00,223.13,R,REDACTED PERSONAL DATA,NO
Http://opendatacommunities.org/id/metropolitan-district-council/leeds,Leeds City Council,30/11/2018,Children and Families,Social Care,Third Party Payments,Services Rendered By Other Organisations,511,16/11/2018,1811-00324,0.00,148.75,R,REDACTED PERSONAL DATA,NO
Http://opendatacommunities.org/id/metropolitan-district-council/leeds,Leeds City Council,30/11/2018,Children and Families,Social Care,Third Party Payments,Services Rendered By Other Organisations,511,16/11/2018,1811-00325,0.00,357.00,R,REDACTED PERSONAL DATA,NO
Http://opendatacommunities.org/id/metropolitan-district-council/leeds,Leeds City Council,30/11/2018,Adults and Health,Services For Older People - 65 And Over,Third Party Payments,Nursing Home,570,14/11/2018,1811-00326,0.00,1184.76,R,Aden House,NO
Http://opendatacommunities.org/id/metropolitan-district-council/leeds,Leeds City Council,30/11/2018,Resources and Housing,Digital and Information Services,Capital,Furniture And Equipment,5,21/11/2018,1811-00327,0.00,27653.04,C,Adept4 Managed It Limited (Leeds),NO
Http://opendatacommunities.org/id/metropolitan-district-council/leeds,Leeds City Council,30/11/2018,Resources and Housing,Leeds Building Services,Supplies and Services,Operational Materials,205,02/11/2018,1811-00328,0.00,281.82,R,Adi Global,NO
Http://opendatacommunities.org/id/metropolitan-district-council/leeds,Leeds City Council,30/11/2018,Resources and Housing,Leeds Building Services,Supplies and Services,Operational Materials,205,02/11/2018,1811-00329,0.00,18.65,R,Adi Global,NO
Http://opendatacommunities.org/id/metropolitan-district-council/leeds,Leeds City Council,30/11/2018,Resources and Housing,Leeds Building Services,Supplies and Services,Operational Materials,205,02/11/2018,1811-00330,0.00,3858.28,R,Adi Global,NO
Http://opendatacommunities.org/id/metropolitan-district-council/leeds,Leeds City Council,30/11/2018,Resources and Housing,Leeds Building Services,Supplies and Services,Operational Materials,205,02/11/2018,1811-00331,0.00,2289.04,R,Adi Global,NO
Http://opendatacommunities.org/id/metropolitan-district-council/leeds,Leeds City Council,30/11/2018,Resources and Housing,Leeds Building Services,Supplies and Services,Operational Materials,205,02/11/2018,1811-00332,0.00,5.92,R,Adi Global,NO
Http://opendatacommunities.org/id/metropolitan-district-council/leeds,Leeds City Council,30/11/2018,Resources and Housing,Leeds Building Services,Supplies and Services,Operational Materials,205,02/11/2018,1811-00333,0.00,497.40,R,Adi Global,NO
Http://opendatacommunities.org/id/metropolitan-district-council/leeds,Leeds City Council,30/11/2018,Resources and Housing,Leeds Building Services,Supplies and Services,Operational Materials,205,16/11/2018,1811-00334,0.00,1252.36,R,Adi Global,NO
Http://opendatacommunities.org/id/metropolitan-district-council/leeds,Leeds City Council,30/11/2018,Resources and Housing,Leeds Building Services,Supplies and Services,Operational Materials,205,16/11/2018,1811-00335,0.00,1620.51,R,Adi Global,NO
Http://opendatacommunities.org/id/metropolitan-district-council/leeds,Leeds City Council,30/11/2018,Resources and Housing,Leeds Building Services,Supplies and Services,Operational Materials,205,19/11/2018,1811-00336,0.00,55.95,R,Adi Global,NO
Http://opendatacommunities.org/id/metropolitan-district-council/leeds,Leeds City Council,30/11/2018,Resources and Housing,Leeds Building Services,Supplies and Services,Operational Materials,205,19/11/2018,1811-00337,0.00,21.00,R,Adi Global,NO
Http://opendatacommunities.org/id/metropolitan-district-council/leeds,Leeds City Council,30/11/2018,Resources and Housing,Leeds Building Services,Supplies and Services,Operational Materials,205,19/11/2018,1811-00338,0.00,32.19,R,Adi Global,NO
Http://opendatacommunities.org/id/metropolitan-district-council/leeds,Leeds City Council,30/11/2018,Resources and Housing,Leeds Building Services,Supplies and Services,Operational Materials,205,20/11/2018,1811-00339,0.00,3.00,R,Adi Global,NO
Http://opendatacommunities.org/id/metropolitan-district-council/leeds,Leeds City Council,30/11/2018,Resources and Housing,Leeds Building Services,Supplies and Services,Operational Materials,205,20/11/2018,1811-00340,0.00,52.57,R,Adi Global,NO
Http://opendatacommunities.org/id/metropolitan-district-council/leeds,Leeds City Council,30/11/2018,Resources and Housing,Leeds Building Services,Supplies and Services,Operational Materials,205,20/11/2018,1811-00341,0.00,359.04,R,Adi Global,NO
Http://opendatacommunities.org/id/metropolitan-district-council/leeds,Leeds City Council,30/11/2018,Resources and Housing,Leeds Building Services,Supplies and Services,Operational Materials,205,23/11/2018,1811-00342,0.00,47.37,R,Adi Global,NO
Http://opendatacommunities.org/id/metropolitan-district-council/leeds,Leeds City Council,30/11/2018,Communities and Environment,Community Safety  ,Supplies and Services,Other Hired And Contracted Services,265,19/10/2018,1811-00343,0.00,1078.84,R,Adi-Gardiner Ltd,YES
Http://opendatacommunities.org/id/metropolitan-district-council/leeds,Leeds City Council,30/11/2018,Communities and Environment,Community Safety  ,Supplies and Services,Other Hired And Contracted Services,265,26/10/2018,1811-00344,0.00,341.26,R,Adi-Gardiner Ltd,YES
Http://opendatacommunities.org/id/metropolitan-district-council/leeds,Leeds City Council,30/11/2018,Adults and Health,Services For Older People - 65 And Over,Third Party Payments,Home Care,568,01/11/2018,1811-00345,0.00,18292.00,R,Adjuvo,NO
Http://opendatacommunities.org/id/metropolitan-district-council/leeds,Leeds City Council,30/11/2018,Adults and Health,Services For Older People - 65 And Over,Third Party Payments,Home Care,568,01/11/2018,1811-00346,0.00,18904.00,R,Adjuvo,NO
Http://opendatacommunities.org/id/metropolitan-district-council/leeds,Leeds City Council,30/11/2018,Adults and Health,Services For Older People - 65 And Over,Third Party Payments,Home Care,568,01/11/2018,1811-00347,0.00,6496.00,R,Adjuvo,NO
Http://opendatacommunities.org/id/metropolitan-district-council/leeds,Leeds City Council,30/11/2018,Adults and Health,Services For Adults Under 65 Mental/Dis,Third Party Payments,Home Care,568,09/11/2018,1811-00348,0.00,1600.00,R,Adjuvo,NO
Http://opendatacommunities.org/id/metropolitan-district-council/leeds,Leeds City Council,30/11/2018,Adults and Health,Services For Adults Under 65 Mental/Dis,Third Party Payments,Home Care,568,30/11/2018,1811-00349,0.00,896.00,R,Adjuvo,NO
Http://opendatacommunities.org/id/metropolitan-district-council/leeds,Leeds City Council,30/11/2018,Insurance,Insurance,Supplies and Services,Insurance Claims,248,16/11/2018,1811-00350,0.00,456.00,R,Admiral Law,NO
Http://opendatacommunities.org/id/metropolitan-district-council/leeds,Leeds City Council,30/11/2018,Insurance,Insurance,Supplies and Services,Insurance Claims,248,22/11/2018,1811-00351,0.00,360.00,R,Admiral Law,NO
Http://opendatacommunities.org/id/metropolitan-district-council/leeds,Leeds City Council,30/11/2018,Children and Families,Social Care,Third Party Payments,Independent Fostering Agencies,509,01/11/2018,1811-00352,0.00,2850.00,R,Adolescent And Childrens Trust,NO
Http://opendatacommunities.org/id/metropolitan-district-council/leeds,Leeds City Council,30/11/2018,Children and Families,Social Care,Third Party Payments,Independent Fostering Agencies,509,01/11/2018,1811-00353,0.00,2850.00,R,Adolescent And Childrens Trust,NO
Http://opendatacommunities.org/id/metropolitan-district-council/leeds,Leeds City Council,30/11/2018,Children and Families,Social Care,Third Party Payments,Independent Fostering Agencies,509,01/11/2018,1811-00354,0.00,2850.00,R,Adolescent And Childrens Trust,NO
Http://opendatacommunities.org/id/metropolitan-district-council/leeds,Leeds City Council,30/11/2018,Children and Families,Social Care,Third Party Payments,Independent Fostering Agencies,509,01/11/2018,1811-00355,0.00,3090.00,R,Adolescent And Childrens Trust,NO
Http://opendatacommunities.org/id/metropolitan-district-council/leeds,Leeds City Council,30/11/2018,Children and Families,Social Care,Third Party Payments,Independent Fostering Agencies,509,12/11/2018,1811-00356,0.00,2163.00,R,Adolescent And Childrens Trust,NO
Http://opendatacommunities.org/id/metropolitan-district-council/leeds,Leeds City Council,30/11/2018,Children and Families,Social Care,Third Party Payments,Independent Fostering Agencies,509,12/11/2018,1811-00357,0.00,2018.80,R,Adolescent And Childrens Trust,NO
Http://opendatacommunities.org/id/metropolitan-district-council/leeds,Leeds City Council,30/11/2018,Children and Families,Social Care,Third Party Payments,Independent Fostering Agencies,509,12/11/2018,1811-00358,0.00,1899.24,R,Adolescent And Childrens Trust,NO
Http://opendatacommunities.org/id/metropolitan-district-council/leeds,Leeds City Council,30/11/2018,Children and Families,Social Care,Third Party Payments,Placement Support,550,02/11/2018,1811-00359,0.00,142.86,R,REDACTED PERSONAL DATA,NO
Http://opendatacommunities.org/id/metropolitan-district-council/leeds,Leeds City Council,30/11/2018,Children and Families,Social Care,Third Party Payments,Placement Support,550,09/11/2018,1811-00360,0.00,142.86,R,REDACTED PERSONAL DATA,NO
Http://opendatacommunities.org/id/metropolitan-district-council/leeds,Leeds City Council,30/11/2018,Children and Families,Social Care,Third Party Payments,Placement Support,550,22/11/2018,1811-00361,0.00,82.61,R,REDACTED PERSONAL DATA,NO
Http://opendatacommunities.org/id/metropolitan-district-council/leeds,Leeds City Council,30/11/2018,Children and Families,Social Care,Third Party Payments,Placement Support,550,30/11/2018,1811-00362,0.00,51.59,R,REDACTED PERSONAL DATA,NO
Http://opendatacommunities.org/id/metropolitan-district-council/leeds,Leeds City Council,30/11/2018,Insurance,Insurance,Supplies and Services,Research Costs,240,14/11/2018,1811-00363,0.00,4630.00,R,REDACTED PERSONAL DATA,NO
Http://opendatacommunities.org/id/metropolitan-district-council/leeds,Leeds City Council As Accountable Body,30/11/2018,Social Services Pooled Budgets,Jcs For People With Learning Disabilitie,Third Party Payments,Residential,580,29/11/2018,1811-00364,0.00,2609.36,R,Adrian House,NO
Http://opendatacommunities.org/id/metropolitan-district-council/leeds,Leeds City Council,30/11/2018,Resources and Housing,Corporate Property Management,Premises,Maintenance Of Buildings,101,06/11/2018,1811-00365,0.00,159.00,R,Adt Fire And Security Plc,NO
Http://opendatacommunities.org/id/metropolitan-district-council/leeds,Leeds City Council,30/11/2018,Strategic Landlord,Housing Management,Premises,Premises Security Services,162,06/11/2018,1811-00366,0.00,148.35,R,Adt Fire And Security Plc,NO
Http://opendatacommunities.org/id/metropolitan-district-council/leeds,Leeds City Council,30/11/2018,Resources and Housing,Commercial Services  ,Supplies and Services,Operational Materials,205,19/10/2018,1811-00367,0.00,2523.22,R,Adt Leeds Cc,YES
Http://opendatacommunities.org/id/metropolitan-district-council/leeds,Leeds City Council As Accountable Body,30/11/2018,Social Services Pooled Budgets,Jcs For People With Learning Disabilitie,Third Party Payments,Sheltered Accommodation,569,29/11/2018,1811-00368,0.00,1332.20,R,Adult Placement Services,NO
Http://opendatacommunities.org/id/metropolitan-district-council/leeds,Leeds City Council,30/11/2018,Resources and Housing,Commercial Services  ,Supplies and Services,Operational Materials,205,04/10/2018,1811-00369,0.00,149.50,R,Adv Landscapes,YES
Http://opendatacommunities.org/id/metropolitan-district-council/leeds,Leeds City Council,30/11/2018,City Development,Libraries  Arts & Heritage,Supplies and Services,External Audit Fees,261,07/11/2018,1811-00370,0.00,85.00,R,Advance Stocks Ltd,NO
Http://opendatacommunities.org/id/metropolitan-district-council/leeds,Leeds City Council,30/11/2018,City Development,Libraries  Arts & Heritage,Supplies and Services,External Audit Fees,261,23/11/2018,1811-00371,0.00,90.00,R,Advance Stocks Ltd,NO
Http://opendatacommunities.org/id/metropolitan-district-council/leeds,Leeds City Council,30/11/2018,City Development,Recreation,Supplies and Services,External Audit Fees,261,23/11/2018,1811-00372,0.00,135.00,R,Advance Stocks Ltd,NO
Http://opendatacommunities.org/id/metropolitan-district-council/leeds,Leeds City Council,30/11/2018,City Development,Recreation,Supplies and Services,External Audit Fees,261,23/11/2018,1811-00373,0.00,85.00,R,Advance Stocks Ltd,NO
Http://opendatacommunities.org/id/metropolitan-district-council/leeds,Leeds City Council,30/11/2018,Children and Families,Social Care,Support Services,Legal Disbursements,411,20/11/2018,1811-00374,0.00,1209.85,R,Advanced Child Care Assessments Ltd,NO
Http://opendatacommunities.org/id/metropolitan-district-council/leeds,Leeds City Council,30/11/2018,Children and Families,Social Care  ,Third Party Payments,Contact,548,11/10/2018,1811-00375,0.00,6.90,R,Adventure Kids Leeds L,YES
Http://opendatacommunities.org/id/metropolitan-district-council/leeds,Leeds City Council,30/11/2018,City Development,Libraries  Arts & Heritage,Income,Admissions  Booking Fees & Ticket Sales,933,06/11/2018,1811-00376,0.00,381.04,R,Adverse Camber Productions,NO
Http://opendatacommunities.org/id/metropolitan-district-council/leeds,Leeds City Council,30/11/2018,City Development,Libraries  Arts & Heritage,Income,Other Income,973,06/11/2018,1811-00377,0.00,-11.32,R,Adverse Camber Productions,NO
Http://opendatacommunities.org/id/metropolitan-district-council/leeds,Leeds City Council As Accountable Body,30/11/2018,Social Services Pooled Budgets,Jcs For People With Learning Disabilitie,Third Party Payments,Residential,580,14/11/2018,1811-00378,0.00,17782.08,R,Advitam Ltd,NO
Http://opendatacommunities.org/id/metropolitan-district-council/leeds,Leeds City Council,30/11/2018,Children and Families,Social Care,Third Party Payments,Placement Support,550,01/11/2018,1811-00379,0.00,15.00,R,Advonet,NO
Http://opendatacommunities.org/id/metropolitan-district-council/leeds,Leeds City Council,30/11/2018,Children and Families,Social Care,Third Party Payments,Placement Support,550,01/11/2018,1811-00380,0.00,603.90,R,Advonet,NO
Http://opendatacommunities.org/id/metropolitan-district-council/leeds,Leeds City Council As Accountable Body,30/11/2018,Social Services Pooled Budgets,Jcs For People With Learning Disabilitie,Third Party Payments,Other Agency Services,561,09/11/2018,1811-00381,0.00,15.00,R,Advonet,NO
Http://opendatacommunities.org/id/metropolitan-district-council/leeds,Leeds City Council As Accountable Body,30/11/2018,Social Services Pooled Budgets,Jcs For People With Learning Disabilitie,Third Party Payments,Other Agency Services,561,27/11/2018,1811-00382,0.00,22.50,R,Advonet,NO
Http://opendatacommunities.org/id/metropolitan-district-council/leeds,Leeds City Council,30/11/2018,Adults and Health,Services For Older People - 65 And Over,Third Party Payments,Payments To Voluntary Organisations,561,30/11/2018,1811-00383,0.00,103916.67,R,Advonet,NO
Http://opendatacommunities.org/id/metropolitan-district-council/leeds,Leeds City Council,30/11/2018,City Development,Highways,Capital,Other Costs,7,20/11/2018,1811-00384,0.00,34985.75,C,Aecom Limited,NO
Http://opendatacommunities.org/id/metropolitan-district-council/leeds,Leeds City Council,30/11/2018,City Development,Asset Management Services,Supplies and Services,Other Hired And Contracted Services,265,23/11/2018,1811-00385,0.00,14030.00,R,Aecom Limited,NO
Http://opendatacommunities.org/id/metropolitan-district-council/leeds,Leeds City Council,30/11/2018,City Development,Highways,Capital,Other Costs,7,23/11/2018,1811-00386,0.00,2885.00,C,Aecom Limited,NO
Http://opendatacommunities.org/id/metropolitan-district-council/leeds,Leeds City Council,30/11/2018,City Development,Highways,Capital,Other Costs,7,26/11/2018,1811-00387,0.00,31212.99,C,Aecom Limited,NO
Http://opendatacommunities.org/id/metropolitan-district-council/leeds,Leeds City Council,30/11/2018,Insurance,Insurance,Supplies and Services,Insurance Claims,248,23/11/2018,1811-00388,0.00,360.00,R,Aequitas Legal Solicitors Limited,NO
Http://opendatacommunities.org/id/metropolitan-district-council/leeds,Leeds City Council,30/11/2018,Insurance,Insurance,Supplies and Services,Insurance Claims,248,27/11/2018,1811-00389,0.00,6300.00,R,Aequitas Legal Solicitors Limited,NO
Http://opendatacommunities.org/id/metropolitan-district-council/leeds,Leeds City Council,30/11/2018,Insurance,Insurance,Supplies and Services,Insurance Claims,248,27/11/2018,1811-00390,0.00,2094.00,R,Aequitas Legal Solicitors Limited,NO
Http://opendatacommunities.org/id/metropolitan-district-council/leeds,Leeds City Council As Accountable Body,30/11/2018,Social Services Pooled Budgets,Jcs For People With Learning Disabilitie,Third Party Payments,Home Care,568,02/11/2018,1811-00391,0.00,306.00,R,Affinity Trust,NO
Http://opendatacommunities.org/id/metropolitan-district-council/leeds,Leeds City Council As Accountable Body,30/11/2018,Social Services Pooled Budgets,Jcs For People With Learning Disabilitie,Third Party Payments,Home Care,568,02/11/2018,1811-00392,0.00,830.96,R,Affinity Trust,NO
Http://opendatacommunities.org/id/metropolitan-district-council/leeds,Leeds City Council As Accountable Body,30/11/2018,Social Services Pooled Budgets,Jcs For People With Learning Disabilitie,Third Party Payments,Home Care,568,02/11/2018,1811-00393,0.00,639.20,R,Affinity Trust,NO
Http://opendatacommunities.org/id/metropolitan-district-council/leeds,Leeds City Council As Accountable Body,30/11/2018,Social Services Pooled Budgets,Jcs For People With Learning Disabilitie,Third Party Payments,Day Centre,564,16/11/2018,1811-00394,0.00,1350.00,R,Affinity Trust,NO
Http://opendatacommunities.org/id/metropolitan-district-council/leeds,Leeds City Council As Accountable Body,30/11/2018,Social Services Pooled Budgets,Jcs For People With Learning Disabilitie,Third Party Payments,Day Centre,564,16/11/2018,1811-00395,0.00,1050.66,R,Affinity Trust,NO
Http://opendatacommunities.org/id/metropolitan-district-council/leeds,Leeds City Council As Accountable Body,30/11/2018,Social Services Pooled Budgets,Jcs For People With Learning Disabilitie,Third Party Payments,Home Care,568,16/11/2018,1811-00396,0.00,1050.00,R,Affinity Trust,NO
Http://opendatacommunities.org/id/metropolitan-district-council/leeds,Leeds City Council As Accountable Body,30/11/2018,Social Services Pooled Budgets,Jcs For People With Learning Disabilitie,Third Party Payments,Home Care,568,16/11/2018,1811-00397,0.00,617.31,R,Affinity Trust,NO
Http://opendatacommunities.org/id/metropolitan-district-council/leeds,Leeds City Council As Accountable Body,30/11/2018,Social Services Pooled Budgets,Jcs For People With Learning Disabilitie,Third Party Payments,Home Care,568,16/11/2018,1811-00398,0.00,1365.00,R,Affinity Trust,NO
Http://opendatacommunities.org/id/metropolitan-district-council/leeds,Leeds City Council As Accountable Body,30/11/2018,Social Services Pooled Budgets,Jcs For People With Learning Disabilitie,Third Party Payments,Home Care,568,16/11/2018,1811-00399,0.00,2752.80,R,Affinity Trust,NO
Http://opendatacommunities.org/id/metropolitan-district-council/leeds,Leeds City Council As Accountable Body,30/11/2018,Social Services Pooled Budgets,Jcs For People With Learning Disabilitie,Third Party Payments,Home Care,568,16/11/2018,1811-00400,0.00,1448.55,R,Affinity Trust,NO
Http://opendatacommunities.org/id/metropolitan-district-council/leeds,Leeds City Council As Accountable Body,30/11/2018,Social Services Pooled Budgets,Jcs For People With Learning Disabilitie,Third Party Payments,Home Care,568,16/11/2018,1811-00401,0.00,855.00,R,Affinity Trust,NO
Http://opendatacommunities.org/id/metropolitan-district-council/leeds,Leeds City Council As Accountable Body,30/11/2018,Social Services Pooled Budgets,Jcs For People With Learning Disabilitie,Third Party Payments,Home Care,568,16/11/2018,1811-00402,0.00,3391.78,R,Affinity Trust,NO
Http://opendatacommunities.org/id/metropolitan-district-council/leeds,Leeds City Council As Accountable Body,30/11/2018,Social Services Pooled Budgets,Jcs For People With Learning Disabilitie,Third Party Payments,Day Centre,564,16/11/2018,1811-00403,0.00,402.24,R,Affinity Trust,NO
Http://opendatacommunities.org/id/metropolitan-district-council/leeds,Leeds City Council As Accountable Body,30/11/2018,Social Services Pooled Budgets,Jcs For People With Learning Disabilitie,Third Party Payments,Home Care,568,16/11/2018,1811-00404,0.00,525.72,R,Affinity Trust,NO
Http://opendatacommunities.org/id/metropolitan-district-council/leeds,Leeds City Council As Accountable Body,30/11/2018,Social Services Pooled Budgets,Jcs For People With Learning Disabilitie,Third Party Payments,Day Centre,564,16/11/2018,1811-00405,0.00,1725.48,R,Affinity Trust,NO
Http://opendatacommunities.org/id/metropolitan-district-council/leeds,Leeds City Council As Accountable Body,30/11/2018,Social Services Pooled Budgets,Jcs For People With Learning Disabilitie,Third Party Payments,Home Care,568,16/11/2018,1811-00406,0.00,804.48,R,Affinity Trust,NO
Http://opendatacommunities.org/id/metropolitan-district-council/leeds,Leeds City Council As Accountable Body,30/11/2018,Social Services Pooled Budgets,Jcs For People With Learning Disabilitie,Third Party Payments,Home Care,568,16/11/2018,1811-00407,0.00,1364.13,R,Affinity Trust,NO
Http://opendatacommunities.org/id/metropolitan-district-council/leeds,Leeds City Council As Accountable Body,30/11/2018,Social Services Pooled Budgets,Jcs For People With Learning Disabilitie,Third Party Payments,Home Care,568,16/11/2018,1811-00408,0.00,1785.33,R,Affinity Trust,NO
Http://opendatacommunities.org/id/metropolitan-district-council/leeds,Leeds City Council As Accountable Body,30/11/2018,Social Services Pooled Budgets,Jcs For People With Learning Disabilitie,Third Party Payments,Home Care,568,16/11/2018,1811-00409,0.00,1005.60,R,Affinity Trust,NO
Http://opendatacommunities.org/id/metropolitan-district-council/leeds,Leeds City Council As Accountable Body,30/11/2018,Social Services Pooled Budgets,Jcs For People With Learning Disabilitie,Third Party Payments,Home Care,568,16/11/2018,1811-00410,0.00,360.00,R,Affinity Trust,NO
Http://opendatacommunities.org/id/metropolitan-district-council/leeds,Leeds City Council As Accountable Body,30/11/2018,Social Services Pooled Budgets,Jcs For People With Learning Disabilitie,Third Party Payments,Day Centre,564,16/11/2018,1811-00411,0.00,714.78,R,Affinity Trust,NO
Http://opendatacommunities.org/id/metropolitan-district-council/leeds,Leeds City Council As Accountable Body,30/11/2018,Social Services Pooled Budgets,Jcs For People With Learning Disabilitie,Third Party Payments,Day Centre,564,16/11/2018,1811-00412,0.00,2346.40,R,Affinity Trust,NO
Http://opendatacommunities.org/id/metropolitan-district-council/leeds,Leeds City Council As Accountable Body,30/11/2018,Social Services Pooled Budgets,Jcs For People With Learning Disabilitie,Third Party Payments,Day Centre,564,16/11/2018,1811-00413,0.00,1175.94,R,Affinity Trust,NO
Http://opendatacommunities.org/id/metropolitan-district-council/leeds,Leeds City Council As Accountable Body,30/11/2018,Social Services Pooled Budgets,Jcs For People With Learning Disabilitie,Third Party Payments,Day Centre,564,16/11/2018,1811-00414,0.00,2887.34,R,Affinity Trust,NO
Http://opendatacommunities.org/id/metropolitan-district-council/leeds,Leeds City Council As Accountable Body,30/11/2018,Social Services Pooled Budgets,Jcs For People With Learning Disabilitie,Third Party Payments,Home Care,568,16/11/2018,1811-00415,0.00,1453.68,R,Affinity Trust,NO
Http://opendatacommunities.org/id/metropolitan-district-council/leeds,Leeds City Council,30/11/2018,Adults and Health,Services For Older People Under 65 P/Dis,Third Party Payments,Home Care,568,16/11/2018,1811-00416,0.00,526.68,R,Affinity Trust,NO
Http://opendatacommunities.org/id/metropolitan-district-council/leeds,Leeds City Council As Accountable Body,30/11/2018,Social Services Pooled Budgets,Jcs For People With Learning Disabilitie,Third Party Payments,Home Care,568,16/11/2018,1811-00417,0.00,958.80,R,Affinity Trust,NO
Http://opendatacommunities.org/id/metropolitan-district-council/leeds,Leeds City Council As Accountable Body,30/11/2018,Social Services Pooled Budgets,Jcs For People With Learning Disabilitie,Third Party Payments,Home Care,568,16/11/2018,1811-00418,0.00,1342.32,R,Affinity Trust,NO
Http://opendatacommunities.org/id/metropolitan-district-council/leeds,Leeds City Council As Accountable Body,30/11/2018,Social Services Pooled Budgets,Jcs For People With Learning Disabilitie,Third Party Payments,Home Care,568,16/11/2018,1811-00419,0.00,191.76,R,Affinity Trust,NO
Http://opendatacommunities.org/id/metropolitan-district-council/leeds,Leeds City Council As Accountable Body,30/11/2018,Social Services Pooled Budgets,Jcs For People With Learning Disabilitie,Third Party Payments,Day Centre,564,16/11/2018,1811-00420,0.00,364.56,R,Affinity Trust,NO
Http://opendatacommunities.org/id/metropolitan-district-council/leeds,Leeds City Council As Accountable Body,30/11/2018,Social Services Pooled Budgets,Jcs For People With Learning Disabilitie,Third Party Payments,Home Care,568,16/11/2018,1811-00421,0.00,1518.00,R,Affinity Trust,NO
Http://opendatacommunities.org/id/metropolitan-district-council/leeds,Leeds City Council As Accountable Body,30/11/2018,Social Services Pooled Budgets,Jcs For People With Learning Disabilitie,Third Party Payments,Home Care,568,16/11/2018,1811-00422,0.00,958.74,R,Affinity Trust,NO
Http://opendatacommunities.org/id/metropolitan-district-council/leeds,Leeds City Council As Accountable Body,30/11/2018,Social Services Pooled Budgets,Jcs For People With Learning Disabilitie,Third Party Payments,Home Care,568,16/11/2018,1811-00423,0.00,295.63,R,Affinity Trust,NO
Http://opendatacommunities.org/id/metropolitan-district-council/leeds,Leeds City Council As Accountable Body,30/11/2018,Social Services Pooled Budgets,Jcs For People With Learning Disabilitie,Third Party Payments,Home Care,568,16/11/2018,1811-00424,0.00,639.20,R,Affinity Trust,NO
Http://opendatacommunities.org/id/metropolitan-district-council/leeds,Leeds City Council As Accountable Body,30/11/2018,Social Services Pooled Budgets,Jcs For People With Learning Disabilitie,Third Party Payments,Home Care,568,16/11/2018,1811-00425,0.00,408.00,R,Affinity Trust,NO
Http://opendatacommunities.org/id/metropolitan-district-council/leeds,Leeds City Council As Accountable Body,30/11/2018,Social Services Pooled Budgets,Jcs For People With Learning Disabilitie,Third Party Payments,Home Care,568,16/11/2018,1811-00426,0.00,2917.95,R,Affinity Trust,NO
Http://opendatacommunities.org/id/metropolitan-district-council/leeds,Leeds City Council As Accountable Body,30/11/2018,Social Services Pooled Budgets,Jcs For People With Learning Disabilitie,Third Party Payments,Home Care,568,16/11/2018,1811-00427,0.00,306.48,R,Affinity Trust,NO
Http://opendatacommunities.org/id/metropolitan-district-council/leeds,Leeds City Council As Accountable Body,30/11/2018,Social Services Pooled Budgets,Jcs For People With Learning Disabilitie,Third Party Payments,Home Care,568,16/11/2018,1811-00428,0.00,941.92,R,Affinity Trust,NO
Http://opendatacommunities.org/id/metropolitan-district-council/leeds,Leeds City Council As Accountable Body,30/11/2018,Social Services Pooled Budgets,Jcs For People With Learning Disabilitie,Third Party Payments,Home Care,568,16/11/2018,1811-00429,0.00,958.80,R,Affinity Trust,NO
Http://opendatacommunities.org/id/metropolitan-district-council/leeds,Leeds City Council As Accountable Body,30/11/2018,Social Services Pooled Budgets,Jcs For People With Learning Disabilitie,Third Party Payments,Home Care,568,16/11/2018,1811-00430,0.00,447.44,R,Affinity Trust,NO
Http://opendatacommunities.org/id/metropolitan-district-council/leeds,Leeds City Council As Accountable Body,30/11/2018,Social Services Pooled Budgets,Jcs For People With Learning Disabilitie,Third Party Payments,Home Care,568,16/11/2018,1811-00431,0.00,639.20,R,Affinity Trust,NO
Http://opendatacommunities.org/id/metropolitan-district-council/leeds,Leeds City Council As Accountable Body,30/11/2018,Social Services Pooled Budgets,Jcs For People With Learning Disabilitie,Third Party Payments,Home Care,568,16/11/2018,1811-00432,0.00,255.68,R,Affinity Trust,NO
Http://opendatacommunities.org/id/metropolitan-district-council/leeds,Leeds City Council As Accountable Body,30/11/2018,Social Services Pooled Budgets,Jcs For People With Learning Disabilitie,Third Party Payments,Home Care,568,16/11/2018,1811-00433,0.00,1330.34,R,Affinity Trust,NO
Http://opendatacommunities.org/id/metropolitan-district-council/leeds,Leeds City Council As Accountable Body,30/11/2018,Social Services Pooled Budgets,Jcs For People With Learning Disabilitie,Third Party Payments,Home Care,568,16/11/2018,1811-00434,0.00,319.60,R,Affinity Trust,NO
Http://opendatacommunities.org/id/metropolitan-district-council/leeds,Leeds City Council As Accountable Body,30/11/2018,Social Services Pooled Budgets,Jcs For People With Learning Disabilitie,Third Party Payments,Day Centre,564,16/11/2018,1811-00435,0.00,255.68,R,Affinity Trust,NO
Http://opendatacommunities.org/id/metropolitan-district-council/leeds,Leeds City Council As Accountable Body,30/11/2018,Social Services Pooled Budgets,Jcs For People With Learning Disabilitie,Third Party Payments,Home Care,568,16/11/2018,1811-00436,0.00,511.36,R,Affinity Trust,NO
Http://opendatacommunities.org/id/metropolitan-district-council/leeds,Leeds City Council As Accountable Body,30/11/2018,Social Services Pooled Budgets,Jcs For People With Learning Disabilitie,Third Party Payments,Home Care,568,16/11/2018,1811-00437,0.00,575.28,R,Affinity Trust,NO
Http://opendatacommunities.org/id/metropolitan-district-council/leeds,Leeds City Council,30/11/2018,Adults and Health,Assessment And Care Management,Third Party Payments,Home Care,568,16/11/2018,1811-00438,0.00,511.36,R,Affinity Trust,NO
Http://opendatacommunities.org/id/metropolitan-district-council/leeds,Leeds City Council,30/11/2018,Adults and Health,Services For Older People Under 65 P/Dis,Third Party Payments,Home Care,568,16/11/2018,1811-00439,0.00,672.80,R,Affinity Trust,NO
Http://opendatacommunities.org/id/metropolitan-district-council/leeds,Leeds City Council,30/11/2018,Adults and Health,Services For Older People - 65 And Over,Third Party Payments,Home Care,568,16/11/2018,1811-00440,0.00,567.29,R,Affinity Trust,NO
Http://opendatacommunities.org/id/metropolitan-district-council/leeds,Leeds City Council,30/11/2018,Adults and Health,Services For Older People Under 65 P/Dis,Third Party Payments,Home Care,568,21/11/2018,1811-00441,0.00,319.60,R,Affinity Trust,NO
Http://opendatacommunities.org/id/metropolitan-district-council/leeds,Leeds City Council,30/11/2018,Adults and Health,Services For Older People - 65 And Over,Third Party Payments,Home Care,568,23/11/2018,1811-00442,0.00,511.36,R,Affinity Trust,NO
Http://opendatacommunities.org/id/metropolitan-district-council/leeds,Leeds City Council,30/11/2018,Adults and Health,Services For Older People Under 65 P/Dis,Third Party Payments,Home Care,568,23/11/2018,1811-00443,0.00,1725.84,R,Affinity Trust,NO
Http://opendatacommunities.org/id/metropolitan-district-council/leeds,Leeds City Council As Accountable Body,30/11/2018,Social Services Pooled Budgets,Jcs For People With Learning Disabilitie,Third Party Payments,Day Centre,564,29/11/2018,1811-00444,0.00,17538.00,R,Affinity Trust,NO
Http://opendatacommunities.org/id/metropolitan-district-council/leeds,Leeds City Council As Accountable Body,30/11/2018,Social Services Pooled Budgets,Jcs For People With Learning Disabilitie,Third Party Payments,Sheltered Accommodation,569,14/11/2018,1811-00445,0.00,128373.88,R,Affinity Trust North Divisional Office,NO
Http://opendatacommunities.org/id/metropolitan-district-council/leeds,Leeds City Council,30/11/2018,Communities and Environment,Parks And Countryside  ,Transport,External Hire -Occasional,304,12/10/2018,1811-00446,0.00,1900.00,R,Afi Uplift,YES
Http://opendatacommunities.org/id/metropolitan-district-council/leeds,Leeds City Council,30/11/2018,Communities and Environment,Parks And Countryside  ,Transport,External Hire -Occasional,304,12/10/2018,1811-00447,0.00,1900.00,R,Afi Uplift,YES
Http://opendatacommunities.org/id/metropolitan-district-council/leeds,Leeds City Council,30/11/2018,Communities and Environment,Parks and Countryside,Employees,Training & Development,70,19/11/2018,1811-00448,0.00,100.00,R,Afi-Uplift Limited,NO
Http://opendatacommunities.org/id/metropolitan-district-council/leeds,Leeds City Council,30/11/2018,Communities and Environment,Parks and Countryside,Employees,Training & Development,70,21/11/2018,1811-00449,0.00,750.00,R,Afi-Uplift Limited,NO
Http://opendatacommunities.org/id/metropolitan-district-council/leeds,Leeds City Council,30/11/2018,Communities and Environment,Parks and Countryside,Employees,Training & Development,70,21/11/2018,1811-00450,0.00,750.00,R,Afi-Uplift Limited,NO
Http://opendatacommunities.org/id/metropolitan-district-council/leeds,Leeds City Council,30/11/2018,City Development,Libraries  Arts & Heritage,Supplies and Services,Bought In Professional Services,277,13/11/2018,1811-00451,0.00,1000.00,R,Agere Learning,NO
Http://opendatacommunities.org/id/metropolitan-district-council/leeds,Leeds City Council,30/11/2018,Children and Families,Social Care  ,Supplies and Services,Other Hired And Contracted Services,265,17/10/2018,1811-00452,0.00,108.16,R,Ageukleedsabbeydash,YES
Http://opendatacommunities.org/id/metropolitan-district-council/leeds,Leeds City Council,30/11/2018,City Development,Highways,Capital,Construction,3,01/11/2018,1811-00453,0.00,578881.33,C,Aggregate Industries Uk Ltd,NO
Http://opendatacommunities.org/id/metropolitan-district-council/leeds,Leeds City Council,30/11/2018,City Development,Libraries  Arts & Heritage,Supplies and Services,Other Hired And Contracted Services,265,22/11/2018,1811-00454,0.00,2000.00,R,Agnis Smallwood,NO
Http://opendatacommunities.org/id/metropolitan-district-council/leeds,Leeds City Council,30/11/2018,Communities and Environment,Parks And Countryside  ,Supplies and Services,Operational Materials,205,09/10/2018,1811-00455,0.00,492.50,R,Ahdb.Org.Uk,YES
Http://opendatacommunities.org/id/metropolitan-district-council/leeds,Leeds City Council,30/11/2018,City Development,Libraries  Arts & Heritage,Transport,Car Parking Fees,312,01/11/2018,1811-00456,0.00,20.00,R,REDACTED PERSONAL DATA,NO
Http://opendatacommunities.org/id/metropolitan-district-council/leeds,Leeds City Council,30/11/2018,Children and Families,Learning,Supplies and Services,Teaching Materials,202,09/11/2018,1811-00457,0.00,25.02,R,Aid Training & Operations Ltd,NO
Http://opendatacommunities.org/id/metropolitan-district-council/leeds,Leeds City Council,30/11/2018,Children and Families,Learning,Supplies and Services,Teaching Materials,202,19/11/2018,1811-00458,0.00,41.02,R,Aid Training & Operations Ltd,NO
Http://opendatacommunities.org/id/metropolitan-district-council/leeds,Leeds City Council As Accountable Body,30/11/2018,Social Services Pooled Budgets,Leeds Community Equip Store Pooled Budgt,Supplies and Services,Other Equipment,203,07/11/2018,1811-00459,0.00,628.20,R,Aidapt Bathrooms Ltd,NO
Http://opendatacommunities.org/id/metropolitan-district-council/leeds,Leeds City Council As Accountable Body,30/11/2018,Social Services Pooled Budgets,Leeds Community Equip Store Pooled Budgt,Supplies and Services,Other Equipment,203,09/11/2018,1811-00460,0.00,1934.60,R,Aidapt Bathrooms Ltd,NO
Http://opendatacommunities.org/id/metropolitan-district-council/leeds,Leeds City Council As Accountable Body,30/11/2018,Social Services Pooled Budgets,Leeds Community Equip Store Pooled Budgt,Supplies and Services,Other Equipment,203,16/11/2018,1811-00461,0.00,759.10,R,Aidapt Bathrooms Ltd,NO
Http://opendatacommunities.org/id/metropolitan-district-council/leeds,Leeds City Council As Accountable Body,30/11/2018,Social Services Pooled Budgets,Leeds Community Equip Store Pooled Budgt,Supplies and Services,Other Equipment,203,16/11/2018,1811-00462,0.00,74.40,R,Aidapt Bathrooms Ltd,NO
Http://opendatacommunities.org/id/metropolitan-district-council/leeds,Leeds City Council As Accountable Body,30/11/2018,Social Services Pooled Budgets,Leeds Community Equip Store Pooled Budgt,Supplies and Services,Other Equipment,203,30/11/2018,1811-00463,0.00,79.80,R,Aidapt Bathrooms Ltd,NO
Http://opendatacommunities.org/id/metropolitan-district-council/leeds,Leeds City Council As Accountable Body,30/11/2018,Social Services Pooled Budgets,Leeds Community Equip Store Pooled Budgt,Supplies and Services,Other Equipment,203,30/11/2018,1811-00464,0.00,769.00,R,Aidapt Bathrooms Ltd,NO
Http://opendatacommunities.org/id/metropolitan-district-council/leeds,Leeds City Council As Accountable Body,30/11/2018,Social Services Pooled Budgets,Leeds Community Equip Store Pooled Budgt,Supplies and Services,Other Equipment,203,30/11/2018,1811-00465,0.00,126.72,R,Aidapt Bathrooms Ltd,NO
Http://opendatacommunities.org/id/metropolitan-district-council/leeds,Leeds City Council As Accountable Body,30/11/2018,Social Services Pooled Budgets,Leeds Community Equip Store Pooled Budgt,Supplies and Services,Other Equipment,203,30/11/2018,1811-00466,0.00,2645.90,R,Aidapt Bathrooms Ltd,NO
Http://opendatacommunities.org/id/metropolitan-district-council/leeds,Leeds City Council,30/11/2018,City Development,Libraries  Arts & Heritage,Supplies and Services,Operational Materials,205,14/11/2018,1811-00467,0.00,300.00,R,Aimee Grundell,NO
Http://opendatacommunities.org/id/metropolitan-district-council/leeds,Leeds City Council,30/11/2018,City Development,Libraries  Arts & Heritage,Supplies and Services,Other Hired And Contracted Services,265,28/11/2018,1811-00468,0.00,5838.00,R,Aimee Grundell,NO
Http://opendatacommunities.org/id/metropolitan-district-council/leeds,Leeds City Council,30/11/2018,Strategic Accounts,Miscellaneous,Transfer Payments,Land Drainage Levies,665,01/11/2018,1811-00469,0.00,3737.64,R,Ainsty (2008) Internal Drainage Board,NO
Http://opendatacommunities.org/id/metropolitan-district-council/leeds,Leeds City Council,30/11/2018,Resources and Housing,Leeds Building Services,Supplies and Services,Operational Materials,205,02/11/2018,1811-00470,0.00,44.80,R,Air Conditioning Accessories,NO
Http://opendatacommunities.org/id/metropolitan-district-council/leeds,Leeds City Council,30/11/2018,Resources and Housing,Leeds Building Services,Supplies and Services,Operational Materials,205,02/11/2018,1811-00471,0.00,37.44,R,Air Conditioning Accessories,NO
Http://opendatacommunities.org/id/metropolitan-district-council/leeds,Leeds City Council,30/11/2018,Resources and Housing,Leeds Building Services,Supplies and Services,Operational Materials,205,02/11/2018,1811-00472,0.00,26.13,R,Air Conditioning Accessories,NO
Http://opendatacommunities.org/id/metropolitan-district-council/leeds,Leeds City Council,30/11/2018,Resources and Housing,Leeds Building Services,Supplies and Services,Operational Materials,205,09/11/2018,1811-00473,0.00,119.41,R,Air Conditioning Accessories,NO
Http://opendatacommunities.org/id/metropolitan-district-council/leeds,Leeds City Council,30/11/2018,Resources and Housing,Leeds Building Services,Supplies and Services,Operational Materials,205,09/11/2018,1811-00474,0.00,1474.56,R,Air Conditioning Accessories,NO
Http://opendatacommunities.org/id/metropolitan-district-council/leeds,Leeds City Council,30/11/2018,Resources and Housing,Leeds Building Services,Supplies and Services,Operational Materials,205,09/11/2018,1811-00475,0.00,70.61,R,Air Conditioning Accessories,NO
Http://opendatacommunities.org/id/metropolitan-district-council/leeds,Leeds City Council,30/11/2018,Resources and Housing,Leeds Building Services,Supplies and Services,Operational Materials,205,16/11/2018,1811-00476,0.00,135.36,R,Air Conditioning Accessories,NO
Http://opendatacommunities.org/id/metropolitan-district-council/leeds,Leeds City Council,30/11/2018,Resources and Housing,Leeds Building Services,Supplies and Services,Operational Materials,205,16/11/2018,1811-00477,0.00,82.32,R,Air Conditioning Accessories,NO
Http://opendatacommunities.org/id/metropolitan-district-council/leeds,Leeds City Council,30/11/2018,Resources and Housing,Leeds Building Services,Supplies and Services,Operational Materials,205,16/11/2018,1811-00478,0.00,7.57,R,Air Conditioning Accessories,NO
Http://opendatacommunities.org/id/metropolitan-district-council/leeds,Leeds City Council,30/11/2018,Resources and Housing,Leeds Building Services,Supplies and Services,Operational Materials,205,16/11/2018,1811-00479,0.00,22.04,R,Air Conditioning Accessories,NO
Http://opendatacommunities.org/id/metropolitan-district-council/leeds,Leeds City Council,30/11/2018,Resources and Housing,Leeds Building Services,Supplies and Services,Operational Materials,205,16/11/2018,1811-00480,0.00,29.80,R,Air Conditioning Accessories,NO
Http://opendatacommunities.org/id/metropolitan-district-council/leeds,Leeds City Council,30/11/2018,Resources and Housing,Leeds Building Services,Supplies and Services,Operational Materials,205,23/11/2018,1811-00481,0.00,47.52,R,Air Conditioning Accessories,NO
Http://opendatacommunities.org/id/metropolitan-district-council/leeds,Leeds City Council,30/11/2018,Resources and Housing,Leeds Building Services,Supplies and Services,Operational Materials,205,23/11/2018,1811-00482,0.00,131.92,R,Air Conditioning Accessories,NO
Http://opendatacommunities.org/id/metropolitan-district-council/leeds,Leeds City Council,30/11/2018,Resources and Housing,Leeds Building Services,Supplies and Services,Operational Materials,205,23/11/2018,1811-00483,0.00,121.50,R,Air Conditioning Accessories,NO
Http://opendatacommunities.org/id/metropolitan-district-council/leeds,Leeds City Council,30/11/2018,Resources and Housing,Leeds Building Services,Supplies and Services,Operational Materials,205,27/11/2018,1811-00484,0.00,34.65,R,Air Conditioning Accessories,NO
Http://opendatacommunities.org/id/metropolitan-district-council/leeds,Leeds City Council,30/11/2018,Resources and Housing,Leeds Building Services,Supplies and Services,Operational Materials,205,30/11/2018,1811-00485,0.00,97.52,R,Air Conditioning Accessories,NO
Http://opendatacommunities.org/id/metropolitan-district-council/leeds,Leeds City Council,30/11/2018,Communities and Environment,Environmental Health,Supplies and Services,Other Hired And Contracted Services,265,01/11/2018,1811-00486,0.00,9.86,R,Air Liquide Uk,NO
Http://opendatacommunities.org/id/metropolitan-district-council/leeds,Leeds City Council,30/11/2018,Communities and Environment,Environmental Health,Supplies and Services,Other Hired And Contracted Services,265,01/11/2018,1811-00487,0.00,9.86,R,Air Liquide Uk,NO
Http://opendatacommunities.org/id/metropolitan-district-council/leeds,Leeds City Council,30/11/2018,Communities and Environment,Environmental Health,Supplies and Services,Other Hired And Contracted Services,265,01/11/2018,1811-00488,0.00,15.03,R,Air Liquide Uk,NO
Http://opendatacommunities.org/id/metropolitan-district-council/leeds,Leeds City Council,30/11/2018,Communities and Environment,Environmental Health,Supplies and Services,Other Hired And Contracted Services,265,01/11/2018,1811-00489,0.00,69.02,R,Air Liquide Uk,NO
Http://opendatacommunities.org/id/metropolitan-district-council/leeds,Leeds City Council,30/11/2018,Communities and Environment,Environmental Health,Supplies and Services,Other Hired And Contracted Services,265,21/11/2018,1811-00490,0.00,508.36,R,Air Liquide Uk,NO
Http://opendatacommunities.org/id/metropolitan-district-council/leeds,Leeds City Council,30/11/2018,Communities and Environment,Environmental Health,Supplies and Services,Other Hired And Contracted Services,265,21/11/2018,1811-00491,0.00,508.36,R,Air Liquide Uk,NO
Http://opendatacommunities.org/id/metropolitan-district-council/leeds,Leeds City Council,30/11/2018,Communities and Environment,Environmental Health,Supplies and Services,Other Hired And Contracted Services,265,28/11/2018,1811-00492,0.00,9.86,R,Air Liquide Uk,NO
Http://opendatacommunities.org/id/metropolitan-district-council/leeds,Leeds City Council,30/11/2018,Communities and Environment,Environmental Health,Supplies and Services,Other Hired And Contracted Services,265,28/11/2018,1811-00493,0.00,9.86,R,Air Liquide Uk,NO
Http://opendatacommunities.org/id/metropolitan-district-council/leeds,Leeds City Council,30/11/2018,Communities and Environment,Environmental Health,Supplies and Services,Other Hired And Contracted Services,265,28/11/2018,1811-00494,0.00,69.02,R,Air Liquide Uk,NO
Http://opendatacommunities.org/id/metropolitan-district-council/leeds,Leeds City Council,30/11/2018,Resources and Housing,Leeds Building Services,Supplies and Services,Operational Materials,205,30/11/2018,1811-00495,0.00,189.71,R,Air Liquide Uk,NO
Http://opendatacommunities.org/id/metropolitan-district-council/leeds,Leeds City Council,30/11/2018,Communities and Environment,Environmental Health,Supplies and Services,Other Hired And Contracted Services,265,28/11/2018,1811-00496,0.00,221.00,R,Air Monitors Ltd,NO
Http://opendatacommunities.org/id/metropolitan-district-council/leeds,Leeds City Council,30/11/2018,Adults and Health,Services For Older People - 65 And Over,Third Party Payments,Residential Care Dementia,571,14/11/2018,1811-00497,0.00,45931.57,R,Aire View Residential Home,NO
Http://opendatacommunities.org/id/metropolitan-district-council/leeds,Leeds City Council,30/11/2018,Adults and Health,Services For Older People - 65 And Over,Third Party Payments,Residential,580,14/11/2018,1811-00498,0.00,13280.48,R,Aire View Residential Home,NO
Http://opendatacommunities.org/id/metropolitan-district-council/leeds,Leeds City Council,30/11/2018,Adults and Health,Public Health,Third Party Payments,Public Health Commissioned Services,526,16/11/2018,1811-00499,0.00,805.00,R,Aireborough Family Practice,NO
Http://opendatacommunities.org/id/metropolitan-district-council/leeds,Leeds City Council,30/11/2018,Children and Families,Social Care,Third Party Payments,Services Rendered By Voluntary Sector,505,12/11/2018,1811-00500,0.00,3705.00,R,Aireborough Supported Activities Scheme,NO
Http://opendatacommunities.org/id/metropolitan-district-council/leeds,Leeds City Council,30/11/2018,Children and Families,Social Care,Third Party Payments,Services Rendered By Voluntary Sector,505,12/11/2018,1811-00501,0.00,50000.00,R,Aireborough Supported Activities Scheme,NO
Http://opendatacommunities.org/id/metropolitan-district-council/leeds,Leeds City Council,30/11/2018,Communities and Environment,Communities,Supplies and Services,'Well Being' Large Grants Projects,230,23/11/2018,1811-00502,0.00,5633.00,R,Aireborough Supported Activities Scheme,NO
Http://opendatacommunities.org/id/metropolitan-district-council/leeds,Leeds City Council,30/11/2018,Adults and Health,Services For Older People - 65 And Over,Third Party Payments,Residential Care Dementia,571,14/11/2018,1811-00503,0.00,4160.12,R,Airedale Care Home,NO
Http://opendatacommunities.org/id/metropolitan-district-council/leeds,Leeds City Council,30/11/2018,Adults and Health,Services For Older People - 65 And Over,Third Party Payments,Residential,580,14/11/2018,1811-00504,0.00,31514.49,R,Airedale Care Home,NO
Http://opendatacommunities.org/id/metropolitan-district-council/leeds,Leeds City Council,30/11/2018,Adults and Health,Services For Older People Under 65 P/Dis,Third Party Payments,Residential,580,15/11/2018,1811-00505,0.00,288.83,R,Airedale Care Home,NO
Http://opendatacommunities.org/id/metropolitan-district-council/leeds,Leeds City Council,30/11/2018,Resources and Housing,Leeds Building Services,Supplies and Services,Other Hired And Contracted Services,265,29/11/2018,1811-00506,0.00,2570.00,R,Airedale Catering Equipment Ltd,NO
Http://opendatacommunities.org/id/metropolitan-district-council/leeds,Leeds City Council,30/11/2018,Resources and Housing,Commercial Services,Premises,Fixtures & Fittings,131,30/11/2018,1811-00507,0.00,18304.00,R,Airedale Catering Equipment Ltd,NO
Http://opendatacommunities.org/id/metropolitan-district-council/leeds,Leeds City Council,30/11/2018,Adults and Health,Assessment And Care Management,Employees,Training Costs,71,15/11/2018,1811-00508,0.00,120.00,R,Airedale Community Trading (Act) Ltd,NO
Http://opendatacommunities.org/id/metropolitan-district-council/leeds,Leeds City Council,30/11/2018,Adults and Health,Assessment And Care Management,Employees,Training Costs,71,30/11/2018,1811-00509,0.00,120.00,R,Airedale Community Trading (Act) Ltd,NO
Http://opendatacommunities.org/id/metropolitan-district-council/leeds,Leeds City Council,30/11/2018,Communities and Environment,Community Safety,Supplies and Services,Bought In Professional Services,277,09/11/2018,1811-00510,0.00,832.44,R,Airwave Solutions Ltd,NO
Http://opendatacommunities.org/id/metropolitan-district-council/leeds,Leeds City Council,30/11/2018,City Development,Libraries  Arts & Heritage,Supplies and Services,Other Hired And Contracted Services,265,09/11/2018,1811-00511,0.00,200.00,R,Aisling Greally,NO
Http://opendatacommunities.org/id/metropolitan-district-council/leeds,Leeds City Council,30/11/2018,Adults and Health,Services For Adults Under 65 Mental/Dis,Third Party Payments,Services Provided By Other NHS Bodies,522,09/11/2018,1811-00512,0.00,239.50,R,Ait Mitra Limited,NO
Http://opendatacommunities.org/id/metropolitan-district-council/leeds,Leeds City Council,30/11/2018,Adults and Health,Services For Adults Under 65 Mental/Dis,Third Party Payments,Services Provided By Other NHS Bodies,522,09/11/2018,1811-00513,0.00,175.00,R,Ait Mitra Limited,NO
Http://opendatacommunities.org/id/metropolitan-district-council/leeds,Leeds City Council,30/11/2018,Adults and Health,Services For Adults Under 65 Mental/Dis,Third Party Payments,Services Provided By Other NHS Bodies,522,09/11/2018,1811-00514,0.00,175.00,R,Ait Mitra Limited,NO
Http://opendatacommunities.org/id/metropolitan-district-council/leeds,Leeds City Council,30/11/2018,Adults and Health,Services For Adults Under 65 Mental/Dis,Third Party Payments,Services Provided By Other NHS Bodies,522,09/11/2018,1811-00515,0.00,175.00,R,Ait Mitra Limited,NO
Http://opendatacommunities.org/id/metropolitan-district-council/leeds,Leeds City Council,30/11/2018,Adults and Health,Services For Adults Under 65 Mental/Dis,Third Party Payments,Services Provided By Other NHS Bodies,522,09/11/2018,1811-00516,0.00,175.00,R,Ait Mitra Limited,NO
Http://opendatacommunities.org/id/metropolitan-district-council/leeds,Leeds City Council,30/11/2018,Adults and Health,Services For Adults Under 65 Mental/Dis,Third Party Payments,Services Provided By Other NHS Bodies,522,09/11/2018,1811-00517,0.00,175.00,R,Ait Mitra Limited,NO
Http://opendatacommunities.org/id/metropolitan-district-council/leeds,Leeds City Council,30/11/2018,Adults and Health,Services For Adults Under 65 Mental/Dis,Third Party Payments,Services Provided By Other NHS Bodies,522,30/11/2018,1811-00518,0.00,239.50,R,Ait Mitra Limited,NO
Http://opendatacommunities.org/id/metropolitan-district-council/leeds,Leeds City Council,30/11/2018,Adults and Health,Services For Adults Under 65 Mental/Dis,Third Party Payments,Services Provided By Other NHS Bodies,522,30/11/2018,1811-00519,0.00,175.00,R,Ait Mitra Limited,NO
Http://opendatacommunities.org/id/metropolitan-district-council/leeds,Leeds City Council,30/11/2018,Adults and Health,Services For Adults Under 65 Mental/Dis,Third Party Payments,Services Provided By Other NHS Bodies,522,30/11/2018,1811-00520,0.00,175.00,R,Ait Mitra Limited,NO
Http://opendatacommunities.org/id/metropolitan-district-council/leeds,Leeds City Council,30/11/2018,Adults and Health,Services For Adults Under 65 Mental/Dis,Third Party Payments,Services Provided By Other NHS Bodies,522,30/11/2018,1811-00521,0.00,175.00,R,Ait Mitra Limited,NO
Http://opendatacommunities.org/id/metropolitan-district-council/leeds,Leeds City Council As Accountable Body,30/11/2018,Social Services Pooled Budgets,Jcs For People With Learning Disabilitie,Third Party Payments,Residential,580,14/11/2018,1811-00522,0.00,6173.24,R,Aitch Care Homes,NO
Http://opendatacommunities.org/id/metropolitan-district-council/leeds,Leeds City Council,30/11/2018,Communities and Environment,Parks and Countryside,Supplies and Services,Operational Materials,205,09/11/2018,1811-00523,0.00,136.00,R,Aitkens Sportsturf Ltd,NO
Http://opendatacommunities.org/id/metropolitan-district-council/leeds,Leeds City Council,30/11/2018,Resources and Housing,Commercial Services,Supplies and Services,Other Hired And Contracted Services,265,19/11/2018,1811-00524,0.00,450.00,R,REDACTED PERSONAL DATA,NO
Http://opendatacommunities.org/id/metropolitan-district-council/leeds,Leeds City Council,30/11/2018,Adults and Health,Services For Older People - 65 And Over,Third Party Payments,Home Care,568,16/11/2018,1811-00525,0.00,3579.57,R,Aj Community Care Ltd,NO
Http://opendatacommunities.org/id/metropolitan-district-council/leeds,Leeds City Council,30/11/2018,Adults and Health,Services For Older People Under 65 P/Dis,Third Party Payments,Home Care,568,16/11/2018,1811-00526,0.00,3350.90,R,Aj Community Care Ltd,NO
Http://opendatacommunities.org/id/metropolitan-district-council/leeds,Leeds City Council,30/11/2018,Adults and Health,Services For Older People - 65 And Over,Third Party Payments,Home Care,568,16/11/2018,1811-00527,0.00,16999.31,R,Aj Community Care Ltd,NO
Http://opendatacommunities.org/id/metropolitan-district-council/leeds,Leeds City Council,30/11/2018,Adults and Health,Services For Older People Under 65 P/Dis,Third Party Payments,Home Care,568,16/11/2018,1811-00528,0.00,7603.38,R,Aj Community Care Ltd,NO
Http://opendatacommunities.org/id/metropolitan-district-council/leeds,Leeds City Council,30/11/2018,Adults and Health,Services For Older People Under 65 P/Dis,Third Party Payments,Home Care,568,23/11/2018,1811-00529,0.00,26.38,R,Aj Community Care Ltd,NO
Http://opendatacommunities.org/id/metropolitan-district-council/leeds,Leeds City Council,30/11/2018,Adults and Health,Services For Older People - 65 And Over,Third Party Payments,Home Care,568,23/11/2018,1811-00530,0.00,15.94,R,Aj Community Care Ltd,NO
Http://opendatacommunities.org/id/metropolitan-district-council/leeds,Leeds City Council,30/11/2018,Adults and Health,Services For Older People - 65 And Over,Third Party Payments,Home Care,568,26/11/2018,1811-00531,0.00,29.88,R,Aj Community Care Ltd,NO
Http://opendatacommunities.org/id/metropolitan-district-council/leeds,Leeds City Council,30/11/2018,Resources and Housing,Leeds Building Services,Supplies and Services,Operational Furniture And Equipment,203,08/11/2018,1811-00532,0.00,970.00,R,Ajm Fixings & Power Tools Ltd,NO
Http://opendatacommunities.org/id/metropolitan-district-council/leeds,Leeds City Council,30/11/2018,Resources and Housing,Leeds Building Services,Supplies and Services,Operational Furniture And Equipment,203,08/11/2018,1811-00533,0.00,2122.00,R,Ajm Fixings & Power Tools Ltd,NO
Http://opendatacommunities.org/id/metropolitan-district-council/leeds,Leeds City Council,30/11/2018,Resources and Housing,Leeds Building Services,Supplies and Services,Stores - Central And Other Depots,005,12/11/2018,1811-00534,0.00,121.30,R,Ajm Fixings & Power Tools Ltd,NO
Http://opendatacommunities.org/id/metropolitan-district-council/leeds,Leeds City Council,30/11/2018,Resources and Housing,Leeds Building Services,Supplies and Services,Operational Furniture And Equipment,203,14/11/2018,1811-00535,0.00,217.10,R,Ajm Fixings & Power Tools Ltd,NO
Http://opendatacommunities.org/id/metropolitan-district-council/leeds,Leeds City Council,30/11/2018,Resources and Housing,Leeds Building Services,Supplies and Services,Operational Furniture And Equipment,203,16/11/2018,1811-00536,0.00,157.19,R,Ajm Fixings & Power Tools Ltd,NO
Http://opendatacommunities.org/id/metropolitan-district-council/leeds,Leeds City Council,30/11/2018,Resources and Housing,Leeds Building Services,Supplies and Services,Operational Furniture And Equipment,203,16/11/2018,1811-00537,0.00,73.46,R,Ajm Fixings & Power Tools Ltd,NO
Http://opendatacommunities.org/id/metropolitan-district-council/leeds,Leeds City Council,30/11/2018,Resources and Housing,Leeds Building Services,Supplies and Services,Operational Furniture And Equipment,203,16/11/2018,1811-00538,0.00,128.48,R,Ajm Fixings & Power Tools Ltd,NO
Http://opendatacommunities.org/id/metropolitan-district-council/leeds,Leeds City Council,30/11/2018,Resources and Housing,Leeds Building Services,Supplies and Services,Operational Furniture And Equipment,203,16/11/2018,1811-00539,0.00,5.34,R,Ajm Fixings & Power Tools Ltd,NO
Http://opendatacommunities.org/id/metropolitan-district-council/leeds,Leeds City Council,30/11/2018,Resources and Housing,Leeds Building Services,Supplies and Services,Operational Furniture And Equipment,203,20/11/2018,1811-00540,0.00,32.00,R,Ajm Fixings & Power Tools Ltd,NO
Http://opendatacommunities.org/id/metropolitan-district-council/leeds,Leeds City Council,30/11/2018,Resources and Housing,Leeds Building Services,Supplies and Services,Stores - Central And Other Depots,005,20/11/2018,1811-00541,0.00,1343.77,R,Ajm Fixings & Power Tools Ltd,NO
Http://opendatacommunities.org/id/metropolitan-district-council/leeds,Leeds City Council,30/11/2018,Resources and Housing,Leeds Building Services,Supplies and Services,Operational Furniture And Equipment,203,22/11/2018,1811-00542,0.00,1453.49,R,Ajm Fixings & Power Tools Ltd,NO
Http://opendatacommunities.org/id/metropolitan-district-council/leeds,Leeds City Council,30/11/2018,Resources and Housing,Leeds Building Services,Supplies and Services,Operational Materials,205,22/11/2018,1811-00543,0.00,42.00,R,Ajm Fixings & Power Tools Ltd,NO
Http://opendatacommunities.org/id/metropolitan-district-council/leeds,Leeds City Council,30/11/2018,Resources and Housing,Leeds Building Services,Supplies and Services,Operational Materials,205,22/11/2018,1811-00544,0.00,39.00,R,Ajm Fixings & Power Tools Ltd,NO
Http://opendatacommunities.org/id/metropolitan-district-council/leeds,Leeds City Council,30/11/2018,Resources and Housing,Leeds Building Services,Supplies and Services,Operational Materials,205,22/11/2018,1811-00545,0.00,27.50,R,Ajm Fixings & Power Tools Ltd,NO
Http://opendatacommunities.org/id/metropolitan-district-council/leeds,Leeds City Council,30/11/2018,Resources and Housing,Leeds Building Services,Supplies and Services,Stores - Central And Other Depots,005,22/11/2018,1811-00546,0.00,1396.96,R,Ajm Fixings & Power Tools Ltd,NO
Http://opendatacommunities.org/id/metropolitan-district-council/leeds,Leeds City Council,30/11/2018,Resources and Housing,Leeds Building Services,Supplies and Services,Operational Furniture And Equipment,203,23/11/2018,1811-00547,0.00,6.46,R,Ajm Fixings & Power Tools Ltd,NO
Http://opendatacommunities.org/id/metropolitan-district-council/leeds,Leeds City Council,30/11/2018,Resources and Housing,Leeds Building Services,Supplies and Services,Operational Furniture And Equipment,203,23/11/2018,1811-00548,0.00,138.00,R,Ajm Fixings & Power Tools Ltd,NO
Http://opendatacommunities.org/id/metropolitan-district-council/leeds,Leeds City Council,30/11/2018,Resources and Housing,Leeds Building Services,Supplies and Services,Operational Materials,205,23/11/2018,1811-00549,0.00,208.50,R,Ajm Fixings & Power Tools Ltd,NO
Http://opendatacommunities.org/id/metropolitan-district-council/leeds,Leeds City Council,30/11/2018,Resources and Housing,Leeds Building Services,Supplies and Services,Operational Furniture And Equipment,203,30/11/2018,1811-00550,0.00,100.00,R,Ajm Fixings & Power Tools Ltd,NO
Http://opendatacommunities.org/id/metropolitan-district-council/leeds,Leeds City Council,30/11/2018,Resources and Housing,Leeds Building Services,Supplies and Services,Operational Furniture And Equipment,203,30/11/2018,1811-00551,0.00,2011.00,R,Ajm Fixings & Power Tools Ltd,NO
Http://opendatacommunities.org/id/metropolitan-district-council/leeds,Leeds City Council,30/11/2018,Resources and Housing,Leeds Building Services,Supplies and Services,Operational Furniture And Equipment,203,30/11/2018,1811-00552,0.00,179.17,R,Ajm Fixings & Power Tools Ltd,NO
Http://opendatacommunities.org/id/metropolitan-district-council/leeds,Leeds City Council,30/11/2018,Resources and Housing,Leeds Building Services,Supplies and Services,Stores - Central And Other Depots,005,30/11/2018,1811-00553,0.00,210.50,R,Ajm Fixings & Power Tools Ltd,NO
Http://opendatacommunities.org/id/metropolitan-district-council/leeds,Leeds City Council,30/11/2018,Resources and Housing,Leeds Building Services,Supplies and Services,Operational Furniture And Equipment,203,30/11/2018,1811-00554,0.00,135.98,R,Ajm Fixings & Power Tools Ltd,NO
Http://opendatacommunities.org/id/metropolitan-district-council/leeds,Leeds City Council,30/11/2018,Communities and Environment,Elections  Licensing and Registration,Income,Admissions  Booking Fees & Ticket Sales,933,22/11/2018,1811-00555,0.00,235.00,R,REDACTED PERSONAL DATA,NO
Http://opendatacommunities.org/id/metropolitan-district-council/leeds,Leeds City Council,30/11/2018,Adults and Health,Other Adult Services,Supplies and Services,Printing,215,29/11/2018,1811-00556,0.00,244.00,R,Aks Print & Design,NO
Http://opendatacommunities.org/id/metropolitan-district-council/leeds,Leeds City Council,30/11/2018,Communities and Environment,Communities,Supplies and Services,'Well Being' Large Grants Projects,230,15/11/2018,1811-00557,0.00,2408.36,R,Al Khidmat Centre,NO
Http://opendatacommunities.org/id/metropolitan-district-council/leeds,Leeds City Council,30/11/2018,Children and Families,Social Care,Transfer Payments,Leaving Care Allowances,634,08/11/2018,1811-00558,0.00,50.00,R,REDACTED PERSONAL DATA,NO
Http://opendatacommunities.org/id/metropolitan-district-council/leeds,Leeds City Council,30/11/2018,Resources and Housing,Democratic Services  ,Premises,Grounds Maintenance Work,111,04/10/2018,1811-00559,0.00,50.00,R,Alan Brown Flowers,YES
Http://opendatacommunities.org/id/metropolitan-district-council/leeds,Leeds City Council,30/11/2018,Communities and Environment,Waste Management,Employees,Occupational Health,85,05/11/2018,1811-00560,0.00,100.00,R,REDACTED PERSONAL DATA,NO
Http://opendatacommunities.org/id/metropolitan-district-council/leeds,Leeds City Council,30/11/2018,City Development,Libraries  Arts & Heritage,Supplies and Services,Other Hired And Contracted Services,265,22/11/2018,1811-00561,0.00,400.00,R,Alan Horsey,NO
Http://opendatacommunities.org/id/metropolitan-district-council/leeds,Leeds City Council,30/11/2018,Children and Families,Social Care,Support Services,Legal Disbursements,411,20/11/2018,1811-00562,0.00,270.00,R,Alan Phipps,NO
Http://opendatacommunities.org/id/metropolitan-district-council/leeds,Leeds City Council,30/11/2018,Children and Families,Social Care  ,Third Party Payments,Section 17,551,03/10/2018,1811-00563,0.00,230.00,R,Albatross Cars Derby Ltd,YES
Http://opendatacommunities.org/id/metropolitan-district-council/leeds,Leeds City Council,30/11/2018,Adults and Health,Services For Older People - 65 And Over,Third Party Payments,Residential Care Dementia,571,14/11/2018,1811-00564,0.00,1088.80,R,Albemarle,NO
Http://opendatacommunities.org/id/metropolitan-district-council/leeds,Leeds City Council,30/11/2018,City Development,Libraries  Arts & Heritage,Income,Sale Of Food & Drink,913,20/11/2018,1811-00565,0.00,-15.00,R,Alchemy Promotions Ltd (The Mjr Group),NO
Http://opendatacommunities.org/id/metropolitan-district-council/leeds,Leeds City Council,30/11/2018,City Development,Libraries  Arts & Heritage,Income,Other Sales,914,20/11/2018,1811-00566,0.00,-31.50,R,Alchemy Promotions Ltd (The Mjr Group),NO
Http://opendatacommunities.org/id/metropolitan-district-council/leeds,Leeds City Council,30/11/2018,City Development,Libraries  Arts & Heritage,Income,Arts/Sports Facility Hire,920,20/11/2018,1811-00567,0.00,-3398.00,R,Alchemy Promotions Ltd (The Mjr Group),NO
Http://opendatacommunities.org/id/metropolitan-district-council/leeds,Leeds City Council,30/11/2018,City Development,Libraries  Arts & Heritage,Income,Other cultural & rec fees & charges,924,20/11/2018,1811-00568,0.00,-2474.00,R,Alchemy Promotions Ltd (The Mjr Group),NO
Http://opendatacommunities.org/id/metropolitan-district-council/leeds,Leeds City Council,30/11/2018,City Development,Libraries  Arts & Heritage,Income,Admissions  Booking Fees & Ticket Sales,933,20/11/2018,1811-00569,0.00,21575.00,R,Alchemy Promotions Ltd (The Mjr Group),NO
Http://opendatacommunities.org/id/metropolitan-district-council/leeds,Leeds City Council,30/11/2018,City Development,Libraries  Arts & Heritage,Income,Advertising,969,20/11/2018,1811-00570,0.00,-575.00,R,Alchemy Promotions Ltd (The Mjr Group),NO
Http://opendatacommunities.org/id/metropolitan-district-council/leeds,Leeds City Council,30/11/2018,City Development,Libraries  Arts & Heritage,Income,Other Income,973,20/11/2018,1811-00571,0.00,-1281.43,R,Alchemy Promotions Ltd (The Mjr Group),NO
Http://opendatacommunities.org/id/metropolitan-district-council/leeds,Leeds City Council,30/11/2018,Communities and Environment,Communities,Supplies and Services,Other Hired And Contracted Services,265,09/11/2018,1811-00572,0.00,1075.00,R,Alcium Software Ltd,NO
Http://opendatacommunities.org/id/metropolitan-district-council/leeds,Leeds City Council,30/11/2018,Communities and Environment,Communities,Supplies and Services,Other Hired And Contracted Services,265,23/11/2018,1811-00573,0.00,1075.00,R,Alcium Software Ltd,NO
Http://opendatacommunities.org/id/metropolitan-district-council/leeds,Leeds City Council,30/11/2018,Children and Families,Social Care  ,Supplies and Services,Food & Drink,231,28/09/2018,1811-00574,0.00,31.00,R,Aldi,YES
Http://opendatacommunities.org/id/metropolitan-district-council/leeds,Leeds City Council,30/11/2018,Children and Families,Social Care  ,Supplies and Services,Food & Drink,231,04/10/2018,1811-00575,0.00,7.15,R,Aldi,YES
Http://opendatacommunities.org/id/metropolitan-district-council/leeds,Leeds City Council,30/11/2018,Children and Families,Social Care  ,Supplies and Services,Food & Drink,231,16/10/2018,1811-00576,0.00,47.37,R,Aldi,YES
Http://opendatacommunities.org/id/metropolitan-district-council/leeds,Leeds City Council,30/11/2018,Children and Families,Social Care  ,Premises,Cleaning Maintenance & Toiletries,127,16/10/2018,1811-00577,0.00,5.63,R,Aldi,YES
Http://opendatacommunities.org/id/metropolitan-district-council/leeds,Leeds City Council,30/11/2018,Communities and Environment,Customer Access  ,Supplies and Services,Office Furniture & Equipment,201,18/10/2018,1811-00578,0.00,130.00,R,Aldi,YES
Http://opendatacommunities.org/id/metropolitan-district-council/leeds,Leeds City Council,30/11/2018,Children and Families,Social Care  ,Supplies and Services,Food & Drink,231,20/10/2018,1811-00579,0.00,13.92,R,Aldi,YES
Http://opendatacommunities.org/id/metropolitan-district-council/leeds,Leeds City Council,30/11/2018,Communities and Environment,Customer Access  ,Supplies and Services,Office Furniture & Equipment,201,26/10/2018,1811-00580,0.00,10.29,R,Aldi,YES
Http://opendatacommunities.org/id/metropolitan-district-council/leeds,Leeds City Council,30/11/2018,Children and Families,Social Care  ,Supplies and Services,Food & Drink,231,29/10/2018,1811-00581,0.00,48.57,R,Aldi,YES
Http://opendatacommunities.org/id/metropolitan-district-council/leeds,Leeds City Council,30/11/2018,Children and Families,Social Care  ,Premises,Cleaning Maintenance & Toiletries,127,29/10/2018,1811-00582,0.00,2.24,R,Aldi,YES
Http://opendatacommunities.org/id/metropolitan-district-council/leeds,Leeds City Council,30/11/2018,Children and Families,Social Care  ,Supplies and Services,Food & Drink,231,12/10/2018,1811-00583,0.00,33.83,R,Aldi 40 779,YES
Http://opendatacommunities.org/id/metropolitan-district-council/leeds,Leeds City Council,30/11/2018,Adults and Health,Services For Older People - 65 And Over  ,Premises,Maintenance Of Buildings,101,11/10/2018,1811-00584,0.00,19.95,R,Aldi 49 779,YES
Http://opendatacommunities.org/id/metropolitan-district-council/leeds,Leeds City Council,30/11/2018,Adults and Health,Services For Older People - 65 And Over  ,Supplies and Services,Food & Drink,231,12/10/2018,1811-00585,0.00,59.24,R,Aldi 49 779,YES
Http://opendatacommunities.org/id/metropolitan-district-council/leeds,Leeds City Council,30/11/2018,Children and Families,Social Care  ,Supplies and Services,Food & Drink,231,29/10/2018,1811-00586,0.00,33.09,R,Aldi 49 779,YES
Http://opendatacommunities.org/id/metropolitan-district-council/leeds,Leeds City Council,30/11/2018,Communities and Environment,Communities  ,Supplies and Services,Food & Drink,231,05/10/2018,1811-00587,0.00,4.82,R,Aldi 71 779,YES
Http://opendatacommunities.org/id/metropolitan-district-council/leeds,Leeds City Council,30/11/2018,Children and Families,Social Care  ,Premises,Cleaning Maintenance & Toiletries,127,04/10/2018,1811-00588,0.00,12.61,R,Aldi 85 779,YES
Http://opendatacommunities.org/id/metropolitan-district-council/leeds,Leeds City Council,30/11/2018,Children and Families,Social Care  ,Premises,Cleaning Maintenance & Toiletries,127,23/10/2018,1811-00589,0.00,15.50,R,Aldi 85 779,YES
Http://opendatacommunities.org/id/metropolitan-district-council/leeds,Leeds City Council,30/11/2018,Children and Families,Social Care  ,Supplies and Services,Food & Drink,231,17/10/2018,1811-00590,0.00,20.16,R,Aldi 88 779,YES
Http://opendatacommunities.org/id/metropolitan-district-council/leeds,Leeds City Council,30/11/2018,Children and Families,Social Care  ,Supplies and Services,Operational Furniture And Equipment,203,28/10/2018,1811-00591,0.00,3.32,R,Aldi 88 779,YES
Http://opendatacommunities.org/id/metropolitan-district-council/leeds,Leeds City Council,30/11/2018,City Development,Libraries  Arts & Heritage  ,Supplies and Services,Food & Drink,231,05/10/2018,1811-00592,0.00,65.68,R,Aldi 89 779,YES
Http://opendatacommunities.org/id/metropolitan-district-council/leeds,Leeds City Council,30/11/2018,Resources and Housing,Strategic Housing Partnership & Support  ,Supplies and Services,Food & Drink,231,09/10/2018,1811-00593,0.00,18.65,R,Aldi Stores,YES
Http://opendatacommunities.org/id/metropolitan-district-council/leeds,Leeds City Council,30/11/2018,Resources and Housing,Strategic Housing Partnership & Support  ,Supplies and Services,Other Hired And Contracted Services,265,12/10/2018,1811-00594,0.00,9.73,R,Aldi Stores,YES
Http://opendatacommunities.org/id/metropolitan-district-council/leeds,Leeds City Council,30/11/2018,City Development,Recreation  ,Supplies and Services,Food & Drink,231,30/10/2018,1811-00595,0.00,11.48,R,Aldi Stores,YES
Http://opendatacommunities.org/id/metropolitan-district-council/leeds,Leeds City Council,30/11/2018,Communities and Environment,Customer Access,Supplies and Services,Other Hired And Contracted Services,265,02/11/2018,1811-00596,0.00,159.00,R,Alena Zueva,NO
Http://opendatacommunities.org/id/metropolitan-district-council/leeds,Leeds City Council,30/11/2018,Children and Families,Social Care,Support Services,Legal Disbursements,411,30/11/2018,1811-00597,0.00,131.75,R,Alere Toxicology Plc,NO
Http://opendatacommunities.org/id/metropolitan-district-council/leeds,Leeds City Council,30/11/2018,Communities and Environment,Car Parking Services,Income,Penalties  Fines & Car Parking Charges,934,05/11/2018,1811-00598,0.00,4.40,R,REDACTED PERSONAL DATA,NO
Http://opendatacommunities.org/id/metropolitan-district-council/leeds,Leeds City Council,30/11/2018,Children and Families,Social Care,Support Services,Legal Disbursements,411,23/11/2018,1811-00599,0.00,469.00,R,Alex Taylor,NO
Http://opendatacommunities.org/id/metropolitan-district-council/leeds,Leeds City Council,30/11/2018,Resources and Housing,Commercial Services,Supplies and Services,Other Hired And Contracted Services,265,22/11/2018,1811-00600,0.00,170.00,R,Alex Wagg,NO
Http://opendatacommunities.org/id/metropolitan-district-council/leeds,Leeds City Council,30/11/2018,Resources and Housing,Commercial Services,Supplies and Services,Other Hired And Contracted Services,265,22/11/2018,1811-00601,0.00,60.00,R,Alex Wagg,NO
Http://opendatacommunities.org/id/metropolitan-district-council/leeds,Leeds City Council,30/11/2018,Resources and Housing,Commercial Services,Supplies and Services,Other Hired And Contracted Services,265,22/11/2018,1811-00602,0.00,100.00,R,Alex Wagg,NO
Http://opendatacommunities.org/id/metropolitan-district-council/leeds,Leeds City Council,30/11/2018,Resources and Housing,Commercial Services,Transport,Vehicle Spares,345,29/11/2018,1811-00603,0.00,168.00,R,Alex Wagg,NO
Http://opendatacommunities.org/id/metropolitan-district-council/leeds,Leeds City Council,30/11/2018,Adults and Health,Services For Older People - 65 And Over,Third Party Payments,Residential Care Dementia,571,14/11/2018,1811-00604,0.00,44439.23,R,Alexander Residential Home,NO
Http://opendatacommunities.org/id/metropolitan-district-council/leeds,Leeds City Council,30/11/2018,Adults and Health,Services For Older People - 65 And Over,Third Party Payments,Residential,580,14/11/2018,1811-00605,0.00,15740.02,R,Alexander Residential Home,NO
Http://opendatacommunities.org/id/metropolitan-district-council/leeds,Leeds City Council,30/11/2018,Adults and Health,Services For Older People - 65 And Over,Third Party Payments,Residential,580,14/11/2018,1811-00606,0.00,5130.14,R,Alexandra Court,NO
Http://opendatacommunities.org/id/metropolitan-district-council/leeds,Leeds City Council,30/11/2018,City Development,Libraries  Arts & Heritage,Supplies and Services,Other Hired And Contracted Services,265,07/11/2018,1811-00607,0.00,220.00,R,Alexandra George,NO
Http://opendatacommunities.org/id/metropolitan-district-council/leeds,Leeds City Council,30/11/2018,City Development,Libraries  Arts & Heritage,Supplies and Services,Other Hired And Contracted Services,265,08/11/2018,1811-00608,0.00,300.00,R,Alexandra George,NO
Http://opendatacommunities.org/id/metropolitan-district-council/leeds,Leeds City Council,30/11/2018,Strategic Landlord,Housing Management,Supplies and Services,Compensation Claims,200,29/11/2018,1811-00609,0.00,150.00,R,REDACTED PERSONAL DATA,NO
Http://opendatacommunities.org/id/metropolitan-district-council/leeds,Leeds City Council,30/11/2018,Adults and Health,Services For Older People - 65 And Over  ,Supplies and Services,Clothing & Uniforms,241,03/10/2018,1811-00610,0.00,455.76,R,Alexandra Website,YES
Http://opendatacommunities.org/id/metropolitan-district-council/leeds,Leeds City Council,30/11/2018,Adults and Health,Services For Older People - 65 And Over  ,Supplies and Services,Clothing & Uniforms,241,29/10/2018,1811-00611,0.00,151.92,R,Alexandra Website,YES
Http://opendatacommunities.org/id/metropolitan-district-council/leeds,Leeds City Council,30/11/2018,Resources and Housing,Leeds Building Services,Supplies and Services,Other Hired And Contracted Services,265,02/11/2018,1811-00612,0.00,400.00,R,Alfred Bagnall & Sons (Leeds) Ltd,NO
Http://opendatacommunities.org/id/metropolitan-district-council/leeds,Leeds City Council,30/11/2018,Resources and Housing,Leeds Building Services,Supplies and Services,Other Hired And Contracted Services,265,02/11/2018,1811-00613,0.00,800.00,R,Alfred Bagnall & Sons (Leeds) Ltd,NO
Http://opendatacommunities.org/id/metropolitan-district-council/leeds,Leeds City Council,30/11/2018,Resources and Housing,Leeds Building Services,Supplies and Services,Other Hired And Contracted Services,265,02/11/2018,1811-00614,0.00,800.00,R,Alfred Bagnall & Sons (Leeds) Ltd,NO
Http://opendatacommunities.org/id/metropolitan-district-council/leeds,Leeds City Council,30/11/2018,Resources and Housing,Leeds Building Services,Supplies and Services,Other Hired And Contracted Services,265,02/11/2018,1811-00615,0.00,1000.00,R,Alfred Bagnall & Sons (Leeds) Ltd,NO
Http://opendatacommunities.org/id/metropolitan-district-council/leeds,Leeds City Council,30/11/2018,Resources and Housing,Leeds Building Services,Supplies and Services,Other Hired And Contracted Services,265,02/11/2018,1811-00616,0.00,800.00,R,Alfred Bagnall & Sons (Leeds) Ltd,NO
Http://opendatacommunities.org/id/metropolitan-district-council/leeds,Leeds City Council,30/11/2018,Resources and Housing,Leeds Building Services,Supplies and Services,Other Hired And Contracted Services,265,06/11/2018,1811-00617,0.00,1080.00,R,Alfred Bagnall & Sons (Leeds) Ltd,NO
Http://opendatacommunities.org/id/metropolitan-district-council/leeds,Leeds City Council,30/11/2018,Resources and Housing,Leeds Building Services,Supplies and Services,Other Hired And Contracted Services,265,13/11/2018,1811-00618,0.00,1960.00,R,Alfred Bagnall & Sons (Leeds) Ltd,NO
Http://opendatacommunities.org/id/metropolitan-district-council/leeds,Leeds City Council,30/11/2018,Resources and Housing,Leeds Building Services,Supplies and Services,Other Hired And Contracted Services,265,20/11/2018,1811-00619,0.00,2325.00,R,Alfred Bagnall & Sons (Leeds) Ltd,NO
Http://opendatacommunities.org/id/metropolitan-district-council/leeds,Leeds City Council,30/11/2018,Resources and Housing,Digital and Information Services,Capital,Construction,3,23/11/2018,1811-00620,0.00,1438.00,C,Alfred Bagnall & Sons (Leeds) Ltd,NO
Http://opendatacommunities.org/id/metropolitan-district-council/leeds,Leeds City Council,30/11/2018,Resources and Housing,Leeds Building Services,Supplies and Services,Other Hired And Contracted Services,265,23/11/2018,1811-00621,0.00,200.00,R,Alfred Bagnall & Sons (Leeds) Ltd,NO
Http://opendatacommunities.org/id/metropolitan-district-council/leeds,Leeds City Council,30/11/2018,Resources and Housing,Leeds Building Services,Supplies and Services,Other Hired And Contracted Services,265,28/11/2018,1811-00622,0.00,390.00,R,Alfred Bagnall & Sons (Leeds) Ltd,NO
Http://opendatacommunities.org/id/metropolitan-district-council/leeds,Leeds City Council,30/11/2018,Resources and Housing,Corporate Property Management,Premises,Maintenance Of Buildings,101,29/11/2018,1811-00623,0.00,1800.00,R,Alfred Bagnall & Sons (Leeds) Ltd,NO
Http://opendatacommunities.org/id/metropolitan-district-council/leeds,Leeds City Council,30/11/2018,Communities and Environment,Elections  Licensing and Registration,Income,Licences  Registry & Land Charges,932,08/11/2018,1811-00624,0.00,23.00,R,REDACTED PERSONAL DATA,NO
Http://opendatacommunities.org/id/metropolitan-district-council/leeds,Leeds City Council,30/11/2018,Communities and Environment,Customer Access,Supplies and Services,Other Hired And Contracted Services,265,02/11/2018,1811-00625,0.00,261.50,R,Ali Pourakaberian,NO
Http://opendatacommunities.org/id/metropolitan-district-council/leeds,Leeds City Council,30/11/2018,City Development,Libraries  Arts & Heritage,Supplies and Services,Bought In Professional Services,277,28/11/2018,1811-00626,0.00,1248.30,R,Alice Miller,NO
Http://opendatacommunities.org/id/metropolitan-district-council/leeds,Leeds City Council,30/11/2018,Children and Families,Partnerships & Health,Employees,Training & Development,70,16/11/2018,1811-00627,0.00,1416.64,R,REDACTED PERSONAL DATA,NO
Http://opendatacommunities.org/id/metropolitan-district-council/leeds,Leeds City Council,30/11/2018,Children and Families,Social Care,Transfer Payments,16 Plus Top Up Allowance,625,02/11/2018,1811-00628,0.00,20.00,R,REDACTED PERSONAL DATA,NO
Http://opendatacommunities.org/id/metropolitan-district-council/leeds,Leeds City Council,30/11/2018,Children and Families,Social Care,Transfer Payments,16 Plus Top Up Allowance,625,12/11/2018,1811-00629,0.00,20.00,R,REDACTED PERSONAL DATA,NO
Http://opendatacommunities.org/id/metropolitan-district-council/leeds,Leeds City Council,30/11/2018,Children and Families,Social Care,Third Party Payments,Services Rendered By Other Organisations,511,21/11/2018,1811-00630,0.00,267.75,R,REDACTED PERSONAL DATA,NO
Http://opendatacommunities.org/id/metropolitan-district-council/leeds,Leeds City Council,30/11/2018,Children and Families,Social Care,Third Party Payments,Services Rendered By Other Organisations,511,02/11/2018,1811-00631,0.00,71.00,R,REDACTED PERSONAL DATA,NO
Http://opendatacommunities.org/id/metropolitan-district-council/leeds,Leeds City Council,30/11/2018,Children and Families,Social Care,Third Party Payments,Services Rendered By Other Organisations,511,21/11/2018,1811-00632,0.00,267.75,R,REDACTED PERSONAL DATA,NO
Http://opendatacommunities.org/id/metropolitan-district-council/leeds,Leeds City Council,30/11/2018,City Development,Libraries  Arts & Heritage,Supplies and Services,Other Hired And Contracted Services,265,16/11/2018,1811-00633,0.00,350.00,R,Alison Glew,NO
Http://opendatacommunities.org/id/metropolitan-district-council/leeds,Leeds City Council,30/11/2018,City Development,Libraries  Arts & Heritage,Supplies and Services,Bought In Professional Services,277,14/11/2018,1811-00634,0.00,1500.00,R,Alison Mcintyre,NO
Http://opendatacommunities.org/id/metropolitan-district-council/leeds,Leeds City Council,30/11/2018,City Development,Libraries  Arts & Heritage,Supplies and Services,Other Hired And Contracted Services,265,09/11/2018,1811-00635,0.00,400.00,R,Alison Rhind,NO
Http://opendatacommunities.org/id/metropolitan-district-council/leeds,Leeds City Council,30/11/2018,City Development,Markets & City Centre Management,Supplies and Services,Publication And Promotion,267,30/11/2018,1811-00636,0.00,2000.00,R,Alive And Kicking Theatre Company Ltd,NO
Http://opendatacommunities.org/id/metropolitan-district-council/leeds,Leeds City Council,30/11/2018,Resources and Housing,Leeds Building Services,Supplies and Services,Other Hired And Contracted Services,265,01/11/2018,1811-00637,0.00,2340.00,R,All Clear Solutions Ltd,NO
Http://opendatacommunities.org/id/metropolitan-district-council/leeds,Leeds City Council,30/11/2018,Resources and Housing,Leeds Building Services,Supplies and Services,Other Hired And Contracted Services,265,21/11/2018,1811-00638,0.00,195.00,R,All Clear Solutions Ltd,NO
Http://opendatacommunities.org/id/metropolitan-district-council/leeds,Leeds City Council,30/11/2018,Resources and Housing,Leeds Building Services,Supplies and Services,Other Hired And Contracted Services,265,21/11/2018,1811-00639,0.00,195.00,R,All Clear Solutions Ltd,NO
Http://opendatacommunities.org/id/metropolitan-district-council/leeds,Leeds City Council,30/11/2018,Resources and Housing,Leeds Building Services,Supplies and Services,Other Hired And Contracted Services,265,21/11/2018,1811-00640,0.00,195.00,R,All Clear Solutions Ltd,NO
Http://opendatacommunities.org/id/metropolitan-district-council/leeds,Leeds City Council,30/11/2018,Resources and Housing,Leeds Building Services,Supplies and Services,Other Hired And Contracted Services,265,21/11/2018,1811-00641,0.00,195.00,R,All Clear Solutions Ltd,NO
Http://opendatacommunities.org/id/metropolitan-district-council/leeds,Leeds City Council,30/11/2018,Resources and Housing,Leeds Building Services,Supplies and Services,Other Hired And Contracted Services,265,21/11/2018,1811-00642,0.00,195.00,R,All Clear Solutions Ltd,NO
Http://opendatacommunities.org/id/metropolitan-district-council/leeds,Leeds City Council,30/11/2018,Resources and Housing,Leeds Building Services,Supplies and Services,Other Hired And Contracted Services,265,21/11/2018,1811-00643,0.00,195.00,R,All Clear Solutions Ltd,NO
Http://opendatacommunities.org/id/metropolitan-district-council/leeds,Leeds City Council,30/11/2018,Resources and Housing,Leeds Building Services,Supplies and Services,Other Hired And Contracted Services,265,21/11/2018,1811-00644,0.00,585.00,R,All Clear Solutions Ltd,NO
Http://opendatacommunities.org/id/metropolitan-district-council/leeds,Leeds City Council,30/11/2018,Resources and Housing,Leeds Building Services,Supplies and Services,Other Hired And Contracted Services,265,21/11/2018,1811-00645,0.00,195.00,R,All Clear Solutions Ltd,NO
Http://opendatacommunities.org/id/metropolitan-district-council/leeds,Leeds City Council,30/11/2018,Resources and Housing,Leeds Building Services,Supplies and Services,Other Hired And Contracted Services,265,21/11/2018,1811-00646,0.00,195.00,R,All Clear Solutions Ltd,NO
Http://opendatacommunities.org/id/metropolitan-district-council/leeds,Leeds City Council,30/11/2018,Resources and Housing,Leeds Building Services,Supplies and Services,Other Hired And Contracted Services,265,21/11/2018,1811-00647,0.00,250.00,R,All Clear Solutions Ltd,NO
Http://opendatacommunities.org/id/metropolitan-district-council/leeds,Leeds City Council,30/11/2018,Resources and Housing,Leeds Building Services,Supplies and Services,Other Hired And Contracted Services,265,21/11/2018,1811-00648,0.00,195.00,R,All Clear Solutions Ltd,NO
Http://opendatacommunities.org/id/metropolitan-district-council/leeds,Leeds City Council,30/11/2018,Resources and Housing,Leeds Building Services,Supplies and Services,Other Hired And Contracted Services,265,30/11/2018,1811-00649,0.00,195.00,R,All Clear Solutions Ltd,NO
Http://opendatacommunities.org/id/metropolitan-district-council/leeds,Leeds City Council,30/11/2018,Resources and Housing,Leeds Building Services,Supplies and Services,Other Hired And Contracted Services,265,30/11/2018,1811-00650,0.00,195.00,R,All Clear Solutions Ltd,NO
Http://opendatacommunities.org/id/metropolitan-district-council/leeds,Leeds City Council,30/11/2018,Resources and Housing,Leeds Building Services,Supplies and Services,Other Hired And Contracted Services,265,30/11/2018,1811-00651,0.00,390.00,R,All Clear Solutions Ltd,NO
Http://opendatacommunities.org/id/metropolitan-district-council/leeds,Leeds City Council,30/11/2018,Resources and Housing,Leeds Building Services,Supplies and Services,Other Hired And Contracted Services,265,30/11/2018,1811-00652,0.00,195.00,R,All Clear Solutions Ltd,NO
Http://opendatacommunities.org/id/metropolitan-district-council/leeds,Leeds City Council,30/11/2018,Resources and Housing,Leeds Building Services,Supplies and Services,Other Hired And Contracted Services,265,30/11/2018,1811-00653,0.00,195.00,R,All Clear Solutions Ltd,NO
Http://opendatacommunities.org/id/metropolitan-district-council/leeds,Leeds City Council,30/11/2018,Resources and Housing,Leeds Building Services,Supplies and Services,Other Hired And Contracted Services,265,30/11/2018,1811-00654,0.00,195.00,R,All Clear Solutions Ltd,NO
Http://opendatacommunities.org/id/metropolitan-district-council/leeds,Leeds City Council,30/11/2018,Resources and Housing,Leeds Building Services,Supplies and Services,Other Hired And Contracted Services,265,30/11/2018,1811-00655,0.00,195.00,R,All Clear Solutions Ltd,NO
Http://opendatacommunities.org/id/metropolitan-district-council/leeds,Leeds City Council,30/11/2018,Children and Families,Social Care,Third Party Payments,Services Rendered By Other Organisations,511,02/11/2018,1811-00656,0.00,578.33,R,All Stars Childcare,NO
Http://opendatacommunities.org/id/metropolitan-district-council/leeds,Leeds City Council,30/11/2018,Children and Families,Social Care,Third Party Payments,Services Rendered By Other Organisations,511,16/11/2018,1811-00657,0.00,9052.50,R,All Stars Childcare,NO
Http://opendatacommunities.org/id/metropolitan-district-council/leeds,Leeds City Council,30/11/2018,Children and Families,Social Care,Third Party Payments,Services Rendered By Other Organisations,511,21/11/2018,1811-00658,0.00,1606.50,R,All Stars Childcare,NO
Http://opendatacommunities.org/id/metropolitan-district-council/leeds,Leeds City Council,30/11/2018,Children and Families,Social Care  ,Third Party Payments, Direct Work,549,04/10/2018,1811-00659,0.00,6.20,R,All Things Nice Cafe,YES
Http://opendatacommunities.org/id/metropolitan-district-council/leeds,Leeds City Council,30/11/2018,Resources and Housing,Commercial Services  ,Transport,Miscellaneous Transport Related Costs,324,10/10/2018,1811-00660,0.00,84.97,R,Allanda Ltd,YES
Http://opendatacommunities.org/id/metropolitan-district-council/leeds,Leeds City Council As Accountable Body,30/11/2018,Social Services Pooled Budgets,Jcs For People With Learning Disabilitie,Third Party Payments,Sheltered Accommodation,569,14/11/2018,1811-00661,0.00,13578.36,R,Allerton Avenue,NO
Http://opendatacommunities.org/id/metropolitan-district-council/leeds,Leeds City Council,30/11/2018,Strategic Accounts,Miscellaneous,Supplies and Services,Non-Recurring Grants,227,05/11/2018,1811-00662,0.00,340.00,R,Allerton Bywater Cricket Club,NO
Http://opendatacommunities.org/id/metropolitan-district-council/leeds,Leeds City Council,30/11/2018,Adults and Health,Public Health,Third Party Payments,Public Health Commissioned Services,526,16/11/2018,1811-00663,0.00,765.00,R,Allerton Medical Centre,NO
Http://opendatacommunities.org/id/metropolitan-district-council/leeds,Leeds City Council,30/11/2018,Adults and Health,Services For Older People - 65 And Over,Third Party Payments,Nursing Care Dementia,574,14/11/2018,1811-00664,0.00,2094.28,R,Allerton Park N H,NO
Http://opendatacommunities.org/id/metropolitan-district-council/leeds,Leeds City Council,30/11/2018,Resources and Housing,Finance,Supplies and Services,Bank Charges,263,01/11/2018,1811-00665,0.00,-69.03,R,Alliance & Leicester Commercial Bank,NO
Http://opendatacommunities.org/id/metropolitan-district-council/leeds,Leeds City Council,30/11/2018,Resources and Housing,Finance,Supplies and Services,Bank Charges,263,06/11/2018,1811-00666,0.00,801.13,R,Alliance & Leicester Commercial Bank,NO
Http://opendatacommunities.org/id/metropolitan-district-council/leeds,Leeds City Council,30/11/2018,Resources and Housing,Finance,Supplies and Services,Bank Charges,263,06/11/2018,1811-00667,0.00,100.00,R,Alliance & Leicester Commercial Bank,NO
Http://opendatacommunities.org/id/metropolitan-district-council/leeds,Leeds City Council,30/11/2018,City Development,Recreation  ,Supplies and Services,Food & Drink,231,03/10/2018,1811-00668,0.00,57.92,R,Alliance Disposables,YES
Http://opendatacommunities.org/id/metropolitan-district-council/leeds,Leeds City Council,30/11/2018,City Development,Recreation,Supplies and Services,Printing,215,23/11/2018,1811-00669,0.00,67.80,R,Alliance Leisure Service Ltd,NO
Http://opendatacommunities.org/id/metropolitan-district-council/leeds,Leeds City Council,30/11/2018,City Development,Highways,Supplies and Services,Other Hired And Contracted Services,265,13/11/2018,1811-00670,0.00,3204.90,R,Allied Exploration & Geotechnics Ltd,NO
Http://opendatacommunities.org/id/metropolitan-district-council/leeds,Leeds City Council,30/11/2018,City Development,Highways,Supplies and Services,Other Hired And Contracted Services,265,13/11/2018,1811-00671,0.00,4431.00,R,Allied Exploration & Geotechnics Ltd,NO
Http://opendatacommunities.org/id/metropolitan-district-council/leeds,Leeds City Council,30/11/2018,City Development,Highways,Supplies and Services,Other Hired And Contracted Services,265,15/11/2018,1811-00672,0.00,3088.80,R,Allied Exploration & Geotechnics Ltd,NO
Http://opendatacommunities.org/id/metropolitan-district-council/leeds,Leeds City Council,30/11/2018,City Development,Highways,Supplies and Services,Other Hired And Contracted Services,265,20/11/2018,1811-00673,0.00,722.90,R,Allied Exploration & Geotechnics Ltd,NO
Http://opendatacommunities.org/id/metropolitan-district-council/leeds,Leeds City Council,30/11/2018,Adults and Health,Other Generic Services,Third Party Payments,Home Care,568,07/11/2018,1811-00674,0.00,13786.99,R,Allied Healthcare,NO
Http://opendatacommunities.org/id/metropolitan-district-council/leeds,Leeds City Council,30/11/2018,Adults and Health,Other Generic Services,Third Party Payments,Home Care,568,07/11/2018,1811-00675,0.00,5916.41,R,Allied Healthcare,NO
Http://opendatacommunities.org/id/metropolitan-district-council/leeds,Leeds City Council,30/11/2018,Adults and Health,Other Generic Services,Third Party Payments,Home Care,568,07/11/2018,1811-00676,0.00,14052.74,R,Allied Healthcare,NO
Http://opendatacommunities.org/id/metropolitan-district-council/leeds,Leeds City Council,30/11/2018,Adults and Health,Other Generic Services,Third Party Payments,Home Care,568,07/11/2018,1811-00677,0.00,6101.80,R,Allied Healthcare,NO
Http://opendatacommunities.org/id/metropolitan-district-council/leeds,Leeds City Council,30/11/2018,Adults and Health,Other Generic Services,Third Party Payments,Home Care,568,07/11/2018,1811-00678,0.00,109.20,R,Allied Healthcare,NO
Http://opendatacommunities.org/id/metropolitan-district-council/leeds,Leeds City Council As Accountable Body,30/11/2018,Social Services Pooled Budgets,Jcs For People With Learning Disabilitie,Third Party Payments,Home Care,568,08/11/2018,1811-00679,0.00,16979.84,R,Allied Healthcare,NO
Http://opendatacommunities.org/id/metropolitan-district-council/leeds,Leeds City Council As Accountable Body,30/11/2018,Social Services Pooled Budgets,Jcs For People With Learning Disabilitie,Third Party Payments,Home Care,568,14/11/2018,1811-00680,0.00,10953.25,R,Allied Healthcare,NO
Http://opendatacommunities.org/id/metropolitan-district-council/leeds,Leeds City Council,30/11/2018,Adults and Health,Other Generic Services,Third Party Payments,Home Care,568,15/11/2018,1811-00681,0.00,11456.88,R,Allied Healthcare,NO
Http://opendatacommunities.org/id/metropolitan-district-council/leeds,Leeds City Council,30/11/2018,Adults and Health,Other Generic Services,Third Party Payments,Home Care,568,15/11/2018,1811-00682,0.00,4845.94,R,Allied Healthcare,NO
Http://opendatacommunities.org/id/metropolitan-district-council/leeds,Leeds City Council,30/11/2018,Adults and Health,Other Generic Services,Third Party Payments,Home Care,568,22/11/2018,1811-00683,0.00,109.20,R,Allied Healthcare,NO
Http://opendatacommunities.org/id/metropolitan-district-council/leeds,Leeds City Council,30/11/2018,Adults and Health,Other Generic Services,Third Party Payments,Home Care,568,22/11/2018,1811-00684,0.00,68.25,R,Allied Healthcare,NO
Http://opendatacommunities.org/id/metropolitan-district-council/leeds,Leeds City Council,30/11/2018,Adults and Health,Other Generic Services,Third Party Payments,Home Care,568,22/11/2018,1811-00685,0.00,54.60,R,Allied Healthcare,NO
Http://opendatacommunities.org/id/metropolitan-district-council/leeds,Leeds City Council,30/11/2018,Adults and Health,Services For Older People - 65 And Over,Third Party Payments,Home Care,568,22/11/2018,1811-00686,0.00,238.34,R,Allied Healthcare,NO
Http://opendatacommunities.org/id/metropolitan-district-council/leeds,Leeds City Council,30/11/2018,Adults and Health,Services For Older People - 65 And Over,Third Party Payments,Home Care,568,22/11/2018,1811-00687,0.00,1831.58,R,Allied Healthcare,NO
Http://opendatacommunities.org/id/metropolitan-district-council/leeds,Leeds City Council,30/11/2018,Adults and Health,Services For Older People - 65 And Over,Third Party Payments,Home Care,568,22/11/2018,1811-00688,0.00,16845.55,R,Allied Healthcare,NO
Http://opendatacommunities.org/id/metropolitan-district-council/leeds,Leeds City Council,30/11/2018,Adults and Health,Services For Older People Under 65 P/Dis,Third Party Payments,Home Care,568,22/11/2018,1811-00689,0.00,908.90,R,Allied Healthcare,NO
Http://opendatacommunities.org/id/metropolitan-district-council/leeds,Leeds City Council,30/11/2018,Adults and Health,Services For Older People - 65 And Over,Third Party Payments,Home Care,568,22/11/2018,1811-00690,0.00,8930.23,R,Allied Healthcare,NO
Http://opendatacommunities.org/id/metropolitan-district-council/leeds,Leeds City Council,30/11/2018,Adults and Health,Services For Older People Under 65 P/Dis,Third Party Payments,Home Care,568,22/11/2018,1811-00691,0.00,1591.13,R,Allied Healthcare,NO
Http://opendatacommunities.org/id/metropolitan-district-council/leeds,Leeds City Council,30/11/2018,Adults and Health,Services For Older People - 65 And Over,Third Party Payments,Home Care,568,23/11/2018,1811-00692,0.00,11617.39,R,Allied Healthcare,NO
Http://opendatacommunities.org/id/metropolitan-district-council/leeds,Leeds City Council,30/11/2018,Adults and Health,Services For Older People Under 65 P/Dis,Third Party Payments,Home Care,568,23/11/2018,1811-00693,0.00,7415.13,R,Allied Healthcare,NO
Http://opendatacommunities.org/id/metropolitan-district-council/leeds,Leeds City Council,30/11/2018,Children and Families,Social Care,Third Party Payments,Services Rendered By Voluntary Sector,505,28/11/2018,1811-00694,0.00,684.00,R,Allied Healthcare,NO
Http://opendatacommunities.org/id/metropolitan-district-council/leeds,Leeds City Council As Accountable Body,30/11/2018,Social Services Pooled Budgets,Jcs For People With Learning Disabilitie,Third Party Payments,Home Care,568,29/11/2018,1811-00695,0.00,144.56,R,Allied Healthcare,NO
Http://opendatacommunities.org/id/metropolitan-district-council/leeds,Leeds City Council As Accountable Body,30/11/2018,Social Services Pooled Budgets,Jcs For People With Learning Disabilitie,Third Party Payments,Home Care,568,29/11/2018,1811-00696,0.00,222.40,R,Allied Healthcare,NO
Http://opendatacommunities.org/id/metropolitan-district-council/leeds,Leeds City Council,30/11/2018,Children and Families,Social Care,Third Party Payments,Services Rendered By Other Organisations,511,16/11/2018,1811-00697,0.00,223.13,R,REDACTED PERSONAL DATA,NO
Http://opendatacommunities.org/id/metropolitan-district-council/leeds,Leeds City Council,30/11/2018,Children and Families,Social Care  ,Transfer Payments,Leaving Care Allowances,634,01/10/2018,1811-00698,0.00,808.83,R,Allpay *leeds Federated H,YES
Http://opendatacommunities.org/id/metropolitan-district-council/leeds,Leeds City Council,30/11/2018,Resources and Housing,Strategic Housing Partnership & Support  ,Supplies and Services,Other Hired And Contracted Services,265,10/10/2018,1811-00699,0.00,212.20,R,Allpay *together Housing,YES
Http://opendatacommunities.org/id/metropolitan-district-council/leeds,Leeds City Council,30/11/2018,Strategic Landlord,Housing Management,Supplies and Services,Other Hired And Contracted Services,265,01/11/2018,1811-00700,0.00,0.08,R,Allpay Limted,NO
Http://opendatacommunities.org/id/metropolitan-district-council/leeds,Leeds City Council,30/11/2018,Resources and Housing,Finance,Supplies and Services,Bank Charges,263,01/11/2018,1811-00701,0.00,8.59,R,Allpay Limted,NO
Http://opendatacommunities.org/id/metropolitan-district-council/leeds,Leeds City Council,30/11/2018,Resources and Housing,Finance,Supplies and Services,Bank Charges,263,01/11/2018,1811-00702,0.00,5082.57,R,Allpay Limted,NO
Http://opendatacommunities.org/id/metropolitan-district-council/leeds,Leeds City Council,30/11/2018,Resources and Housing,Finance,Supplies and Services,Bank Charges,263,01/11/2018,1811-00703,0.00,10615.61,R,Allpay Limted,NO
Http://opendatacommunities.org/id/metropolitan-district-council/leeds,Leeds City Council,30/11/2018,Resources and Housing,Finance,Supplies and Services,Bank Charges,263,01/11/2018,1811-00704,0.00,335.41,R,Allpay Limted,NO
Http://opendatacommunities.org/id/metropolitan-district-council/leeds,Leeds City Council,30/11/2018,Strategic Landlord,Housing Management,Supplies and Services,Other Hired And Contracted Services,265,01/11/2018,1811-00705,0.00,15.88,R,Allpay Limted,NO
Http://opendatacommunities.org/id/metropolitan-district-council/leeds,Leeds City Council,30/11/2018,Strategic Landlord,Housing Management,Supplies and Services,Other Hired And Contracted Services,265,01/11/2018,1811-00706,0.00,310.52,R,Allpay Limted,NO
Http://opendatacommunities.org/id/metropolitan-district-council/leeds,Leeds City Council,30/11/2018,Resources and Housing,Finance,Supplies and Services,Bank Charges,263,01/11/2018,1811-00707,0.00,113.17,R,Allpay Limted,NO
Http://opendatacommunities.org/id/metropolitan-district-council/leeds,Leeds City Council,30/11/2018,Resources and Housing,Finance,Supplies and Services,Bank Charges,263,01/11/2018,1811-00708,0.00,2784.54,R,Allpay Limted,NO
Http://opendatacommunities.org/id/metropolitan-district-council/leeds,Leeds City Council,30/11/2018,Strategic Landlord,Housing Management,Supplies and Services,Other Hired And Contracted Services,265,30/11/2018,1811-00709,0.00,15.24,R,Allpay Limted,NO
Http://opendatacommunities.org/id/metropolitan-district-council/leeds,Leeds City Council,30/11/2018,Resources and Housing,Finance,Supplies and Services,Bank Charges,263,30/11/2018,1811-00710,0.00,10477.85,R,Allpay Limted,NO
Http://opendatacommunities.org/id/metropolitan-district-council/leeds,Leeds City Council,30/11/2018,Resources and Housing,Finance,Supplies and Services,Bank Charges,263,30/11/2018,1811-00711,0.00,419.57,R,Allpay Limted,NO
Http://opendatacommunities.org/id/metropolitan-district-council/leeds,Leeds City Council,30/11/2018,Strategic Landlord,Housing Management,Supplies and Services,Other Hired And Contracted Services,265,30/11/2018,1811-00712,0.00,0.08,R,Allpay Limted,NO
Http://opendatacommunities.org/id/metropolitan-district-council/leeds,Leeds City Council,30/11/2018,Resources and Housing,Finance,Supplies and Services,Bank Charges,263,30/11/2018,1811-00713,0.00,6.87,R,Allpay Limted,NO
Http://opendatacommunities.org/id/metropolitan-district-council/leeds,Leeds City Council,30/11/2018,Strategic Landlord,Housing Management,Supplies and Services,Other Hired And Contracted Services,265,30/11/2018,1811-00714,0.00,557.53,R,Allpay Limted,NO
Http://opendatacommunities.org/id/metropolitan-district-council/leeds,Leeds City Council,30/11/2018,Resources and Housing,Finance,Supplies and Services,Bank Charges,263,30/11/2018,1811-00715,0.00,2972.84,R,Allpay Limted,NO
Http://opendatacommunities.org/id/metropolitan-district-council/leeds,Leeds City Council,30/11/2018,Resources and Housing,Democratic Services,Transport,Fuel (Non LCC Supplies),321,07/11/2018,1811-00716,0.00,168.59,R,Allstar Business Solutions Ltd,NO
Http://opendatacommunities.org/id/metropolitan-district-council/leeds,Leeds City Council,30/11/2018,Communities and Environment,Parks and Countryside,Transport,Fuel (Non LCC Supplies),321,07/11/2018,1811-00717,0.00,658.19,R,Allstar Business Solutions Ltd,NO
Http://opendatacommunities.org/id/metropolitan-district-council/leeds,Leeds City Council,30/11/2018,City Development,Highways,Transport,Fuel (Non LCC Supplies),321,07/11/2018,1811-00718,0.00,260.06,R,Allstar Business Solutions Ltd,NO
Http://opendatacommunities.org/id/metropolitan-district-council/leeds,Leeds City Council,30/11/2018,Children and Families,Learning,Transport,Fuel (Non LCC Supplies),321,07/11/2018,1811-00719,0.00,1182.94,R,Allstar Business Solutions Ltd,NO
Http://opendatacommunities.org/id/metropolitan-district-council/leeds,Leeds City Council,30/11/2018,Resources and Housing,Leeds Building Services,Transport,Fuel (Non LCC Supplies),321,12/11/2018,1811-00720,0.00,84.67,R,Allstar Business Solutions Ltd,NO
Http://opendatacommunities.org/id/metropolitan-district-council/leeds,Leeds City Council,30/11/2018,Resources and Housing,Leeds Building Services,Transport,Fuel (Non LCC Supplies),321,28/11/2018,1811-00721,0.00,40.52,R,Allstar Business Solutions Ltd,NO
Http://opendatacommunities.org/id/metropolitan-district-council/leeds,Leeds City Council,30/11/2018,Resources and Housing,Strategic Housing Partnership & Support,Supplies and Services,Other Hired And Contracted Services,265,05/11/2018,1811-00722,0.00,897.54,R,Alpesh Patel,NO
Http://opendatacommunities.org/id/metropolitan-district-council/leeds,Leeds City Council,30/11/2018,Resources and Housing,Human Resources  ,Supplies and Services,Other Hired And Contracted Services,265,25/10/2018,1811-00723,0.00,99.00,R,Alpha Biolaboratories,YES
Http://opendatacommunities.org/id/metropolitan-district-council/leeds,Leeds City Council,30/11/2018,Children and Families,Social Care,Support Services,Legal Disbursements,411,02/11/2018,1811-00724,0.00,31.67,R,Alphabiolabs,NO
Http://opendatacommunities.org/id/metropolitan-district-council/leeds,Leeds City Council,30/11/2018,Children and Families,Social Care,Support Services,Legal Disbursements,411,02/11/2018,1811-00725,0.00,298.75,R,Alphabiolabs,NO
Http://opendatacommunities.org/id/metropolitan-district-council/leeds,Leeds City Council,30/11/2018,Children and Families,Social Care,Support Services,Legal Disbursements,411,02/11/2018,1811-00726,0.00,298.75,R,Alphabiolabs,NO
Http://opendatacommunities.org/id/metropolitan-district-council/leeds,Leeds City Council,30/11/2018,Children and Families,Social Care,Support Services,Legal Disbursements,411,09/11/2018,1811-00727,0.00,179.67,R,Alphabiolabs,NO
Http://opendatacommunities.org/id/metropolitan-district-council/leeds,Leeds City Council,30/11/2018,Children and Families,Social Care,Support Services,Legal Disbursements,411,15/11/2018,1811-00728,0.00,199.50,R,Alphabiolabs,NO
Http://opendatacommunities.org/id/metropolitan-district-council/leeds,Leeds City Council,30/11/2018,Children and Families,Social Care,Support Services,Legal Disbursements,411,16/11/2018,1811-00729,0.00,142.25,R,Alphabiolabs,NO
Http://opendatacommunities.org/id/metropolitan-district-council/leeds,Leeds City Council,30/11/2018,Children and Families,Social Care,Support Services,Legal Disbursements,411,19/11/2018,1811-00730,0.00,130.00,R,Alphabiolabs,NO
Http://opendatacommunities.org/id/metropolitan-district-council/leeds,Leeds City Council,30/11/2018,Children and Families,Social Care,Support Services,Legal Disbursements,411,23/11/2018,1811-00731,0.00,215.00,R,Alphabiolabs,NO
Http://opendatacommunities.org/id/metropolitan-district-council/leeds,Leeds City Council,30/11/2018,Children and Families,Social Care,Support Services,Legal Disbursements,411,23/11/2018,1811-00732,0.00,99.75,R,Alphabiolabs,NO
Http://opendatacommunities.org/id/metropolitan-district-council/leeds,Leeds City Council,30/11/2018,Children and Families,Social Care,Support Services,Legal Disbursements,411,27/11/2018,1811-00733,0.00,95.00,R,Alphabiolabs,NO
Http://opendatacommunities.org/id/metropolitan-district-council/leeds,Leeds City Council,30/11/2018,Children and Families,Social Care,Support Services,Legal Disbursements,411,30/11/2018,1811-00734,0.00,326.35,R,Alphabiolabs,NO
Http://opendatacommunities.org/id/metropolitan-district-council/leeds,Leeds City Council,30/11/2018,Children and Families,Social Care,Support Services,Legal Disbursements,411,30/11/2018,1811-00735,0.00,173.01,R,Alphabiolabs,NO
Http://opendatacommunities.org/id/metropolitan-district-council/leeds,Leeds City Council,30/11/2018,Children and Families,Social Care,Support Services,Legal Disbursements,411,30/11/2018,1811-00736,0.00,185.00,R,Alphabiolabs,NO
Http://opendatacommunities.org/id/metropolitan-district-council/leeds,Leeds City Council,30/11/2018,Communities and Environment,Environmental Health,Supplies and Services,Other Hired And Contracted Services,265,15/11/2018,1811-00737,0.00,84.23,R,Als Environmental Limited,NO
Http://opendatacommunities.org/id/metropolitan-district-council/leeds,Leeds City Council,30/11/2018,Communities and Environment,Environmental Health,Supplies and Services,Other Hired And Contracted Services,265,15/11/2018,1811-00738,0.00,84.23,R,Als Environmental Limited,NO
Http://opendatacommunities.org/id/metropolitan-district-council/leeds,Leeds City Council,30/11/2018,Communities and Environment,Environmental Health,Supplies and Services,Other Hired And Contracted Services,265,15/11/2018,1811-00739,0.00,84.23,R,Als Environmental Limited,NO
Http://opendatacommunities.org/id/metropolitan-district-council/leeds,Leeds City Council,30/11/2018,Communities and Environment,Environmental Health,Supplies and Services,Other Hired And Contracted Services,265,23/11/2018,1811-00740,0.00,124.73,R,Als Environmental Limited,NO
Http://opendatacommunities.org/id/metropolitan-district-council/leeds,Leeds City Council,30/11/2018,Communities and Environment,Environmental Health,Supplies and Services,Other Hired And Contracted Services,265,23/11/2018,1811-00741,0.00,75.00,R,Als Environmental Limited,NO
Http://opendatacommunities.org/id/metropolitan-district-council/leeds,Leeds City Council,30/11/2018,Adults and Health,Public Health,Third Party Payments,Public Health Commissioned Services,526,16/11/2018,1811-00742,0.00,1470.00,R,Alwoodley Medical Centre,NO
Http://opendatacommunities.org/id/metropolitan-district-council/leeds,Leeds City Council,30/11/2018,Communities and Environment,Customer Access,Supplies and Services,Other Hired And Contracted Services,265,02/11/2018,1811-00743,0.00,18.00,R,Amad Mezori,NO
Http://opendatacommunities.org/id/metropolitan-district-council/leeds,Leeds City Council,30/11/2018,Children and Families,Social Care,Third Party Payments,Services Rendered By Other Organisations,511,16/11/2018,1811-00744,0.00,334.69,R,REDACTED PERSONAL DATA,NO
Http://opendatacommunities.org/id/metropolitan-district-council/leeds,Leeds City Council,30/11/2018,Children and Families,Social Care,Third Party Payments,Services Rendered By Other Organisations,511,02/11/2018,1811-00745,0.00,213.33,R,REDACTED PERSONAL DATA,NO
Http://opendatacommunities.org/id/metropolitan-district-council/leeds,Leeds City Council,30/11/2018,Children and Families,Social Care,Third Party Payments,Services Rendered By Other Organisations,511,21/11/2018,1811-00746,0.00,535.50,R,REDACTED PERSONAL DATA,NO
Http://opendatacommunities.org/id/metropolitan-district-council/leeds,Leeds City Council,30/11/2018,Strategic Accounts,Miscellaneous,Supplies and Services,Non-Recurring Grants,227,13/11/2018,1811-00747,0.00,300.00,R,Amaranth Football Club,NO
Http://opendatacommunities.org/id/metropolitan-district-council/leeds,Leeds City Council,30/11/2018,Resources and Housing,Shared Services,Supplies and Services,Other Hired And Contracted Services,265,21/11/2018,1811-00748,0.00,258.40,R,Amari Plastics Plc,NO
Http://opendatacommunities.org/id/metropolitan-district-council/leeds,Leeds City Council,30/11/2018,Resources and Housing,Shared Services,Supplies and Services,Operational Materials,205,21/11/2018,1811-00749,0.00,61.23,R,Amari Plastics Plc,NO
Http://opendatacommunities.org/id/metropolitan-district-council/leeds,Leeds City Council,30/11/2018,Children and Families,Social Care,Third Party Payments,Services Rendered By Other Organisations,511,02/11/2018,1811-00750,0.00,2176.33,R,Amazing Grace Early Years Childcare,NO
Http://opendatacommunities.org/id/metropolitan-district-council/leeds,Leeds City Council,30/11/2018,Children and Families,Social Care,Third Party Payments,Services Rendered By Other Organisations,511,16/11/2018,1811-00751,0.00,6247.50,R,Amazing Grace Early Years Childcare,NO
Http://opendatacommunities.org/id/metropolitan-district-council/leeds,Leeds City Council,30/11/2018,Children and Families,Social Care,Third Party Payments,Services Rendered By Other Organisations,511,21/11/2018,1811-00752,0.00,1071.00,R,Amazing Grace Early Years Childcare,NO
Http://opendatacommunities.org/id/metropolitan-district-council/leeds,Leeds City Council,30/11/2018,City Development,Recreation,Supplies and Services,Operational Furniture And Equipment,203,02/11/2018,1811-00753,0.00,162.67,R,Amazon Leisure Uk Ltd,NO
Http://opendatacommunities.org/id/metropolitan-district-council/leeds,Leeds City Council,30/11/2018,City Development,Recreation,Supplies and Services,Operational Furniture And Equipment,203,15/11/2018,1811-00754,0.00,339.25,R,Amazon Leisure Uk Ltd,NO
Http://opendatacommunities.org/id/metropolitan-district-council/leeds,Leeds City Council,30/11/2018,City Development,Recreation,Supplies and Services,Operational Furniture And Equipment,203,15/11/2018,1811-00755,0.00,475.49,R,Amazon Leisure Uk Ltd,NO
Http://opendatacommunities.org/id/metropolitan-district-council/leeds,Leeds City Council,30/11/2018,City Development,Recreation,Supplies and Services,Operational Furniture And Equipment,203,15/11/2018,1811-00756,0.00,612.19,R,Amazon Leisure Uk Ltd,NO
Http://opendatacommunities.org/id/metropolitan-district-council/leeds,Leeds City Council,30/11/2018,City Development,Recreation,Supplies and Services,Operational Furniture And Equipment,203,16/11/2018,1811-00757,0.00,89.07,R,Amazon Leisure Uk Ltd,NO
Http://opendatacommunities.org/id/metropolitan-district-council/leeds,Leeds City Council,30/11/2018,City Development,Recreation,Supplies and Services,Operational Furniture And Equipment,203,16/11/2018,1811-00758,0.00,119.85,R,Amazon Leisure Uk Ltd,NO
Http://opendatacommunities.org/id/metropolitan-district-council/leeds,Leeds City Council,30/11/2018,City Development,Recreation,Supplies and Services,Operational Furniture And Equipment,203,16/11/2018,1811-00759,0.00,4979.20,R,Amazon Leisure Uk Ltd,NO
Http://opendatacommunities.org/id/metropolitan-district-council/leeds,Leeds City Council,30/11/2018,City Development,Recreation,Supplies and Services,Operational Furniture And Equipment,203,23/11/2018,1811-00760,0.00,1116.47,R,Amazon Leisure Uk Ltd,NO
Http://opendatacommunities.org/id/metropolitan-district-council/leeds,Leeds City Council,30/11/2018,City Development,Recreation,Supplies and Services,Operational Furniture And Equipment,203,30/11/2018,1811-00761,0.00,356.50,R,Amazon Leisure Uk Ltd,NO
Http://opendatacommunities.org/id/metropolitan-district-council/leeds,Leeds City Council,30/11/2018,City Development,Recreation,Supplies and Services,Operational Furniture And Equipment,203,30/11/2018,1811-00762,0.00,127.50,R,Amazon Leisure Uk Ltd,NO
Http://opendatacommunities.org/id/metropolitan-district-council/leeds,Leeds City Council,30/11/2018,City Development,Recreation,Supplies and Services,Operational Furniture And Equipment,203,30/11/2018,1811-00763,0.00,64.21,R,Amazon Leisure Uk Ltd,NO
Http://opendatacommunities.org/id/metropolitan-district-council/leeds,Leeds City Council,30/11/2018,City Development,Libraries  Arts & Heritage  ,Supplies and Services,Operational Furniture And Equipment,203,15/10/2018,1811-00764,0.00,-9.99,R,Amazon Music,YES
Http://opendatacommunities.org/id/metropolitan-district-council/leeds,Leeds City Council,30/11/2018,Children and Families,Social Care  ,Supplies and Services,Operational Furniture And Equipment,203,30/09/2018,1811-00765,0.00,7.99,R,Amazon Prime,YES
Http://opendatacommunities.org/id/metropolitan-district-council/leeds,Leeds City Council,30/11/2018,City Development,Libraries  Arts & Heritage  ,Supplies and Services,Operational Materials,205,09/10/2018,1811-00766,0.00,7.99,R,Amazon Prime,YES
Http://opendatacommunities.org/id/metropolitan-district-council/leeds,Leeds City Council,30/11/2018,Communities and Environment,Parks And Countryside  ,Supplies and Services,Operational Materials,205,14/10/2018,1811-00767,0.00,7.99,R,Amazon Prime*mt10e7cs4,YES
Http://opendatacommunities.org/id/metropolitan-district-council/leeds,Leeds City Council,30/11/2018,Children and Families,Social Care  ,Supplies and Services,Office Consumables,210,30/10/2018,1811-00768,0.00,7.99,R,Amazon Prime*mt2n088r4,YES
Http://opendatacommunities.org/id/metropolitan-district-council/leeds,Leeds City Council,30/11/2018,Resources and Housing,Commercial Services  ,Supplies and Services,Operational Materials,205,27/10/2018,1811-00769,0.00,7.99,R,Amazon Prime*mt4ie6mi4,YES
Http://opendatacommunities.org/id/metropolitan-district-council/leeds,Leeds City Council,30/11/2018,Children and Families,Social Care  ,Supplies and Services,Office Consumables,210,24/10/2018,1811-00770,0.00,7.99,R,Amazon Prime*mt9nl71h4,YES
Http://opendatacommunities.org/id/metropolitan-district-council/leeds,Leeds City Council,30/11/2018,Communities and Environment,Parks And Countryside  ,Supplies and Services,Publication And Promotion,267,19/10/2018,1811-00771,0.00,7.99,R,Amazon Prime*mt9zl5t44,YES
